Supplier Id,Invoice Id,Supplier Name,Date Paid,Subjective Code,Subjective Name,Service Area,Cost Centre Name,Spend Exc VAT
2930299,5371924,0151 Entertainments Ltd,21/05/2018,48203,Marketing,Chief Executives,Marketing - Holding Code,"1,350.00"
38538,5355145,18 St John Street Chamber,14/05/2018,48502,Legal Fees,Childrens Services,Management Team,650.00
17738,5355160,18 St John Street Chamber,14/05/2018,48502,Legal Fees,Childrens Services,Management Team,600.00
6807,5372913,2SIMPLE SOFTWARE LTD,24/05/2018,45433,ECDL Courseware Hosting,Childrens Services,Admin IT (Schools),"39,000.00"
4611992,5384389,4 Pure Heart Limited,24/05/2018,52000,Vol Assoc Grants  General,Childrens Services,Res Serv Agency Placements,"32,000.00"
2353311,5355357,9 St Johns St Chambers,14/05/2018,48502,Legal Fees,Childrens Services,Management Team,500.00
6050,5371226,A E YATES LTD,17/05/2018,Z1051,Work in Progress Additions,Highways,Stores,"84,138.25"
6050,5371232,A E YATES LTD,17/05/2018,Z1051,Work in Progress Additions,Highways,Stores,"44,108.86"
6050,5355358,A E YATES LTD,14/05/2018,Z1051,Work in Progress Additions,Highways,Stores,"2,947.26"
3160606,5374662,A1 Vehicle Dismantlers,21/05/2018,52200,Contracted Services,Environmental Services,Transport Support Service,970.00
6055,5335411,ABAFIELDS RESIDENTIAL HOME,08/05/2018,54301,Residential Provision,Adult Services,OA  External Provision Residential,"21,385.78"
6055,5335381,ABAFIELDS RESIDENTIAL HOME,08/05/2018,54301,Residential Provision,Adult Services,OA  External Provision Residential,"8,217.14"
6055,5335411,ABAFIELDS RESIDENTIAL HOME,08/05/2018,54301,Residential Provision,Adult Services,LD Purchaser Residential Care,"5,413.10"
6055,5335411,ABAFIELDS RESIDENTIAL HOME,08/05/2018,54301,Residential Provision,Adult Services,PD Purchaser Residential Care,"4,980.00"
6055,5335380,ABAFIELDS RESIDENTIAL HOME,08/05/2018,54301,Residential Provision,Adult Services,OA  External Provision Residential,"2,571.43"
6055,5335411,ABAFIELDS RESIDENTIAL HOME,08/05/2018,54301,Residential Provision,Adult Services,MH Residential External Provision,"2,490.00"
6055,5335381,ABAFIELDS RESIDENTIAL HOME,08/05/2018,54301,Residential Provision,Adult Services,MH Residential External Provision,980.00
2348298,5335630,ABBEY HEALTHCARE (FARNWORTH) LIMITED,08/05/2018,54301,Residential Provision,Adult Services,OA  External Provision Residential,"66,245.00"
2348298,5335629,ABBEY HEALTHCARE (FARNWORTH) LIMITED,08/05/2018,54302,Nursing Provision,Adult Services,OA  External Provision Residential,"42,080.71"
2348298,5335629,ABBEY HEALTHCARE (FARNWORTH) LIMITED,08/05/2018,54302,Nursing Provision,Adult Services,PD Purchaser Residential Care,"7,028.57"
2348298,5335630,ABBEY HEALTHCARE (FARNWORTH) LIMITED,08/05/2018,54301,Residential Provision,Adult Services,PD Purchaser Residential Care,"4,900.00"
2348298,5335629,ABBEY HEALTHCARE (FARNWORTH) LIMITED,08/05/2018,54302,Nursing Provision,Adult Services,MH Residential External Provision,"3,510.00"
2348298,5335630,ABBEY HEALTHCARE (FARNWORTH) LIMITED,08/05/2018,54301,Residential Provision,Adult Services,MH Residential External Provision,"2,450.00"
2341303,5335434,ABBEYCLIFFE RESIDENTIAL CARE HOME,08/05/2018,54301,Residential Provision,Adult Services,OA  External Provision Residential,"9,200.80"
6894,5335419,ABBEYDALE RESIDENTIAL CARE HOME,08/05/2018,54301,Residential Provision,Adult Services,OA  External Provision Residential,"4,600.40"
4695992,5384007,Ability Smart Limited,31/05/2018,45430,Computer Software,Childrens Services,Behaviour Support,645.00
4695992,5384004,Ability Smart Limited,31/05/2018,19103,Training Exp  In House,Childrens Services,Behaviour Support,600.00
6916,5384617,ACCESS DOORS SYSTEMS LTD,24/05/2018,Z6008,Expense AP Accrual,Bolton MBC Balance Sheet,Bolton MBC Balance Sheet,"1,640.00"
6916,5371524,ACCESS DOORS SYSTEMS LTD,17/05/2018,Z6008,Expense AP Accrual,Bolton MBC Balance Sheet,Bolton MBC Balance Sheet,"1,345.00"
6916,5384550,ACCESS DOORS SYSTEMS LTD,24/05/2018,40100,Operational Equipment Purchase,Environmental Services,Markets  Rent Account,"4,650.00"
156135,5333140,ACCESS TO CARE LTD,03/05/2018,52200,Contracted Services,Adult Services,LD Purchaser Supported Housing,"1,400.00"
156135,5333141,ACCESS TO CARE LTD,03/05/2018,52200,Contracted Services,Adult Services,LD Purchaser Supported Housing,"1,400.00"
156135,5358672,ACCESS TO CARE LTD,14/05/2018,52200,Contracted Services,Adult Services,LD Purchaser Supported Housing,"1,400.00"
156135,5358673,ACCESS TO CARE LTD,14/05/2018,52200,Contracted Services,Adult Services,LD Purchaser Supported Housing,"1,400.00"
156135,5371512,ACCESS TO CARE LTD,17/05/2018,52000,Vol Assoc Grants  General,Childrens Services,Res Serv Agency Placements,"2,900.00"
156135,5371518,ACCESS TO CARE LTD,17/05/2018,52000,Vol Assoc Grants  General,Childrens Services,Res Serv Agency Placements,"2,900.00"
156135,5371519,ACCESS TO CARE LTD,17/05/2018,52000,Vol Assoc Grants  General,Childrens Services,Res Serv Agency Placements,"2,900.00"
156135,5371499,ACCESS TO CARE LTD,17/05/2018,52000,Vol Assoc Grants  General,Childrens Services,Res Serv Agency Placements,"1,770.00"
156135,5371481,ACCESS TO CARE LTD,17/05/2018,52000,Vol Assoc Grants  General,Childrens Services,Res Serv Agency Placements,885.00
156135,5371487,ACCESS TO CARE LTD,17/05/2018,52000,Vol Assoc Grants  General,Childrens Services,Res Serv Agency Placements,885.00
156135,5371485,ACCESS TO CARE LTD,17/05/2018,52000,Vol Assoc Grants  General,Childrens Services,Res Serv Agency Placements,885.00
156135,5371477,ACCESS TO CARE LTD,17/05/2018,52000,Vol Assoc Grants  General,Childrens Services,Res Serv Agency Placements,885.00
156135,5371483,ACCESS TO CARE LTD,17/05/2018,52000,Vol Assoc Grants  General,Childrens Services,Res Serv Agency Placements,885.00
156135,5371480,ACCESS TO CARE LTD,17/05/2018,52000,Vol Assoc Grants  General,Childrens Services,Res Serv Agency Placements,885.00
156135,5371473,ACCESS TO CARE LTD,17/05/2018,52000,Vol Assoc Grants  General,Childrens Services,Res Serv Agency Placements,885.00
156135,5371494,ACCESS TO CARE LTD,17/05/2018,52000,Vol Assoc Grants  General,Childrens Services,Res Serv Agency Placements,885.00
156135,5371490,ACCESS TO CARE LTD,17/05/2018,52000,Vol Assoc Grants  General,Childrens Services,Res Serv Agency Placements,885.00
156135,5371470,ACCESS TO CARE LTD,17/05/2018,52000,Vol Assoc Grants  General,Childrens Services,Res Serv Agency Placements,885.00
156135,5371502,ACCESS TO CARE LTD,17/05/2018,52000,Vol Assoc Grants  General,Childrens Services,Res Serv Agency Placements,885.00
156135,5371463,ACCESS TO CARE LTD,17/05/2018,52000,Vol Assoc Grants  General,Childrens Services,Res Serv Agency Placements,885.00
156135,5371509,ACCESS TO CARE LTD,17/05/2018,52000,Vol Assoc Grants  General,Childrens Services,Res Serv Agency Placements,885.00
156135,5371508,ACCESS TO CARE LTD,17/05/2018,52000,Vol Assoc Grants  General,Childrens Services,Res Serv Agency Placements,885.00
156135,5371467,ACCESS TO CARE LTD,17/05/2018,52000,Vol Assoc Grants  General,Childrens Services,Res Serv Agency Placements,885.00
156135,5371506,ACCESS TO CARE LTD,17/05/2018,52000,Vol Assoc Grants  General,Childrens Services,Res Serv Agency Placements,885.00
156135,5371503,ACCESS TO CARE LTD,17/05/2018,52000,Vol Assoc Grants  General,Childrens Services,Res Serv Agency Placements,885.00
156135,5371456,ACCESS TO CARE LTD,17/05/2018,52000,Vol Assoc Grants  General,Childrens Services,Res Serv Agency Placements,885.00
156135,5371513,ACCESS TO CARE LTD,17/05/2018,52000,Vol Assoc Grants  General,Childrens Services,Res Serv Agency Placements,885.00
156135,5371516,ACCESS TO CARE LTD,17/05/2018,52000,Vol Assoc Grants  General,Childrens Services,Res Serv Agency Placements,885.00
4604004,5386414,Acorn Recovery Projects,29/05/2018,52200,Contracted Services,Public Health,Substance Misuse,"2,037.14"
4604004,5406670,Acorn Recovery Projects,31/05/2018,52200,Contracted Services,Public Health,Substance Misuse,"1,971.43"
248862,5370810,ACTION FOR CHILDREN,21/05/2018,52200,Contracted Services,Childrens Services,Integrated Commissioning,"21,216.25"
253035,5333288,Addleshaw Goddard LLP,03/05/2018,48502,Legal Fees,Development & Regeneration,LMA External Funded Projects,"21,425.50"
253035,5371136,Addleshaw Goddard LLP,17/05/2018,48502,Legal Fees,Development & Regeneration,LMA External Funded Projects,"8,418.00"
2221292,5335431,ADLINGTON MANOR,08/05/2018,54302,Nursing Provision,Adult Services,OA  External Provision Residential,"2,449.30"
245759,5370917,ADVANCED BUILDING (NW) LTD,17/05/2018,Z6008,Expense AP Accrual,Bolton MBC Balance Sheet,Bolton MBC Balance Sheet,"5,850.00"
245759,5372157,ADVANCED BUILDING (NW) LTD,21/05/2018,Z6008,Expense AP Accrual,Bolton MBC Balance Sheet,Bolton MBC Balance Sheet,"1,100.00"
2055299,5390797,AEBI SCHMIDT UK LTD,29/05/2018,52200,Contracted Services,Environmental Services,Transport Support Service,576.03
2055299,5401645,AEBI SCHMIDT UK LTD,31/05/2018,52200,Contracted Services,Environmental Services,Transport Support Service,542.46
269069,5384455,AECOM LTD,29/05/2018,48509,Other Fees,Development & Regeneration,Development Management,854.00
6952,5399698,After Adoption,31/05/2018,53000,Private Contracted Services,Childrens Services,Regional Adoption Agency (RAA),"8,707.50"
2052291,5376798,AGGREGATE INDUSTRIES UK LIMITED,24/05/2018,40610,Direct Materials,Environmental Services,Highways Maintenance Billable Costs,950.00
2052291,5377670,AGGREGATE INDUSTRIES UK LIMITED,29/05/2018,40610,Direct Materials,Environmental Services,Highways Maintenance Billable Costs,950.00
2052291,5377796,AGGREGATE INDUSTRIES UK LIMITED,24/05/2018,40610,Direct Materials,Environmental Services,Highways Maintenance Billable Costs,950.00
2052291,5386650,AGGREGATE INDUSTRIES UK LIMITED,29/05/2018,40610,Direct Materials,Environmental Services,Highways Maintenance Billable Costs,950.00
2052291,5386655,AGGREGATE INDUSTRIES UK LIMITED,29/05/2018,40610,Direct Materials,Environmental Services,Highways Maintenance Billable Costs,850.00
2052291,5376797,AGGREGATE INDUSTRIES UK LIMITED,24/05/2018,40610,Direct Materials,Environmental Services,Highways Maintenance Billable Costs,760.00
2052291,5405649,AGGREGATE INDUSTRIES UK LIMITED,31/05/2018,40610,Direct Materials,Environmental Services,Highway Services,754.30
2052291,5377794,AGGREGATE INDUSTRIES UK LIMITED,29/05/2018,40610,Direct Materials,Environmental Services,Highways Maintenance Billable Costs,570.00
2052291,5386647,AGGREGATE INDUSTRIES UK LIMITED,29/05/2018,40610,Direct Materials,Environmental Services,Highways Maintenance Billable Costs,570.00
2052291,5396685,AGGREGATE INDUSTRIES UK LIMITED,31/05/2018,Z1051,Work in Progress Additions,Highways,Stores,"139,727.05"
2052291,5403650,AGGREGATE INDUSTRIES UK LIMITED,31/05/2018,Z6007,Z6007 - Inventory AP Accrual,Highways,Stores,"1,443.80"
2052291,5403646,AGGREGATE INDUSTRIES UK LIMITED,31/05/2018,Z6007,Z6007 - Inventory AP Accrual,Highways,Stores,"1,133.36"
2052291,5384232,AGGREGATE INDUSTRIES UK LIMITED,24/05/2018,Z6007,Z6007 - Inventory AP Accrual,Highways,Stores,"1,012.95"
2052291,5371614,AGGREGATE INDUSTRIES UK LIMITED,21/05/2018,Z6007,Z6007 - Inventory AP Accrual,Highways,Stores,921.19
2052291,5371631,AGGREGATE INDUSTRIES UK LIMITED,21/05/2018,Z6007,Z6007 - Inventory AP Accrual,Highways,Stores,884.24
2052291,5384218,AGGREGATE INDUSTRIES UK LIMITED,24/05/2018,Z6007,Z6007 - Inventory AP Accrual,Highways,Stores,882.89
2052291,5371624,AGGREGATE INDUSTRIES UK LIMITED,21/05/2018,Z6007,Z6007 - Inventory AP Accrual,Highways,Stores,829.05
2052291,5373646,AGGREGATE INDUSTRIES UK LIMITED,21/05/2018,Z6007,Z6007 - Inventory AP Accrual,Highways,Stores,823.56
2052291,5384228,AGGREGATE INDUSTRIES UK LIMITED,24/05/2018,Z6007,Z6007 - Inventory AP Accrual,Highways,Stores,775.34
2052291,5384211,AGGREGATE INDUSTRIES UK LIMITED,24/05/2018,Z6007,Z6007 - Inventory AP Accrual,Highways,Stores,728.83
2052291,5384222,AGGREGATE INDUSTRIES UK LIMITED,24/05/2018,Z6007,Z6007 - Inventory AP Accrual,Highways,Stores,714.68
2052291,5372042,AGGREGATE INDUSTRIES UK LIMITED,21/05/2018,Z6007,Z6007 - Inventory AP Accrual,Highways,Stores,684.36
2052291,5403650,AGGREGATE INDUSTRIES UK LIMITED,31/05/2018,Z5608,Inv Invoice Price Variance,Highways,Stores,667.92
2052291,5372033,AGGREGATE INDUSTRIES UK LIMITED,21/05/2018,Z6007,Z6007 - Inventory AP Accrual,Highways,Stores,667.04
2052291,5403648,AGGREGATE INDUSTRIES UK LIMITED,31/05/2018,Z6007,Z6007 - Inventory AP Accrual,Highways,Stores,661.26
2052291,5384056,AGGREGATE INDUSTRIES UK LIMITED,24/05/2018,Z6007,Z6007 - Inventory AP Accrual,Highways,Stores,649.71
2052291,5403642,AGGREGATE INDUSTRIES UK LIMITED,31/05/2018,Z6007,Z6007 - Inventory AP Accrual,Highways,Stores,610.91
2052291,5371626,AGGREGATE INDUSTRIES UK LIMITED,21/05/2018,Z6007,Z6007 - Inventory AP Accrual,Highways,Stores,604.99
2052291,5373639,AGGREGATE INDUSTRIES UK LIMITED,21/05/2018,Z6007,Z6007 - Inventory AP Accrual,Highways,Stores,582.48
2052291,5384206,AGGREGATE INDUSTRIES UK LIMITED,24/05/2018,Z6007,Z6007 - Inventory AP Accrual,Highways,Stores,571.87
2052291,5371628,AGGREGATE INDUSTRIES UK LIMITED,21/05/2018,Z6007,Z6007 - Inventory AP Accrual,Highways,Stores,529.72
871655,5355484,AGILISYS LIMITED,14/05/2018,45405,Computer Consumables,Adult Services,Integrated Discharge Team,750.44
871655,5354662,AGILISYS LIMITED,10/05/2018,45606,Fujitsu  Data N/wk Mngmnt,Chief Executives,Corporate IT Investment,"59,486.50"
871655,5355098,AGILISYS LIMITED,14/05/2018,45613,Fujitsu  Managed Service,Chief Executives,ICT Operational Billing,"35,323.84"
871655,5370892,AGILISYS LIMITED,17/05/2018,45604,Fujitsu  Minor Project Works,Chief Executives,Corporate IT Investment,"11,285.82"
871655,5384531,AGILISYS LIMITED,24/05/2018,45616,45616 - Agilisys - Refreshed Assets,Chief Executives,FM Contract,"5,847.22"
871655,5384378,AGILISYS LIMITED,24/05/2018,43030,Photocopying Lease/Maintenance,Chief Executives,Admin Buildings Portfolio,600.00
6960,5384697,AIDAPT BATHROOMS LTD,24/05/2018,44051,Clients Aids & Adaptations,Adult Services,ICES,"1,705.00"
6960,5387406,AIDAPT BATHROOMS LTD,29/05/2018,44051,Clients Aids & Adaptations,Adult Services,ICES,"1,280.00"
6064,5335417,AINSWORTH NURSING HOME,08/05/2018,54302,Nursing Provision,Adult Services,OA  External Provision Residential,"5,783.36"
6064,5335417,AINSWORTH NURSING HOME,08/05/2018,54302,Nursing Provision,Adult Services,MH Residential External Provision,"2,300.20"
6064,5335416,AINSWORTH NURSING HOME,08/05/2018,54301,Residential Provision,Adult Services,MH Residential External Provision,"2,300.20"
146502,5395641,ALLIANCE DISPOSABLES LTD,31/05/2018,20100,Day To Day Maintenance,Chief Executives,Admin Buildings Portfolio,570.80
146502,5395642,ALLIANCE DISPOSABLES LTD,31/05/2018,40108,Caretaking/Cleaning Equipment,Environmental Services,Civic Cleaning,996.00
110901,5371186,ALLPAY.NET LTD,17/05/2018,48509,Other Fees,Chief Executives,CSD Cashiers,"7,151.22"
110901,5399670,ALLPAY.NET LTD,31/05/2018,48509,Other Fees,Chief Executives,CSD Cashiers,"5,068.00"
110901,5399677,ALLPAY.NET LTD,31/05/2018,48509,Other Fees,Chief Executives,CSD Cashiers,"2,275.55"
110901,5371187,ALLPAY.NET LTD,17/05/2018,48509,Other Fees,Chief Executives,CSD Cashiers,"2,112.13"
110901,5371193,ALLPAY.NET LTD,17/05/2018,48509,Other Fees,Chief Executives,CSD Cashiers,766.79
110901,5399674,ALLPAY.NET LTD,31/05/2018,48509,Other Fees,Chief Executives,CSD Cashiers,576.25
3944953,5335406,Alma Green Residential Care Home,08/05/2018,54301,Residential Provision,Adult Services,OA  External Provision Residential,"2,448.80"
2564295,5335488,Almond Villas Ltd,08/05/2018,54301,Residential Provision,Adult Services,MH Residential External Provision,"6,558.30"
2564295,5335398,Almond Villas Ltd,08/05/2018,54301,Residential Provision,Adult Services,MH Residential External Provision,"3,357.10"
25274,5345821,ALSECURE GROUP LTD,10/05/2018,44401,Other Security Expenses,Housing GRF,Benjamin Court Accommodation,"1,208.52"
25274,5345825,ALSECURE GROUP LTD,10/05/2018,44401,Other Security Expenses,Housing GRF,Benjamin Court Accommodation,967.94
25274,5357637,ALSECURE GROUP LTD,14/05/2018,44401,Other Security Expenses,Housing GRF,Benjamin Court Accommodation,939.96
25274,5384363,ALSECURE GROUP LTD,24/05/2018,44401,Other Security Expenses,Housing GRF,Benjamin Court Accommodation,939.96
25274,5386077,ALSECURE GROUP LTD,29/05/2018,44401,Other Security Expenses,Housing GRF,Benjamin Court Accommodation,939.96
2507291,5383853,Alto Bollards (Newcastle) Ltd,24/05/2018,Z6007,Z6007 - Inventory AP Accrual,Highways,Stores,950.00
2623313,5335468,Amey Metering Limited,08/05/2018,21100,Electricity  General,Environmental Services,Engineering Projects,"2,700.00"
6079,5384586,ANIMAL WARDENS,24/05/2018,52200,Contracted Services,Environmental Services,Activities and Operations,903.00
34083,5403928,ANSA ELEVATORS LTD,31/05/2018,Z6008,Expense AP Accrual,Bolton MBC Balance Sheet,Bolton MBC Balance Sheet,"3,004.00"
34083,5371466,ANSA ELEVATORS LTD,17/05/2018,Z6008,Expense AP Accrual,Bolton MBC Balance Sheet,Bolton MBC Balance Sheet,"1,422.00"
34083,5333354,ANSA ELEVATORS LTD,03/05/2018,Z6008,Expense AP Accrual,Bolton MBC Balance Sheet,Bolton MBC Balance Sheet,961.20
34083,5333560,ANSA ELEVATORS LTD,03/05/2018,Z6008,Expense AP Accrual,Bolton MBC Balance Sheet,Bolton MBC Balance Sheet,682.50
34083,5400709,ANSA ELEVATORS LTD,31/05/2018,Z6008,Expense AP Accrual,Bolton MBC Balance Sheet,Bolton MBC Balance Sheet,588.00
34083,5371635,ANSA ELEVATORS LTD,21/05/2018,Z6008,Expense AP Accrual,Bolton MBC Balance Sheet,Bolton MBC Balance Sheet,565.00
34083,5403931,ANSA ELEVATORS LTD,31/05/2018,Z6008,Expense AP Accrual,Bolton MBC Balance Sheet,Bolton MBC Balance Sheet,560.00
2246414,5335432,ANSAR PROJECTS,08/05/2018,54301,Residential Provision,Adult Services,MH Residential External Provision,"5,670.00"
6082,5384139,Anthony Axford Ltd,24/05/2018,40601,General Materials,Environmental Services,Bereavement Services,"1,411.60"
8407,5333658,APETITO LTD,08/05/2018,41101,Catering ProvisionsFood,Adult Services,OA  Community Meals,"2,706.30"
8407,5372689,APETITO LTD,21/05/2018,41101,Catering ProvisionsFood,Adult Services,OA  Community Meals,"1,550.00"
8407,5384564,APETITO LTD,24/05/2018,41101,Catering ProvisionsFood,Adult Services,OA  Community Meals,"1,449.75"
8407,5402660,APETITO LTD,31/05/2018,41101,Catering ProvisionsFood,Adult Services,OA  Community Meals,"1,429.33"
8407,5374739,APETITO LTD,21/05/2018,41101,Catering ProvisionsFood,Adult Services,OA  Community Meals,"1,353.27"
8407,5372582,APETITO LTD,21/05/2018,41101,Catering ProvisionsFood,Adult Services,OA  Community Meals,"1,210.84"
8407,5384541,APETITO LTD,24/05/2018,41101,Catering ProvisionsFood,Adult Services,OA  Community Meals,"1,032.01"
8407,5402665,APETITO LTD,31/05/2018,41101,Catering ProvisionsFood,Adult Services,OA  Community Meals,"1,023.89"
8407,5386580,APETITO LTD,29/05/2018,41101,Catering ProvisionsFood,Adult Services,OA  Community Meals,"1,018.65"
8407,5372687,APETITO LTD,21/05/2018,41101,Catering ProvisionsFood,Adult Services,OA  Luncheon Clubs,550.00
8407,5384480,APETITO LTD,24/05/2018,41101,Catering ProvisionsFood,Adult Services,OA  Luncheon Clubs,550.00
8407,5387141,APETITO LTD,29/05/2018,41101,Catering ProvisionsFood,Adult Services,OA  Luncheon Clubs,550.00
8407,5386555,APETITO LTD,29/05/2018,41101,Catering ProvisionsFood,Adult Services,OA  Luncheon Clubs,550.00
3166606,5335403,Apna House,08/05/2018,54301,Residential Provision,Adult Services,MH Residential External Provision,"4,750.00"
7134,5358688,APSE,14/05/2018,47200,General Subscriptions,Environmental Services,DMT,"3,846.00"
7134,5378668,APSE,24/05/2018,53102,Agency Staff  Other,Environmental Services,Albert Halls  Operations,"3,630.00"
2913298,5374751,Arden Telecom Ltd,24/05/2018,45100,Telephones Direct Rental,Environmental Services,Markets  Rent Account,851.97
6091,5393876,ARGOS BUSINESS SOLUTIONS,31/05/2018,40100,Operational Equipment Purchase,Adult Services,LD Purchaser Supported Housing,999.95
4387954,5353883,Arlington Management Limited,10/05/2018,48203,Marketing,Chief Executives,Marketing - Holding Code,"1,300.00"
170652,5384463,ARMSTRONGS AGGREGATES LIMITED,24/05/2018,20101,Programmed Maint. Work,Environmental Services,Highways Managers,900.00
170652,5343646,ARMSTRONGS AGGREGATES LIMITED,10/05/2018,20101,Programmed Maint. Work,Environmental Services,Highways Managers,500.00
170652,5371613,ARMSTRONGS AGGREGATES LIMITED,29/05/2018,Z6007,Z6007 - Inventory AP Accrual,Highways,Stores,861.63
2338498,5335433,ASHTREE HOUSE,08/05/2018,54301,Residential Provision,Adult Services,PD Purchaser Residential Care,"2,138.82"
2615382,5348639,Askews & Holts Library Services Ltd,10/05/2018,40753,Book Fund Expenditure,Development & Regeneration,Libraries Info. Services,"2,163.24"
2615382,5376770,Askews & Holts Library Services Ltd,24/05/2018,40753,Book Fund Expenditure,Development & Regeneration,Libraries Info. Services,885.49
2615382,5385760,Askews & Holts Library Services Ltd,24/05/2018,40753,Book Fund Expenditure,Development & Regeneration,Libraries Info. Services,773.17
2615382,5376779,Askews & Holts Library Services Ltd,24/05/2018,40753,Book Fund Expenditure,Development & Regeneration,Libraries Info. Services,596.28
3994954,5358668,Aspire: for Intelligent Care and Support CIC,14/05/2018,50002,Other Agency/Contracted Services,Adult Services,OA  Day Care Provision  external,606.60
3235619,5386635,Associated Cleaning Contractors#Champion Cleaning Services Group,29/05/2018,26101,Contract Cleaning,Adult Services,OA  Carers Grant,908.00
3235619,5371033,Associated Cleaning Contractors#Champion Cleaning Services Group,17/05/2018,26101,Contract Cleaning,Adult Services,OA  Carers Grant,908.00
2515336,5335436,ASTLEY GRANGE HOMES LIMITED,08/05/2018,54302,Nursing Provision,Adult Services,OA  External Provision Residential,"11,860.00"
2515336,5335437,ASTLEY GRANGE HOMES LIMITED,08/05/2018,54301,Residential Provision,Adult Services,OA  External Provision Residential,"3,740.00"
2515336,5335436,ASTLEY GRANGE HOMES LIMITED,08/05/2018,54302,Nursing Provision,Adult Services,MH Residential External Provision,"2,770.00"
2515336,5335436,ASTLEY GRANGE HOMES LIMITED,08/05/2018,54302,Nursing Provision,Adult Services,PD Purchaser Residential Care,"2,490.00"
6104,5403925,AUTOMATIC ALARMS LIMITED,31/05/2018,25106,C.C.T.V.,Housing GRF,Benjamin Court Accommodation,"1,927.15"
14748,5370925,AVCO SYSTEMS LTD,17/05/2018,45431,Computer Software Licences,Childrens Services,Admin Info Mgemnt Unit,"6,500.00"
2457290,5384059,AXCIS EDUCATION RECRUITMENT,24/05/2018,53100,Agency Staff  Fulltime,Chief Executives,Marketing - Sponsorship,677.75
2457290,5403932,AXCIS EDUCATION RECRUITMENT,31/05/2018,53100,Agency Staff  Fulltime,Childrens Services,Early Intervention Team,813.30
2457290,5385762,AXCIS EDUCATION RECRUITMENT,24/05/2018,53100,Agency Staff  Fulltime,Childrens Services,Early Intervention Team,677.75
2457290,5362849,AXCIS EDUCATION RECRUITMENT,17/05/2018,53100,Agency Staff  Fulltime,Childrens Services,Early Intervention Team,675.00
2457290,5384063,AXCIS EDUCATION RECRUITMENT,24/05/2018,53100,Agency Staff  Fulltime,Childrens Services,Early Intervention Team,675.00
2457290,5385769,AXCIS EDUCATION RECRUITMENT,24/05/2018,53100,Agency Staff  Fulltime,Childrens Services,Early Intervention Team,675.00
2457290,5403942,AXCIS EDUCATION RECRUITMENT,31/05/2018,53100,Agency Staff  Fulltime,Childrens Services,Early Intervention Team,675.00
2457290,5362853,AXCIS EDUCATION RECRUITMENT,17/05/2018,53100,Agency Staff  Fulltime,Childrens Services,Early Intervention Team,542.20
2457290,5362852,AXCIS EDUCATION RECRUITMENT,17/05/2018,53100,Agency Staff  Fulltime,Childrens Services,Early Intervention Team,542.20
2457290,5362851,AXCIS EDUCATION RECRUITMENT,17/05/2018,53100,Agency Staff  Fulltime,Childrens Services,Early Intervention Team,542.20
2457290,5384060,AXCIS EDUCATION RECRUITMENT,24/05/2018,53100,Agency Staff  Fulltime,Childrens Services,Early Intervention Team,542.20
2457290,5385770,AXCIS EDUCATION RECRUITMENT,24/05/2018,53100,Agency Staff  Fulltime,Childrens Services,Early Intervention Team,542.20
2457290,5403940,AXCIS EDUCATION RECRUITMENT,31/05/2018,53100,Agency Staff  Fulltime,Childrens Services,Early Intervention Team,542.20
6111,5354209,BADENOCH & CLARK,10/05/2018,53102,Agency Staff  Other,Childrens Services,Integrated Commissioning,"5,016.44"
7281,5371127,BALL COLEGRAVE LTD,17/05/2018,40609,Horticultural Materials,Environmental Services,Heaton Fold,"2,747.36"
7281,5383918,BALL COLEGRAVE LTD,24/05/2018,40609,Horticultural Materials,Environmental Services,Heaton Fold,858.53
7281,5374762,BALL COLEGRAVE LTD,24/05/2018,40609,Horticultural Materials,Environmental Services,Heaton Fold,581.76
4167967,5354213,Baltimore Consulting Ltd,10/05/2018,53102,Agency Staff  Other,Childrens Services,Integrated Commissioning,"7,500.00"
4167967,5387163,Baltimore Consulting Ltd,29/05/2018,53102,Agency Staff  Other,Childrens Services,Integrated Commissioning,"3,000.00"
3124571,5335402,Bank House Care Home#1,08/05/2018,54301,Residential Provision,Adult Services,OA  External Provision Residential,"4,945.40"
3124571,5335376,Bank House Care Home#1,08/05/2018,54301,Residential Provision,Adult Services,OA  External Provision Residential,"2,825.96"
4590014,5335487,Bankfield Care Home,08/05/2018,54301,Residential Provision,Adult Services,OA  External Provision Residential,"2,300.20"
3291629,5384174,Banner Group Ltd,24/05/2018,43032,Office Stationery,Childrens Services,Tonge CC,742.20
2709325,5335400,Bannister Farm Cottage,08/05/2018,54301,Residential Provision,Adult Services,LD Purchaser Residential Care,"30,718.28"
4604158,5370974,Barbour Logic Limited,17/05/2018,40100,Operational Equipment Purchase,Environmental Services,Parking Services  On Street,"9,187.50"
7298,5370995,BARNARDOS,17/05/2018,52000,Vol Assoc Grants  General,Childrens Services,Res Serv Agency Placements,"7,714.29"
1841290,5352650,BARTEC AUTO ID LTD,10/05/2018,45409,Information and Communication Technology,Environmental Services,Waste,"1,900.00"
1841290,5352655,BARTEC AUTO ID LTD,10/05/2018,45409,Information and Communication Technology,Environmental Services,Waste,"1,900.00"
6122,5393860,BCL,31/05/2018,40753,Book Fund Expenditure,Development & Regeneration,Libraries Info. Services,"7,629.36"
776621,5385821,BDO LLP,29/05/2018,47200,General Subscriptions,Chief Executives,Exchequer Services,"2,575.00"
39733,5335422,BEDFORD RESIDENTIAL NURSING CARE HOME,08/05/2018,54302,Nursing Provision,Adult Services,OA  External Provision Residential,"4,790.00"
39733,5335422,BEDFORD RESIDENTIAL NURSING CARE HOME,08/05/2018,54302,Nursing Provision,Adult Services,PD Purchaser Residential Care,"2,492.74"
39733,5335421,BEDFORD RESIDENTIAL NURSING CARE HOME,08/05/2018,54301,Residential Provision,Adult Services,PD Purchaser Residential Care,"2,395.00"
39733,5335421,BEDFORD RESIDENTIAL NURSING CARE HOME,08/05/2018,54301,Residential Provision,Adult Services,OA  External Provision Residential,"2,138.82"
1544379,5335425,BEECHFIELD LODGE#ANCHOR TRUST,08/05/2018,54301,Residential Provision,Adult Services,OA  External Provision Residential,"2,210.35"
247279,5335423,BEECHVILLE CARE HOME,08/05/2018,54301,Residential Provision,Adult Services,OA  External Provision Residential,"28,129.05"
247279,5335423,BEECHVILLE CARE HOME,08/05/2018,54301,Residential Provision,Adult Services,PD Purchaser Residential Care,"3,626.65"
1552722,5335428,BELONG ATHERTON#EPH,08/05/2018,54302,Nursing Provision,Adult Services,MH Residential External Provision,"4,790.00"
1552722,5335427,BELONG ATHERTON#EPH,08/05/2018,54301,Residential Provision,Adult Services,OA  External Provision Residential,"2,395.00"
532537,5353755,BENCHMARK BUILDING SUPPLIES LTD,14/05/2018,Z6007,Z6007 - Inventory AP Accrual,Highways,Stores,"1,319.76"
2387309,5335435,BERKELEY HOUSE,08/05/2018,54302,Nursing Provision,Adult Services,LD Purchaser Residential Care,"18,174.75"
4637992,5348655,Berry RT TA RTB Education Consultancy,10/05/2018,53000,Private Contracted Services,Childrens Services,Educational Improvement - Sec,500.00
4637992,5348658,Berry RT TA RTB Education Consultancy,10/05/2018,53000,Private Contracted Services,Childrens Services,Educational Improvement - Sec,500.00
1493076,5385654,BES REHAB LTD,24/05/2018,44051,Clients Aids & Adaptations,Adult Services,ICES,520.00
6126,5384114,BETHELL CONSTRUCTION LTD,24/05/2018,20501,Engineering Work,Environmental Services,Highway Services,"22,004.63"
6126,5396689,BETHELL CONSTRUCTION LTD,31/05/2018,20501,Engineering Work,Environmental Services,Highway Services,"10,458.07"
6126,5371237,BETHELL CONSTRUCTION LTD,17/05/2018,Z1051,Work in Progress Additions,Highways,Stores,"63,594.25"
6126,5371063,BETHELL CONSTRUCTION LTD,17/05/2018,Z1051,Work in Progress Additions,Highways,Stores,"13,969.02"
6126,5370772,BETHELL CONSTRUCTION LTD,17/05/2018,Z1051,Work in Progress Additions,Highways,Stores,527.89
6126,5355482,BETHELL CONSTRUCTION LTD,14/05/2018,Z1051,Work in Progress Additions,Highways,Stores,517.91
3745690,5385987,Beverley Wood Design Limited,29/05/2018,40601,General Materials,Development & Regeneration,LMA External Funded Projects,"11,377.00"
814638,5370843,BIRKDALE DESIGN LTD,17/05/2018,40110,Op Equip Furniture Purchase,Housing GRF,Furnished Tenancies,780.00
814638,5370836,BIRKDALE DESIGN LTD,17/05/2018,40110,Op Equip Furniture Purchase,Housing GRF,Furnished Tenancies,760.00
814638,5384284,BIRKDALE DESIGN LTD,24/05/2018,40110,Op Equip Furniture Purchase,Housing GRF,Furnished Tenancies,760.00
814638,5384107,BIRKDALE DESIGN LTD,24/05/2018,40110,Op Equip Furniture Purchase,Housing GRF,Furnished Tenancies,638.00
814638,5384294,BIRKDALE DESIGN LTD,24/05/2018,40110,Op Equip Furniture Purchase,Housing GRF,Furnished Tenancies,620.00
814638,5384290,BIRKDALE DESIGN LTD,24/05/2018,40110,Op Equip Furniture Purchase,Housing GRF,Furnished Tenancies,554.00
2906298,5335401,Blackrod House#1,08/05/2018,54301,Residential Provision,Adult Services,OA  External Provision Residential,"45,877.97"
2906298,5335401,Blackrod House#1,08/05/2018,54301,Residential Provision,Adult Services,MH Residential External Provision,"7,910.00"
2906298,5335401,Blackrod House#1,08/05/2018,54301,Residential Provision,Adult Services,PD Purchaser Residential Care,"2,450.00"
2655298,5370984,Bolinda UK Limited,17/05/2018,40753,Book Fund Expenditure,Development & Regeneration,Libraries Info. Services,"13,840.00"
2655298,5384122,Bolinda UK Limited,24/05/2018,40753,Book Fund Expenditure,Development & Regeneration,Libraries Info. Services,"2,500.00"
3291191,5371598,Bolton And Farnworth Church Of England MAT (St James Primary),21/05/2018,19100,Training Exps Tuition Fees,Childrens Services,Quality & inclusion,"1,125.00"
00017258,5387195,BOLTON ARTS FORUM,29/05/2018,47100,Grants to Industry,Development & Regeneration,Art Projects,"5,000.00"
3558671,5372851,Bolton at Home Ltd#RENTS,21/05/2018,44051,Clients Aids & Adaptations,Adult Services,Telecare,"5,096.00"
3558671,5352660,Bolton at Home Ltd#RENTS,10/05/2018,52200,Contracted Services,Childrens Services,Emergency Duty Team,"2,614.34"
3558671,5399679,Bolton at Home Ltd#RENTS,31/05/2018,55700,Grant Funded Expenditure,Environmental Services,Neighbourhood Management Programme,"10,000.00"
3558671,5370926,Bolton at Home Ltd#RENTS,17/05/2018,48509,Other Fees,Environmental Services,Neighbourhood Management Programme,"1,000.00"
7431,5370882,BOLTON BLINDS T/A BLINDTEX,17/05/2018,20105,Painting & Decorating,Childrens Services,Tonge CC,"1,499.17"
247297,5393637,BOLTON BULLETS,31/05/2018,52200,Contracted Services,Childrens Services,Integrated Commissioning,"2,500.00"
7434,5384161,BOLTON CARERS SUPPORT,24/05/2018,52001,Vol Sect Grants  Misc,Adult Services,OA  Carers Grant,"12,375.00"
7434,5354657,BOLTON CARERS SUPPORT,21/05/2018,52000,Vol Assoc Grants  General,Adult Services,OA  Carers Grant,"7,726.25"
8990,5374717,BOLTON CARPET WAREHOUSE,21/05/2018,40100,Operational Equipment Purchase,Housing GRF,Local Welfare Provision Pilot,"1,048.05"
8990,5374716,BOLTON CARPET WAREHOUSE,21/05/2018,40100,Operational Equipment Purchase,Housing GRF,Furnished Tenancies,751.59
8990,5401635,BOLTON CARPET WAREHOUSE,31/05/2018,40100,Operational Equipment Purchase,Housing GRF,Furnished Tenancies,751.59
8990,5401646,BOLTON CARPET WAREHOUSE,31/05/2018,40100,Operational Equipment Purchase,Housing GRF,Local Welfare Provision Pilot,625.50
8990,5348641,BOLTON CARPET WAREHOUSE,10/05/2018,40100,Operational Equipment Purchase,Housing GRF,Local Welfare Provision Pilot,625.50
8990,5374720,BOLTON CARPET WAREHOUSE,21/05/2018,40100,Operational Equipment Purchase,Housing GRF,Local Welfare Provision Pilot,625.50
8990,5374726,BOLTON CARPET WAREHOUSE,21/05/2018,40100,Operational Equipment Purchase,Housing GRF,Local Welfare Provision Pilot,625.50
8990,5401636,BOLTON CARPET WAREHOUSE,31/05/2018,40100,Operational Equipment Purchase,Housing GRF,Furnished Tenancies,564.93
8990,5401641,BOLTON CARPET WAREHOUSE,31/05/2018,40100,Operational Equipment Purchase,Housing GRF,Local Welfare Provision Pilot,521.19
8990,5374714,BOLTON CARPET WAREHOUSE,21/05/2018,40100,Operational Equipment Purchase,Housing GRF,Furnished Tenancies,508.89
7436,5371040,Bolton College#Was Community College,17/05/2018,19100,Training Exps Tuition Fees,Childrens Services,WPD Project Link,600.00
7436,5383788,Bolton College#Was Community College,24/05/2018,52200,Contracted Services,Development & Regeneration,Adult Education,"195,380.00"
7436,5376788,Bolton College#Was Community College,24/05/2018,48509,Other Fees,Development & Regeneration,Adult Education,750.00
7436,5376785,Bolton College#Was Community College,24/05/2018,48509,Other Fees,Development & Regeneration,Adult Education,750.00
7436,5386686,Bolton College#Was Community College,29/05/2018,48509,Other Fees,Development & Regeneration,Adult Education,500.00
43551,5406652,BOLTON COMMUNITY LEISURE LTD,31/05/2018,52200,Contracted Services,Development & Regeneration,The Leisure Trust,"147,448.27"
213906,5374646,BOLTON COMMUNITY RADIO CIC#BOLTON FM CIC,21/05/2018,48203,Marketing,Chief Executives,Marketing - Holding Code,787.50
16302,5383884,BOLTON COMMUNITY TRANSPORT & FURNITURE SERVICES#BCT & FS,24/05/2018,52200,Contracted Services,Environmental Services,Waste,"3,880.00"
16302,5399709,BOLTON COMMUNITY TRANSPORT & FURNITURE SERVICES#BCT & FS,31/05/2018,52000,Vol Assoc Grants  General,Housing GRF,Strat. Housing Unit Other Funding,"10,000.00"
8439,5370821,BOLTON CVS#BOLTON COMMUNITY & VOLUNTARY SERVICES,17/05/2018,52200,Contracted Services,Public Health,PH Commissioning,"15,242.75"
92936,5354670,BOLTON KIDZ2GETHER,21/05/2018,52200,Contracted Services,Childrens Services,Admin Commissioning,"10,000.00"
7411,5354659,BOLTON LADS & GIRLS CLUB,21/05/2018,52200,Contracted Services,Childrens Services,Admin Commissioning,"7,500.00"
7411,5362876,BOLTON LADS & GIRLS CLUB,17/05/2018,52200,Contracted Services,Childrens Services,Childrens Centre  General,"2,000.00"
8709,5384137,BOLTON MUSIC SERVICE#BOLTON COUNCIL,24/05/2018,48509,Other Fees,Childrens Services,Gtr Manchester Music Education Hub,"1,600.00"
8709,5384135,BOLTON MUSIC SERVICE#BOLTON COUNCIL,24/05/2018,48509,Other Fees,Childrens Services,Gtr Manchester Music Education Hub,"1,000.00"
8709,5384129,BOLTON MUSIC SERVICE#BOLTON COUNCIL,24/05/2018,48509,Other Fees,Development & Regeneration,LMA External Funded Projects,720.00
3326627,5370847,Bolton New Care Ltd T/A Home Instead Senior Care,17/05/2018,52200,Contracted Services,Adult Services,OA  Home Care Services external provision,"1,936.00"
3326627,5333116,Bolton New Care Ltd T/A Home Instead Senior Care,03/05/2018,52200,Contracted Services,Adult Services,OA  Home Care Services external provision,"1,309.00"
3210619,5372446,Bolton Pride Limited,21/05/2018,55700,Grant Funded Expenditure,Environmental Services,Community Safety,"1,000.00"
6149,5355093,BOLTON STONE RESTORATION LTD,21/05/2018,Z6008,Expense AP Accrual,Bolton MBC Balance Sheet,Bolton MBC Balance Sheet,"19,701.80"
6149,5384312,BOLTON STONE RESTORATION LTD,24/05/2018,Z6008,Expense AP Accrual,Bolton MBC Balance Sheet,Bolton MBC Balance Sheet,"10,188.50"
6149,5393885,BOLTON STONE RESTORATION LTD,31/05/2018,20100,Day To Day Maintenance,Chief Executives,Admin Buildings Portfolio,588.00
2667328,5371515,Bolton Tree Services,17/05/2018,52200,Contracted Services,Environmental Services,Assets,600.00
2052,5370704,Bolton Under Fives Forum#BUFF,17/05/2018,19100,Training Exps Tuition Fees,Childrens Services,WPD Project Link,650.00
2052,5370707,Bolton Under Fives Forum#BUFF,17/05/2018,19100,Training Exps Tuition Fees,Childrens Services,WPD Project Link,650.00
2052,5384488,Bolton Under Fives Forum#BUFF,24/05/2018,19100,Training Exps Tuition Fees,Childrens Services,WPD Project Link,650.00
6152,5400731,BOLTON WALL & FLOORING LTD,31/05/2018,Z6008,Expense AP Accrual,Bolton MBC Balance Sheet,Bolton MBC Balance Sheet,592.00
7465,5396671,BOLTON YOUNG PERSONS HOUSING SCHEME#BYPHS,31/05/2018,52200,Contracted Services,Adult Services,Supporting People  Capital Financing,"104,698.50"
7465,5353669,BOLTON YOUNG PERSONS HOUSING SCHEME#BYPHS,10/05/2018,52000,Vol Assoc Grants  General,Childrens Services,Res Serv Agency Placements,"1,680.56"
7465,5353667,BOLTON YOUNG PERSONS HOUSING SCHEME#BYPHS,10/05/2018,52000,Vol Assoc Grants  General,Childrens Services,Unaccompanied Asylum Seeking Children,"1,139.00"
2053,5383813,BOOTS THE CHEMIST,24/05/2018,52200,Contracted Services,Public Health,PH Commissioning,508.54
2876373,5384330,Brass Music Teacher#REDACTED - Personal Data,24/05/2018,52200,Contracted Services,Childrens Services,Music ServInstru & Vocal Teach,660.00
1548543,5335426,BRIDEOAKE CARE HOME,08/05/2018,54301,Residential Provision,Adult Services,OA  External Provision Residential,"4,887.74"
461493,5370975,BRIDGEALL LIBRARIES LIMITED#COLLECTIONHQ,17/05/2018,40753,Book Fund Expenditure,Development & Regeneration,Libraries Info. Services,"8,566.00"
4248954,5372647,Bridgewater Home Care,21/05/2018,52200,Contracted Services,Adult Services,OA  Home Care Services external provision,"1,458.00"
4248954,5372650,Bridgewater Home Care,21/05/2018,52200,Contracted Services,Adult Services,OA  Home Care Services external provision,841.00
4248954,5372649,Bridgewater Home Care,21/05/2018,52200,Contracted Services,Adult Services,OA  Home Care Services external provision,592.00
4248954,5372648,Bridgewater Home Care,21/05/2018,52200,Contracted Services,Adult Services,OA  Home Care Services external provision,546.00
1475113,5370985,BRIGHT DIRECTION TRAINING LIMITED,17/05/2018,48509,Other Fees,Development & Regeneration,Skills For Employment,"4,335.00"
243438,5403658,BRIGHT INTERACTIVE LTD,31/05/2018,45431,Computer Software Licences,Chief Executives,Marketing Agency,"1,305.00"
20980,5372888,BRITISH GAS BUSINESS,21/05/2018,21200,Gas  General,Chief Executives,Energy Payments Account,"19,981.58"
4683992,5374685,Broadway House Chambers,24/05/2018,48502,Legal Fees,Childrens Services,Management Team,"2,300.00"
264233,5335424,BROOKFIELD RESIDENTIAL CARE HOME LTD,08/05/2018,54301,Residential Provision,Adult Services,MH Residential External Provision,"2,750.00"
7524,5335420,BROOKVALE,08/05/2018,54301,Residential Provision,Adult Services,LD Purchaser Residential Care,"17,046.85"
6169,5335590,BROTHERS OF CHARITY SERVICES,08/05/2018,54302,Nursing Provision,Adult Services,LD Purchaser Residential Care,"4,521.50"
7528,5335413,BROUGHTON HOUSE#EPH,08/05/2018,54301,Residential Provision,Adult Services,OA  External Provision Residential,"2,210.35"
7529,5335414,BROWFIELD RESIDENTIAL CARE HOME,08/05/2018,54301,Residential Provision,Adult Services,MH Residential External Provision,"4,749.70"
2775307,5384221,Bryn Melyn Care Ltd,24/05/2018,52000,Vol Assoc Grants  General,Childrens Services,Res Serv Agency Placements,"24,268.57"
2775307,5384225,Bryn Melyn Care Ltd,24/05/2018,52000,Vol Assoc Grants  General,Childrens Services,Res Serv Agency Placements,"24,268.57"
121368,5396680,BT OPENREACH,31/05/2018,Z1051,Work in Progress Additions,Development & Regeneration,Development & Regeneration Capital,"140,763.04"
6172,5345640,BT PLC#NOT GLOBAL SERVICES,10/05/2018,25105,Other Security,Environmental Services,NCP CCTV,"4,755.75"
4365964,5333718,Buckhurst Plant Hire Ltd,08/05/2018,33202,Plant Hire,Environmental Services,Highway Services,880.00
1647552,5383877,BUDDI LTD,24/05/2018,44051,Clients Aids & Adaptations,Adult Services,Telecare,"2,730.00"
2794563,5335492,Burger Court,08/05/2018,54301,Residential Provision,Adult Services,MH Residential External Provision,"4,168.00"
1270916,5335618,BURRSWOOD HOUSE,08/05/2018,54301,Residential Provision,Adult Services,OA  External Provision Residential,"4,600.40"
1270916,5335617,BURRSWOOD HOUSE,08/05/2018,54302,Nursing Provision,Adult Services,OA  External Provision Residential,"2,300.20"
6180,5385889,Bury Council,29/05/2018,52200,Contracted Services,Childrens Services,Gtr Manchester Music Education Hub,"70,256.00"
1551594,5372637,BY THE BRIDGE NORTH WEST,21/05/2018,52000,Vol Assoc Grants  General,Childrens Services,Res Serv Agency Placements,"4,386.14"
1551594,5372632,BY THE BRIDGE NORTH WEST,21/05/2018,52000,Vol Assoc Grants  General,Childrens Services,Res Serv Agency Placements,"4,386.14"
1551594,5372635,BY THE BRIDGE NORTH WEST,21/05/2018,52000,Vol Assoc Grants  General,Childrens Services,Res Serv Agency Placements,"4,014.82"
1551594,5372663,BY THE BRIDGE NORTH WEST,21/05/2018,52000,Vol Assoc Grants  General,Childrens Services,Res Serv Agency Placements,"3,969.00"
1551594,5372691,BY THE BRIDGE NORTH WEST,21/05/2018,52000,Vol Assoc Grants  General,Childrens Services,Res Serv Agency Placements,"3,847.50"
1551594,5372693,BY THE BRIDGE NORTH WEST,21/05/2018,52000,Vol Assoc Grants  General,Childrens Services,Res Serv Agency Placements,"3,847.50"
251988,5372910,CALIBRATION & CONSULTANCY SERVICES UK LTD,21/05/2018,40101,Operational Equipment Maint,Environmental Services,Transport Support Service,654.00
16410,5377641,CALLIGRAPHY UK LTD,24/05/2018,40610,Direct Materials,Environmental Services,Bereavement Services,996.28
2779298,5384216,Cambian Childcare Ltd,24/05/2018,52000,Vol Assoc Grants  General,Childrens Services,Res Serv Agency Placements,"28,564.33"
2779298,5384208,Cambian Childcare Ltd,24/05/2018,52000,Vol Assoc Grants  General,Childrens Services,Res Serv Agency Placements,"21,921.34"
2779298,5384205,Cambian Childcare Ltd,24/05/2018,52000,Vol Assoc Grants  General,Childrens Services,Res Serv Agency Placements,"21,257.01"
2779298,5384210,Cambian Childcare Ltd,24/05/2018,52000,Vol Assoc Grants  General,Childrens Services,Res Serv Agency Placements,"14,835.67"
7612,5335583,CAMERON HOUSE CARE HOME,08/05/2018,54301,Residential Provision,Adult Services,OA  External Provision Residential,"4,600.40"
7612,5335583,CAMERON HOUSE CARE HOME,08/05/2018,54301,Residential Provision,Adult Services,PD Purchaser Residential Care,"4,600.40"
4366962,5384314,Capacitygrid#Liberata UK Ltd,24/05/2018,45409,Information and Communication Technology,Chief Executives,Non-Domestic Rating,"1,489.50"
6191,5355135,CAPITA BUSINESS SERVICES LTD,14/05/2018,45401,Computer Maintenance,Childrens Services,Admin Info Mgemnt Unit,"162,682.88"
6191,5362862,CAPITA BUSINESS SERVICES LTD,17/05/2018,45401,Computer Maintenance,Childrens Services,Admin Info Mgemnt Unit,"4,083.35"
266244,5384583,CARE CORNER LIMITED,24/05/2018,26000,Cleaning Materials,Adult Services,Darley Court,"3,480.00"
6196,5384242,CARE TODAY CHILDRENS SERVICE,24/05/2018,52000,Vol Assoc Grants  General,Childrens Services,Res Serv Agency Placements,"27,857.10"
6196,5384274,CARE TODAY CHILDRENS SERVICE,24/05/2018,52000,Vol Assoc Grants  General,Childrens Services,Res Serv Agency Placements,"10,478.70"
6196,5384243,CARE TODAY CHILDRENS SERVICE,24/05/2018,52000,Vol Assoc Grants  General,Childrens Services,Res Serv Agency Placements,"10,478.70"
6196,5384244,CARE TODAY CHILDRENS SERVICE,24/05/2018,52000,Vol Assoc Grants  General,Childrens Services,Res Serv Agency Placements,"1,205.00"
3643687,5370990,Care4Children Residential Services,17/05/2018,52000,Vol Assoc Grants  General,Childrens Services,Res Serv Agency Placements,"24,357.01"
3643687,5370988,Care4Children Residential Services,17/05/2018,52000,Vol Assoc Grants  General,Childrens Services,Res Serv Agency Placements,"23,571.30"
3643687,5370986,Care4Children Residential Services,17/05/2018,52000,Vol Assoc Grants  General,Childrens Services,Res Serv Agency Placements,"21,999.88"
229284,5384437,CAREERVISION LIMITED,24/05/2018,45401,Computer Maintenance,Childrens Services,Admin Info Mgemnt Unit,"30,743.50"
3081464,5353659,Caritas Care Ltd,10/05/2018,52000,Vol Assoc Grants  General,Childrens Services,Res Serv Agency Placements,"2,937.62"
3081464,5406643,Caritas Care Ltd,31/05/2018,52000,Vol Assoc Grants  General,Childrens Services,Res Serv Agency Placements,"2,214.29"
3081464,5353661,Caritas Care Ltd,10/05/2018,52000,Vol Assoc Grants  General,Childrens Services,Res Serv Agency Placements,"1,642.86"
252578,5335613,CARR BANK HOUSE,08/05/2018,54301,Residential Provision,Adult Services,MH Residential External Provision,"2,274.25"
110764,5399693,CASTLE GROUP LTD,31/05/2018,48631,Office Expenses  General,Chief Executives,Health and Safety,520.00
3734693,5353867,CCATS Ltd,10/05/2018,52000,Vol Assoc Grants  General,Childrens Services,Res Serv Agency Placements,"2,880.00"
47524,5333442,CEFNDY HEALTHCARE#CEFNDY ENTERPRISES,03/05/2018,44051,Clients Aids & Adaptations,Adult Services,ICES,793.04
75516,5353890,CEMEX UK MATERIALS LTD,10/05/2018,40601,General Materials,Environmental Services,Highways Maintenance Billable Costs,854.70
4308954,5370872,Central Chambers,17/05/2018,48502,Legal Fees,Childrens Services,Management Team,650.00
9175,5384307,CH Bolton Limited,24/05/2018,48511,Management Fees,Chief Executives,Castle Hill,"9,136.57"
3552699,5384428,Charles Topham & Sons Trading LLP,24/05/2018,Z6011,Z6011 - CR Bal Hold A/c Exp,Environmental Services,Environmental Services Balance sheet,"15,773.04"
2552,5386951,CHARLTONS SWEEPER HIRE LTD,29/05/2018,40610,Direct Materials,Environmental Services,Highway Services,500.00
1048773,5370878,CHESHIRE CENTRE FOR INDEPENDENT LIVING,29/05/2018,53000,Private Contracted Services,Adult Services,Districts & Neighbourhoods - HoS,"10,325.00"
3076771,5335506,Cheshire House,08/05/2018,54302,Nursing Provision,Adult Services,LD Purchaser Residential Care,"14,538.70"
299683,5378645,Cheshire West and Chester Council,24/05/2018,47200,General Subscriptions,Development & Regeneration,Libraries Info. Services,"1,650.00"
6131,5333679,CHILD ACTION NORTHWEST,08/05/2018,52000,Vol Assoc Grants  General,Childrens Services,Disability Serv External Provision,"4,448.19"
6131,5371580,CHILD ACTION NORTHWEST,17/05/2018,52200,Contracted Services,Childrens Services,Youth Offending Team,"1,852.31"
4701113,5395645,Chip & Pin Solutions Limited,31/05/2018,48203,Marketing,Chief Executives,Marketing - Holding Code,"1,050.00"
191679,5335612,CHORLEY LODGE#ORCHARD CARE HOMES.COM LIMITED,08/05/2018,54301,Residential Provision,Adult Services,OA  External Provision Residential,"2,626.90"
1646290,5390911,CHUBB FIRE & SECURITY LTD,29/05/2018,44051,Clients Aids & Adaptations,Adult Services,Telecare,"1,390.50"
3574685,5335525,Church View,08/05/2018,54301,Residential Provision,Adult Services,MH Residential External Provision,"6,829.98"
4041954,5335535,Churchlake Care Ltd - Moorfields Care Home,08/05/2018,54301,Residential Provision,Adult Services,OA  External Provision Residential,"2,300.20"
2030290,5385743,CIVILS & LINTELS,24/05/2018,40610,Direct Materials,Environmental Services,Highways Maintenance Billable Costs,620.95
2566295,5335489,Claremont Lodge,08/05/2018,54301,Residential Provision,Adult Services,OA  External Provision Residential,"2,210.35"
3623684,5384372,CMS Cameron McKenna Nabarro Olswang LLP,24/05/2018,48509,Other Fees,Development & Regeneration,Development Management,"5,159.26"
3623684,5384368,CMS Cameron McKenna Nabarro Olswang LLP,24/05/2018,48509,Other Fees,Development & Regeneration,Development Management,"3,500.00"
6216,5384276,COLAS LTD,24/05/2018,Z6007,Z6007 - Inventory AP Accrual,Highways,Stores,692.16
1796290,5387207,COLLETT TRANSPORT SERVICES LTD#SPECIALIST FLEET SERVICES,29/05/2018,33201,Transport Hire,Environmental Services,Transport Support Service,"2,288.00"
1796290,5356649,COLLETT TRANSPORT SERVICES LTD#SPECIALIST FLEET SERVICES,14/05/2018,36200,Uninsured Losses  Vehicles,Environmental Services,Transport Support Service,624.07
4317955,5353786,Compass Childrens Homes Limited,10/05/2018,52000,Vol Assoc Grants  General,Childrens Services,Res Serv Agency Placements,"4,571.40"
3026369,5372853,Compass Fostering North Limited,21/05/2018,52000,Vol Assoc Grants  General,Childrens Services,Res Serv Agency Placements,"4,655.34"
3026369,5372860,Compass Fostering North Limited,21/05/2018,52000,Vol Assoc Grants  General,Childrens Services,Res Serv Agency Placements,"3,342.90"
3026369,5372861,Compass Fostering North Limited,21/05/2018,52000,Vol Assoc Grants  General,Childrens Services,Res Serv Agency Placements,"3,342.90"
3026369,5372856,Compass Fostering North Limited,21/05/2018,52000,Vol Assoc Grants  General,Childrens Services,Res Serv Agency Placements,"2,571.30"
3026369,5372852,Compass Fostering North Limited,21/05/2018,52000,Vol Assoc Grants  General,Childrens Services,Res Serv Agency Placements,"2,314.17"
2658351,5371610,Compass Minerals UK Ltd,21/05/2018,Z6007,Z6007 - Inventory AP Accrual,Highways,Stores,"32,941.25"
2658351,5355101,Compass Minerals UK Ltd,14/05/2018,Z6007,Z6007 - Inventory AP Accrual,Highways,Stores,"8,188.05"
2658351,5355122,Compass Minerals UK Ltd,14/05/2018,Z6007,Z6007 - Inventory AP Accrual,Highways,Stores,"6,848.55"
2658351,5355132,Compass Minerals UK Ltd,14/05/2018,Z6007,Z6007 - Inventory AP Accrual,Highways,Stores,"6,799.15"
2658351,5378649,Compass Minerals UK Ltd,24/05/2018,Z6007,Z6007 - Inventory AP Accrual,Highways,Stores,"5,577.45"
2658351,5371616,Compass Minerals UK Ltd,24/05/2018,Z6007,Z6007 - Inventory AP Accrual,Highways,Stores,"5,568.40"
2658351,5371617,Compass Minerals UK Ltd,24/05/2018,Z6007,Z6007 - Inventory AP Accrual,Highways,Stores,"4,150.55"
2658351,5386688,Compass Minerals UK Ltd,29/05/2018,Z6007,Z6007 - Inventory AP Accrual,Highways,Stores,"3,267.84"
2658351,5378650,Compass Minerals UK Ltd,24/05/2018,Z6007,Z6007 - Inventory AP Accrual,Highways,Stores,"2,780.65"
2658351,5378651,Compass Minerals UK Ltd,24/05/2018,Z6007,Z6007 - Inventory AP Accrual,Highways,Stores,"2,771.15"
2658351,5378652,Compass Minerals UK Ltd,24/05/2018,Z6007,Z6007 - Inventory AP Accrual,Highways,Stores,"2,707.50"
2658351,5371619,Compass Minerals UK Ltd,24/05/2018,Z6007,Z6007 - Inventory AP Accrual,Highways,Stores,"1,424.05"
2658351,5371611,Compass Minerals UK Ltd,21/05/2018,Z6007,Z6007 - Inventory AP Accrual,Highways,Stores,"1,381.30"
2658351,5378653,Compass Minerals UK Ltd,24/05/2018,Z6007,Z6007 - Inventory AP Accrual,Highways,Stores,"1,374.65"
2658351,5371612,Compass Minerals UK Ltd,24/05/2018,Z6007,Z6007 - Inventory AP Accrual,Highways,Stores,"1,362.30"
2658351,5378654,Compass Minerals UK Ltd,24/05/2018,Z6007,Z6007 - Inventory AP Accrual,Highways,Stores,"1,361.35"
2658351,5378655,Compass Minerals UK Ltd,24/05/2018,Z6007,Z6007 - Inventory AP Accrual,Highways,Stores,"1,355.65"
2643324,5400658,Complete Background Screening Ltd#CBS,31/05/2018,19400,Disclosure Monitoring,Chief Executives,HR - Corporate,769.50
2643324,5387343,Complete Background Screening Ltd#CBS,29/05/2018,19400,Disclosure Monitoring,Chief Executives,HR - Corporate,555.00
1862301,5335620,CONISTON HOUSE CARE HOME,08/05/2018,54301,Residential Provision,Adult Services,OA  External Provision Residential,"4,619.30"
3754702,5334000,Continuum Support#Leaving Care Ltd,08/05/2018,52200,Contracted Services,Adult Services,MH Residential Network,"7,167.76"
3754702,5333999,Continuum Support#Leaving Care Ltd,08/05/2018,52200,Contracted Services,Adult Services,MH Residential Network,"1,820.00"
3754702,5333998,Continuum Support#Leaving Care Ltd,08/05/2018,52200,Contracted Services,Adult Services,MH Residential External Provision,"1,300.00"
3754702,5354863,Continuum Support#Leaving Care Ltd,14/05/2018,52000,Vol Assoc Grants  General,Childrens Services,Res Serv Agency Placements,"10,287.76"
3754702,5398635,Continuum Support#Leaving Care Ltd,31/05/2018,52000,Vol Assoc Grants  General,Childrens Services,Res Serv Agency Placements,"10,287.76"
2212385,5397642,CORAL PRODUCTS (MOULDINGS) LTD,31/05/2018,Z1051,Work in Progress Additions,Environmental Services,Environmental Services Balance sheet,"5,286.60"
91550,5362863,CORNERSTONE SURGERY#P82627,17/05/2018,52200,Contracted Services,Public Health,PH Commissioning,"1,430.00"
6227,5335591,CORNERSTONE TRUST,08/05/2018,54301,Residential Provision,Adult Services,LD Purchaser Residential Care,"25,516.00"
3460650,5335520,Cotleigh Residential Home,08/05/2018,54301,Residential Provision,Adult Services,OA  External Provision Residential,"2,190.00"
2876322,5384198,Courtyard Care Ltd#1,24/05/2018,52000,Vol Assoc Grants  General,Childrens Services,Res Serv Agency Placements,"7,296.01"
1609294,5369642,CRAEMER UK LTD,17/05/2018,Z1051,Work in Progress Additions,Environmental Services,Environmental Services Balance sheet,"10,296.00"
1609294,5372839,CRAEMER UK LTD,21/05/2018,Z1051,Work in Progress Additions,Environmental Services,Environmental Services Balance sheet,"7,800.00"
1609294,5370972,CRAEMER UK LTD,17/05/2018,Z1051,Work in Progress Additions,Environmental Services,Environmental Services Balance sheet,"6,396.00"
1609294,5390905,CRAEMER UK LTD,29/05/2018,Z1051,Work in Progress Additions,Environmental Services,Environmental Services Balance sheet,871.20
419294,5372817,CRAVEN ROOFING CONTRACTORS,21/05/2018,20100,Day To Day Maintenance,Chief Executives,Admin Buildings Portfolio,"23,192.00"
6233,5333126,CREATIVE SUPPORT LTD#3,03/05/2018,52200,Contracted Services,Adult Services,LD Provider  Supported Housing,"30,752.21"
6233,5333128,CREATIVE SUPPORT LTD#3,03/05/2018,52200,Contracted Services,Adult Services,LD Provider  Supported Housing,"18,195.58"
6233,5333123,CREATIVE SUPPORT LTD#3,03/05/2018,52200,Contracted Services,Adult Services,LD Provider  Supported Housing,"17,325.00"
6233,5333131,CREATIVE SUPPORT LTD#3,03/05/2018,52200,Contracted Services,Adult Services,LD Purchaser Supported Housing,"9,769.60"
6233,5333126,CREATIVE SUPPORT LTD#3,03/05/2018,52200,Contracted Services,Adult Services,LD Purchaser Supported Housing,"7,700.00"
6233,5333130,CREATIVE SUPPORT LTD#3,03/05/2018,52200,Contracted Services,Adult Services,MH Residential External Provision,"5,293.90"
6233,5333130,CREATIVE SUPPORT LTD#3,03/05/2018,52200,Contracted Services,Adult Services,MH Residential Network,"4,688.75"
6233,5333128,CREATIVE SUPPORT LTD#3,03/05/2018,52200,Contracted Services,Adult Services,LD Purchaser Supported Housing,"4,169.20"
6233,5333123,CREATIVE SUPPORT LTD#3,03/05/2018,52200,Contracted Services,Adult Services,LD Purchaser Supported Housing,"3,850.00"
6233,5333133,CREATIVE SUPPORT LTD#3,03/05/2018,52200,Contracted Services,Adult Services,LD Provider  Supported Housing,"3,536.32"
6233,5333125,CREATIVE SUPPORT LTD#3,03/05/2018,52200,Contracted Services,Adult Services,LD Purchaser Supported Housing,"2,182.46"
6233,5333127,CREATIVE SUPPORT LTD#3,03/05/2018,52200,Contracted Services,Adult Services,LD Purchaser Supported Housing,"2,182.46"
6233,5333124,CREATIVE SUPPORT LTD#3,03/05/2018,52200,Contracted Services,Adult Services,LD Purchaser Supported Housing,"2,182.46"
6233,5333129,CREATIVE SUPPORT LTD#3,03/05/2018,52200,Contracted Services,Adult Services,MH Residential External Provision,"2,182.46"
6233,5333132,CREATIVE SUPPORT LTD#3,03/05/2018,52200,Contracted Services,Adult Services,LD Purchaser Supported Housing,"1,049.58"
2096,5371031,CREST ENVIRONMENTAL LTD,17/05/2018,20100,Day To Day Maintenance,Environmental Services,Assets,"2,935.00"
2096,5353752,CREST ENVIRONMENTAL LTD,10/05/2018,52200,Contracted Services,Environmental Services,Activities and Operations,575.00
2511617,5372659,CRG Limited#Homecare,31/05/2018,52200,Contracted Services,Adult Services,OA  Home Care Services external provision,"22,296.22"
2511617,5372659,CRG Limited#Homecare,31/05/2018,52200,Contracted Services,Adult Services,PD Purcahser Domiciliary Care,"13,274.31"
2511617,5372661,CRG Limited#Homecare,31/05/2018,52200,Contracted Services,Adult Services,OA  Home Care Services external provision,"5,328.86"
2511617,5372658,CRG Limited#Homecare,31/05/2018,52200,Contracted Services,Adult Services,OA  Home Care Services external provision,"1,653.30"
2511617,5372659,CRG Limited#Homecare,31/05/2018,52200,Contracted Services,Adult Services,MH Homecare,"1,245.42"
2511617,5372661,CRG Limited#Homecare,31/05/2018,52200,Contracted Services,Adult Services,PD Purcahser Domiciliary Care,735.25
4094960,5335408,Crispin Court,08/05/2018,54301,Residential Provision,Adult Services,OA  External Provision Residential,"5,370.00"
2788,5384130,CROMWELL POLYTHENE LTD,24/05/2018,40601,General Materials,Environmental Services,Activities and Operations,627.20
3456728,5335404,Crystal Hall Care Home,08/05/2018,54302,Nursing Provision,Adult Services,MH Residential External Provision,"4,125.00"
245818,5370903,CUMBERLAND & WESTMORLAND SCHOOLS LIMITED,17/05/2018,34402,Clients  Taxi Fares,Environmental Services,Vulnerable Persons Transport,"2,149.14"
4361955,5333582,Curtain Call Commercial Limited,14/05/2018,20103,Day To Day Maintenance Structural,Chief Executives,Admin Buildings Portfolio,821.78
242608,5385907,CYCLESCHEME.CO.UK,29/05/2018,31150,Cycle Purchase,Chief Executives,Cycle to Work Scheme,820.83
3134566,5358689,DAC Beachcroft LLP,14/05/2018,48502,Legal Fees,Chief Executives,Business Support,"3,968.00"
3134566,5384073,DAC Beachcroft LLP,24/05/2018,48502,Legal Fees,Chief Executives,Land and Property Portfolios,"1,149.00"
3283659,5358647,Dagmar Hartshorn Psychological Services,14/05/2018,48509,Other Fees,Adult Services,LD Purchaser Supported Housing,"2,022.50"
2934,5384691,DAYTRIPPERS,24/05/2018,52200,Contracted Services,Childrens Services,Admin Commissioning,"2,500.00"
111640,5397640,DBD MECHANICAL & ELECTRICAL BUILDING SERVICES,31/05/2018,20100,Day To Day Maintenance,Environmental Services,Bereavement Services,"4,496.00"
3741695,5384134,dbnAudile Limited,24/05/2018,48509,Other Fees,Environmental Services,Albert Halls  Operations,"34,077.88"
3741695,5384133,dbnAudile Limited,24/05/2018,48509,Other Fees,Environmental Services,Albert Halls  Operations,"12,383.10"
3741695,5384150,dbnAudile Limited,24/05/2018,48509,Other Fees,Environmental Services,Albert Halls  Operations,"2,203.00"
3741695,5384149,dbnAudile Limited,24/05/2018,48509,Other Fees,Environmental Services,Albert Halls  Operations,"1,477.26"
225897,5362805,DEANE CLINIC HEALTHCARE LIMITED,17/05/2018,52200,Contracted Services,Public Health,PH Commissioning,898.00
2731305,5355144,Deans Court Chambers,14/05/2018,48502,Legal Fees,Environmental Services,Regulatory Services Licensing,700.00
1645336,5364659,DEFENSIVE DRIVER TRAINING LTD,17/05/2018,19100,Training Exps Tuition Fees,Environmental Services,Transport Support Service,531.25
1645336,5383901,DEFENSIVE DRIVER TRAINING LTD,24/05/2018,19100,Training Exps Tuition Fees,Environmental Services,Transport Support Service,531.25
3389633,5335519,Dene Brook,08/05/2018,54301,Residential Provision,Adult Services,LD Purchaser Residential Care,"1,935.00"
8130,5386374,Derbyshire County Council,29/05/2018,52300,Client Support Costs,Childrens Services,Child Prot Leaving Care Team,603.75
398011,5370870,DESIGN SURVEYING PARTNERSHIP LTD,17/05/2018,Z1051,Work in Progress Additions,Development & Regeneration,Development & Regeneration Capital,"6,875.00"
398011,5384136,DESIGN SURVEYING PARTNERSHIP LTD,24/05/2018,Z1051,Work in Progress Additions,Property Services,Corporate Property Capital Project Transfers to Other Projects,"8,979.78"
2991,5371048,DESTITUTE ANIMAL SHELTER,24/05/2018,52200,Contracted Services,Environmental Services,Activities and Operations,"7,541.00"
2991,5370940,DESTITUTE ANIMAL SHELTER,24/05/2018,52200,Contracted Services,Environmental Services,Activities and Operations,"1,040.00"
3860973,5372645,Diamond Care Services Ltd,21/05/2018,52200,Contracted Services,Adult Services,OA  Home Care Services external provision,"1,095.15"
3860973,5343668,Diamond Care Services Ltd,10/05/2018,52200,Contracted Services,Adult Services,OA  Home Care Services external provision,802.68
3860973,5343665,Diamond Care Services Ltd,10/05/2018,52200,Contracted Services,Adult Services,OA  Home Care Services external provision,651.89
3425630,5393803,Dignity in Life Ltd#DIL Foundation,31/05/2018,52200,Contracted Services,Adult Services,PD Purcahser Domiciliary Care,"2,074.60"
3425630,5393797,Dignity in Life Ltd#DIL Foundation,31/05/2018,52200,Contracted Services,Adult Services,PD Purcahser Domiciliary Care,"1,886.60"
3425630,5393799,Dignity in Life Ltd#DIL Foundation,31/05/2018,52200,Contracted Services,Adult Services,PD Purcahser Domiciliary Care,"1,503.99"
3425630,5393805,Dignity in Life Ltd#DIL Foundation,31/05/2018,52200,Contracted Services,Adult Services,PD Purcahser Domiciliary Care,"1,377.00"
3425630,5393798,Dignity in Life Ltd#DIL Foundation,31/05/2018,52200,Contracted Services,Adult Services,OA  Home Care Services external provision,"1,284.35"
3425630,5393796,Dignity in Life Ltd#DIL Foundation,31/05/2018,52200,Contracted Services,Adult Services,OA  Home Care Services external provision,"1,258.12"
3425630,5358652,Dignity in Life Ltd#DIL Foundation,14/05/2018,52200,Contracted Services,Adult Services,OA  Home Care Services external provision,"1,255.99"
3425630,5370848,Dignity in Life Ltd#DIL Foundation,17/05/2018,52200,Contracted Services,Adult Services,PD Purcahser Domiciliary Care,"1,022.54"
3425630,5358653,Dignity in Life Ltd#DIL Foundation,14/05/2018,52200,Contracted Services,Adult Services,OA  Home Care Services external provision,947.85
3425630,5358650,Dignity in Life Ltd#DIL Foundation,14/05/2018,52200,Contracted Services,Adult Services,OA  Home Care Services external provision,788.10
3425630,5393801,Dignity in Life Ltd#DIL Foundation,31/05/2018,52200,Contracted Services,Adult Services,OA  Home Care Services external provision,742.84
3425630,5358654,Dignity in Life Ltd#DIL Foundation,14/05/2018,52200,Contracted Services,Adult Services,OA  Home Care Services external provision,731.30
3425630,5393802,Dignity in Life Ltd#DIL Foundation,31/05/2018,52200,Contracted Services,Adult Services,OA  Home Care Services external provision,648.00
3425630,5393804,Dignity in Life Ltd#DIL Foundation,31/05/2018,52200,Contracted Services,Adult Services,OA  Home Care Services external provision,522.20
72100,5335606,DOVE COURT RESIDENTIAL & NURSING HOME,08/05/2018,54301,Residential Provision,Adult Services,OA  External Provision Residential,"2,448.80"
4614132,5355592,Dr Andrew John Wright,14/05/2018,55711,Medical Referees Fees,Environmental Services,Bereavement Services,"3,800.00"
2164296,5362836,DR LOWE & PARTNERS,17/05/2018,52200,Contracted Services,Public Health,PH Commissioning,"1,230.00"
2957303,5374701,DRA Cloud Limited,21/05/2018,19106,Corporate Training,Childrens Services,Admin Info Mgemnt Unit,900.00
24798,5371857,DRAIN DOCTOR PLUMBING DRAINAGE INVESTIGATIONS & SOLUTIONS NW LTD,21/05/2018,Z6008,Expense AP Accrual,Bolton MBC Balance Sheet,Bolton MBC Balance Sheet,"3,680.00"
24798,5385826,DRAIN DOCTOR PLUMBING DRAINAGE INVESTIGATIONS & SOLUTIONS NW LTD,29/05/2018,Z6008,Expense AP Accrual,Bolton MBC Balance Sheet,Bolton MBC Balance Sheet,975.00
24798,5371878,DRAIN DOCTOR PLUMBING DRAINAGE INVESTIGATIONS & SOLUTIONS NW LTD,21/05/2018,Z6008,Expense AP Accrual,Bolton MBC Balance Sheet,Bolton MBC Balance Sheet,685.00
3327627,5371820,Drive Devilbiss Healthcare Limited,21/05/2018,44051,Clients Aids & Adaptations,Adult Services,ICES,"2,200.00"
3327627,5371705,Drive Devilbiss Healthcare Limited,29/05/2018,44051,Clients Aids & Adaptations,Adult Services,ICES,"2,200.00"
3327627,5371825,Drive Devilbiss Healthcare Limited,21/05/2018,44051,Clients Aids & Adaptations,Adult Services,ICES,"1,840.00"
3327627,5371673,Drive Devilbiss Healthcare Limited,21/05/2018,44051,Clients Aids & Adaptations,Adult Services,ICES,"1,555.00"
3327627,5371827,Drive Devilbiss Healthcare Limited,29/05/2018,44051,Clients Aids & Adaptations,Adult Services,ICES,"1,555.00"
4364957,5335538,Dundoran Nursing Home,08/05/2018,54302,Nursing Provision,Adult Services,OA  External Provision Residential,"2,665.00"
245548,5394689,DURABLE LTD,31/05/2018,20106,Glazing,Chief Executives,Adult Social Care Portfolio,"1,068.53"
245548,5394695,DURABLE LTD,31/05/2018,20106,Glazing,Chief Executives,Annual Charge Holding Account,999.73
3193,5399700,Durham County Council,31/05/2018,52000,Vol Assoc Grants  General,Childrens Services,Res Serv Agency Placements,"29,850.00"
3193,5371000,Durham County Council,17/05/2018,52000,Vol Assoc Grants  General,Childrens Services,Res Serv Agency Placements,"27,745.00"
3979953,5371071,Durston Garden Products Ltd,17/05/2018,40609,Horticultural Materials,Environmental Services,Heaton Fold,627.75
36496,5371926,DX NETWORK SERVICES LTD,21/05/2018,40753,Book Fund Expenditure,Development & Regeneration,Libraries Info. Services,"2,500.00"
3209,5383913,E N COXHEAD LTD,24/05/2018,40609,Horticultural Materials,Environmental Services,Heaton Fold,"1,286.00"
3209,5386670,E N COXHEAD LTD,29/05/2018,40609,Horticultural Materials,Environmental Services,Heaton Fold,701.20
3209,5376794,E N COXHEAD LTD,24/05/2018,40609,Horticultural Materials,Environmental Services,Heaton Fold,557.60
21961,5372892,E.ON ENERGY#2,21/05/2018,21200,Gas  General,Housing GRF,Dispersed Properties,514.71
2876389,5370873,East Riding Horticulture Ltd,17/05/2018,40609,Horticultural Materials,Environmental Services,Heaton Fold,"1,733.40"
183862,5371439,EASYLINK UK,24/05/2018,44051,Clients Aids & Adaptations,Adult Services,Telecare,"1,037.00"
9564,5335597,ECCLESHOLME,08/05/2018,54301,Residential Provision,Adult Services,OA  External Provision Residential,"4,420.70"
10232,5372872,ECE CONSULTANCY LTD,21/05/2018,20500,R & M Cremators,Environmental Services,Bereavement Services,"21,865.00"
10232,5362858,ECE CONSULTANCY LTD,17/05/2018,20500,R & M Cremators,Environmental Services,Bereavement Services,651.00
1147813,5387137,ECM EDUCATION CONSULTANTS LTD,29/05/2018,52200,Contracted Services,Childrens Services,SIPs,600.00
15089,5384413,ECON ENGINEERING LIMITED,24/05/2018,33203,Contract Hire,Environmental Services,Transport Support Service,"2,103.66"
15089,5384116,ECON ENGINEERING LIMITED,24/05/2018,33203,Contract Hire,Environmental Services,Transport Support Service,"1,832.22"
3544670,5335524,Eden Mansions,08/05/2018,54301,Residential Provision,Adult Services,OA  External Provision Residential,"4,750.00"
6286,5354665,EGBERT H TAYLOR & CO LTD,14/05/2018,Z1051,Work in Progress Additions,Environmental Services,Environmental Services Balance sheet,"11,774.20"
2921304,5365636,Ellanday Nurseries Ltd,17/05/2018,48509,Other Fees,Childrens Services,Start Well: Assessment & Contact Team,"1,384.75"
2921304,5365638,Ellanday Nurseries Ltd,17/05/2018,48509,Other Fees,Childrens Services,Start Well: Assessment & Contact Team,979.75
2921304,5370913,Ellanday Nurseries Ltd,17/05/2018,48509,Other Fees,Childrens Services,Start Well: Assessment & Contact Team,501.00
6635,5335581,ELLERSHAW HOUSE LTD,08/05/2018,54301,Residential Provision,Adult Services,LD Purchaser Residential Care,"11,738.00"
225501,5386053,ELYGRA MARKETING SERVICES#ELYGRA LIMITED,29/05/2018,48203,Marketing,Environmental Services,Catering,"1,550.00"
8412,5386558,EMO OIL LTD#WAS SHELL OIL,29/05/2018,Z6007,Z6007 - Inventory AP Accrual,Highways,Stores,"1,325.53"
15897,5371160,ENCYCLOPAEDIA BRITANNICA (UK) LTD,17/05/2018,40753,Book Fund Expenditure,Development & Regeneration,Libraries Info. Services,"2,576.00"
2993461,5386634,Enterprise Flex-E-Rent,29/05/2018,33201,Transport Hire,Environmental Services,Transport Support Service,646.80
2993461,5386627,Enterprise Flex-E-Rent,29/05/2018,33201,Transport Hire,Environmental Services,Transport Support Service,646.80
2993461,5386639,Enterprise Flex-E-Rent,29/05/2018,33201,Transport Hire,Environmental Services,Transport Support Service,646.80
2993461,5386636,Enterprise Flex-E-Rent,29/05/2018,33201,Transport Hire,Environmental Services,Transport Support Service,562.80
3325,5375642,ENVIRONMENT AGENCY,24/05/2018,48509,Other Fees,Chief Executives,CRC - Carbon Trading,"1,290.00"
3325,5343673,ENVIRONMENT AGENCY,10/05/2018,22202,Sewerage & Env'mental Servs,Environmental Services,Assets,"2,052.00"
14143,5372876,EQUITA LIMITED,21/05/2018,48509,Other Fees,Chief Executives,Non-Domestic Rating,"1,234.05"
14143,5399756,EQUITA LIMITED,31/05/2018,48509,Other Fees,Chief Executives,Non-Domestic Rating,"1,047.58"
14143,5385754,EQUITA LIMITED,24/05/2018,48509,Other Fees,Environmental Services,Parking Services  On Street,"1,345.45"
14143,5371342,EQUITA LIMITED,17/05/2018,48509,Other Fees,Environmental Services,Parking Services  On Street,"1,185.61"
14143,5353638,EQUITA LIMITED,10/05/2018,48509,Other Fees,Environmental Services,Parking Services  On Street,658.68
2775304,5384131,Eric Wright Civil Engineering Ltd,24/05/2018,20501,Engineering Work,Environmental Services,Highway Management,"48,289.00"
362467,5384104,ERIC WRIGHT FACILITIES MANAGEMENT,24/05/2018,21200,Gas  General,Development & Regeneration,BoltonOne Leisure,"9,368.71"
362467,5355099,ERIC WRIGHT FACILITIES MANAGEMENT,14/05/2018,22001,Buildings Service Charge,Development & Regeneration,Libraries - Breightmet,"7,888.38"
362467,5384104,ERIC WRIGHT FACILITIES MANAGEMENT,24/05/2018,21100,Electricity  General,Development & Regeneration,BoltonOne Leisure,"6,473.76"
362467,5384104,ERIC WRIGHT FACILITIES MANAGEMENT,24/05/2018,22200,Water Charges  Metered,Development & Regeneration,BoltonOne Leisure,"6,198.86"
362467,5384410,ERIC WRIGHT FACILITIES MANAGEMENT,24/05/2018,40613,Goods for Resale,Development & Regeneration,BoltonOne Leisure,"3,822.41"
4612992,5384202,Esland North Limited,24/05/2018,52000,Vol Assoc Grants  General,Childrens Services,Res Serv Agency Placements,"30,557.14"
4612992,5372615,Esland North Limited,21/05/2018,52000,Vol Assoc Grants  General,Childrens Services,Res Serv Agency Placements,895.71
2315304,5353856,EUKHOST LTD,10/05/2018,48509,Other Fees,Chief Executives,Web Team,"1,473.33"
2939322,5353880,Event Services NW Limited,10/05/2018,48203,Marketing,Chief Executives,Marketing - Holding Code,"3,074.00"
3559672,5333417,Eversheds Sutherland (International) LLP,03/05/2018,48509,Other Fees,Chief Executives,Bolton Cares Recharges,"1,155.00"
1579359,5370928,EXCLUSEC SECURITY SOLUTIONS LTD,29/05/2018,48509,Other Fees,Environmental Services,Regulatory Services,"2,293.20"
1579359,5370932,EXCLUSEC SECURITY SOLUTIONS LTD,29/05/2018,53102,Agency Staff  Other,Environmental Services,Security Services,"1,695.75"
1579359,5370928,EXCLUSEC SECURITY SOLUTIONS LTD,29/05/2018,25105,Other Security,Environmental Services,Community Safety,"1,060.50"
3541646,5367639,Expert Roofing & Guttering Ltd,17/05/2018,20101,Programmed Maint. Work,Development & Regeneration,Middlebrook Arena,"1,720.00"
1330970,5383937,EXPRESS ELECTRICAL DISTRIBUTORS LTD#NEW COMPANY,24/05/2018,40610,Direct Materials,Environmental Services,Lighting / Stores Billable Costs,"1,125.00"
3376,5384534,F R SHARROCK LTD#SHARROCKS,24/05/2018,40100,Operational Equipment Purchase,Environmental Services,Bereavement Services,"7,995.00"
3376,5370685,F R SHARROCK LTD#SHARROCKS,17/05/2018,40102,Operational Equipment Rental,Environmental Services,Activities and Operations,"4,997.49"
3376,5384111,F R SHARROCK LTD#SHARROCKS,24/05/2018,40102,Operational Equipment Rental,Environmental Services,Activities and Operations,"4,997.49"
3376,5385766,F R SHARROCK LTD#SHARROCKS,24/05/2018,52200,Contracted Services,Environmental Services,Activities and Operations,"2,882.00"
3376,5384105,F R SHARROCK LTD#SHARROCKS,24/05/2018,40100,Operational Equipment Purchase,Environmental Services,Bereavement Services,875.00
3376,5384098,F R SHARROCK LTD#SHARROCKS,24/05/2018,40100,Operational Equipment Purchase,Environmental Services,Activities and Operations,860.00
3376,5370685,F R SHARROCK LTD#SHARROCKS,17/05/2018,40102,Operational Equipment Rental,Environmental Services,Bereavement Services,510.00
3376,5384111,F R SHARROCK LTD#SHARROCKS,24/05/2018,40102,Operational Equipment Rental,Environmental Services,Bereavement Services,510.00
1555984,5374698,FAUN ZOELLER (UK) LTD,21/05/2018,31305,Vehicle Servicing,Environmental Services,Transport Support Service,"1,252.75"
1555984,5390915,FAUN ZOELLER (UK) LTD,29/05/2018,31305,Vehicle Servicing,Environmental Services,Transport Support Service,"1,000.00"
1555984,5374688,FAUN ZOELLER (UK) LTD,21/05/2018,52200,Contracted Services,Environmental Services,Transport Support Service,942.75
1555984,5374692,FAUN ZOELLER (UK) LTD,21/05/2018,31305,Vehicle Servicing,Environmental Services,Transport Support Service,556.02
4663074,5370734,Featherbed Cottages,24/05/2018,19000,Recruitment Advertising,Childrens Services,Regional Adoption Agency (RAA),500.00
3023367,5335502,Fernbank Lodge,08/05/2018,54301,Residential Provision,Adult Services,MH Residential External Provision,"4,000.00"
33405,5393842,First Call Nursing Agency,31/05/2018,52200,Contracted Services,Adult Services,OA  Home Care Services external provision,641.00
33405,5393831,First Call Nursing Agency,31/05/2018,52200,Contracted Services,Adult Services,OA  Home Care Services external provision,607.60
33405,5393843,First Call Nursing Agency,31/05/2018,52200,Contracted Services,Adult Services,OA  Home Care Services external provision,584.50
33405,5393844,First Call Nursing Agency,31/05/2018,52200,Contracted Services,Adult Services,OA  Home Care Services external provision,584.50
33405,5393830,First Call Nursing Agency,31/05/2018,52200,Contracted Services,Adult Services,PD Purcahser Domiciliary Care,502.20
1942316,5372867,FIRST DATA GLOBAL SERVICES,21/05/2018,45431,Computer Software Licences,Chief Executives,Exchequer Services,"15,000.00"
2615318,5372565,Focus Print & Marketing,21/05/2018,43032,Office Stationery,Chief Executives,Exchequer Services,"1,269.00"
3494643,5367666,Ford Retail Ltd T/A Trust Ford,17/05/2018,Z1051,Work in Progress Additions,Environmental Services,Environmental Services Balance sheet,"50,642.60"
3494643,5384287,Ford Retail Ltd T/A Trust Ford,24/05/2018,Z1051,Work in Progress Additions,Environmental Services,Environmental Services Balance sheet,"27,443.80"
3494643,5383991,Ford Retail Ltd T/A Trust Ford,24/05/2018,Z1051,Work in Progress Additions,Environmental Services,Environmental Services Balance sheet,"23,858.80"
2535348,5385845,Forensic Testing Service Ltd,29/05/2018,48509,Other Fees,Childrens Services,Management Team,802.00
261782,5384326,FORTALICE LTD#BOLTON WOMENS AID,24/05/2018,52200,Contracted Services,Adult Services,Supporting People  Capital Financing,"54,250.00"
3518644,5384468,Fortuna Catering & Events Ltd,24/05/2018,41101,Catering ProvisionsFood,Environmental Services,Albert Halls  Operations,817.00
3518644,5384465,Fortuna Catering & Events Ltd,24/05/2018,41101,Catering ProvisionsFood,Environmental Services,Albert Halls  Operations,750.00
2278295,5335626,FOSSE BANK HOUSE,08/05/2018,54301,Residential Provision,Adult Services,MH Residential External Provision,"5,824.40"
3463,5372720,FOSTER CARE ASSOCIATES LTD,21/05/2018,52000,Vol Assoc Grants  General,Childrens Services,Res Serv Agency Placements,"2,970.00"
3463,5372715,FOSTER CARE ASSOCIATES LTD,21/05/2018,52000,Vol Assoc Grants  General,Childrens Services,Res Serv Agency Placements,"2,821.50"
3463,5345761,FOSTER CARE ASSOCIATES LTD,10/05/2018,52000,Vol Assoc Grants  General,Childrens Services,Res Serv Agency Placements,"1,287.00"
3463,5345759,FOSTER CARE ASSOCIATES LTD,10/05/2018,52000,Vol Assoc Grants  General,Childrens Services,Res Serv Agency Placements,"1,222.65"
3025364,5345780,Fostering Ltd,10/05/2018,52000,Vol Assoc Grants  General,Childrens Services,Res Serv Agency Placements,799.00
3025364,5353673,Fostering Ltd,10/05/2018,52000,Vol Assoc Grants  General,Childrens Services,Res Serv Agency Placements,799.00
3025364,5345777,Fostering Ltd,10/05/2018,52000,Vol Assoc Grants  General,Childrens Services,Res Serv Agency Placements,799.00
3025364,5353679,Fostering Ltd,10/05/2018,52000,Vol Assoc Grants  General,Childrens Services,Res Serv Agency Placements,799.00
3025364,5345778,Fostering Ltd,10/05/2018,52000,Vol Assoc Grants  General,Childrens Services,Res Serv Agency Placements,799.00
3025364,5345782,Fostering Ltd,10/05/2018,52000,Vol Assoc Grants  General,Childrens Services,Res Serv Agency Placements,727.50
3025364,5345797,Fostering Ltd,10/05/2018,52000,Vol Assoc Grants  General,Childrens Services,Res Serv Agency Placements,727.50
3025364,5345794,Fostering Ltd,10/05/2018,52000,Vol Assoc Grants  General,Childrens Services,Res Serv Agency Placements,727.50
3025364,5345798,Fostering Ltd,10/05/2018,52000,Vol Assoc Grants  General,Childrens Services,Res Serv Agency Placements,727.50
3025364,5345795,Fostering Ltd,10/05/2018,52000,Vol Assoc Grants  General,Childrens Services,Res Serv Agency Placements,727.50
3025364,5345799,Fostering Ltd,10/05/2018,52000,Vol Assoc Grants  General,Childrens Services,Res Serv Agency Placements,727.50
2679341,5371447,Fostering People Ltd,17/05/2018,52000,Vol Assoc Grants  General,Childrens Services,Res Serv Agency Placements,"3,095.23"
6320,5335543,FOUR SEASONS NURSING HOME,08/05/2018,54301,Residential Provision,Adult Services,OA  External Provision Residential,"66,309.99"
6320,5335542,FOUR SEASONS NURSING HOME,08/05/2018,54302,Nursing Provision,Adult Services,OA  External Provision Residential,"40,043.94"
6320,5335543,FOUR SEASONS NURSING HOME,08/05/2018,54301,Residential Provision,Adult Services,PD Purchaser Residential Care,"18,015.71"
6320,5335542,FOUR SEASONS NURSING HOME,08/05/2018,54302,Nursing Provision,Adult Services,MH Residential External Provision,"10,708.57"
6320,5335542,FOUR SEASONS NURSING HOME,08/05/2018,54302,Nursing Provision,Adult Services,PD Purchaser Residential Care,"8,030.00"
6320,5335543,FOUR SEASONS NURSING HOME,08/05/2018,54301,Residential Provision,Adult Services,MH Residential External Provision,"3,111.43"
2515326,5371525,FRONTIER THERAPEUTICS,29/05/2018,44051,Clients Aids & Adaptations,Adult Services,ICES,"2,360.00"
3507648,5362865,Fusion Care Ltd,17/05/2018,52000,Vol Assoc Grants  General,Childrens Services,Res Serv Agency Placements,"2,978.57"
3510,5384275,G & S SMIRTHWAITE LTD,24/05/2018,44051,Clients Aids & Adaptations,Adult Services,ICES,537.00
3510,5384279,G & S SMIRTHWAITE LTD,24/05/2018,44051,Clients Aids & Adaptations,Adult Services,ICES,537.00
3590695,5371061,G4S Cash Solutions (UK) Ltd,17/05/2018,44402,Security Cash Collection,Chief Executives,CSD Cashiers,"5,984.10"
1432045,5370798,GARDINER & THEOBALD LLP,17/05/2018,Z1051,Work in Progress Additions,Development & Regeneration,Development & Regeneration Capital,"2,891.00"
220061,5371037,GATENBYSANDERSON,17/05/2018,52200,Contracted Services,Childrens Services,Admin Directorate,"18,792.00"
220061,5371038,GATENBYSANDERSON,17/05/2018,53102,Agency Staff  Other,Environmental Services,DMT,"10,024.00"
220061,5362878,GATENBYSANDERSON,17/05/2018,53102,Agency Staff  Other,Environmental Services,DMT,"4,060.00"
220061,5384445,GATENBYSANDERSON,24/05/2018,53102,Agency Staff  Other,Environmental Services,DMT,"4,060.00"
220061,5386681,GATENBYSANDERSON,29/05/2018,53102,Agency Staff  Other,Environmental Services,DMT,"4,060.00"
220061,5352641,GATENBYSANDERSON,10/05/2018,53102,Agency Staff  Other,Environmental Services,DMT,"2,175.00"
220061,5352645,GATENBYSANDERSON,10/05/2018,53102,Agency Staff  Other,Environmental Services,DMT,"1,740.00"
1667290,5369636,GAZPROM MARKETING & RETAIL LTD,17/05/2018,21200,Gas  General,Chief Executives,Admin Buildings Portfolio,"13,557.62"
1667290,5369636,GAZPROM MARKETING & RETAIL LTD,17/05/2018,21200,Gas  General,Chief Executives,Adult Social Care Portfolio,"11,837.51"
1667290,5369636,GAZPROM MARKETING & RETAIL LTD,17/05/2018,21200,Gas  General,Chief Executives,Castle Hill,"3,320.90"
1667290,5369636,GAZPROM MARKETING & RETAIL LTD,17/05/2018,21200,Gas  General,Chief Executives,Land and Property Portfolios,850.96
1667290,5369636,GAZPROM MARKETING & RETAIL LTD,17/05/2018,21200,Gas  General,Childrens Services,Alexandra CC,"2,119.21"
1667290,5369636,GAZPROM MARKETING & RETAIL LTD,17/05/2018,21200,Gas  General,Childrens Services,Tonge CC,541.24
1667290,5369636,GAZPROM MARKETING & RETAIL LTD,17/05/2018,21200,Gas  General,Childrens Services,Harvey CC,525.54
1667290,5369636,GAZPROM MARKETING & RETAIL LTD,17/05/2018,21200,Gas  General,Development & Regeneration,Smithills Hall Museum,"1,826.59"
1667290,5369636,GAZPROM MARKETING & RETAIL LTD,17/05/2018,21200,Gas  General,Development & Regeneration,The Leverhulme Centre,592.93
1667290,5369636,GAZPROM MARKETING & RETAIL LTD,17/05/2018,21200,Gas  General,Development & Regeneration,Hall I'th Wood Museum,569.38
1667290,5369636,GAZPROM MARKETING & RETAIL LTD,17/05/2018,21200,Gas  General,Environmental Services,Depots,"6,351.87"
1667290,5369636,GAZPROM MARKETING & RETAIL LTD,17/05/2018,21200,Gas  General,Environmental Services,Bereavement Services,"5,023.34"
1667290,5369636,GAZPROM MARKETING & RETAIL LTD,17/05/2018,21200,Gas  General,Environmental Services,Markets  Rent Account,867.20
1667290,5369636,GAZPROM MARKETING & RETAIL LTD,17/05/2018,21200,Gas  General,Environmental Services,Assets,571.82
1667290,5369636,GAZPROM MARKETING & RETAIL LTD,17/05/2018,21200,Gas  General,Housing GRF,Benjamin Court Accommodation,"1,616.13"
6325,5371235,GEORGE COX & SONS LTD,17/05/2018,Z6011,Z6011 - CR Bal Hold A/c Exp,Environmental Services,Environmental Services Balance sheet,"5,006.31"
6325,5384166,GEORGE COX & SONS LTD,24/05/2018,Z1051,Work in Progress Additions,Highways,Stores,"90,599.89"
6325,5383911,GEORGE COX & SONS LTD,24/05/2018,Z1051,Work in Progress Additions,Highways,Stores,"80,276.55"
1779291,5335429,GHS BROOKDALE,08/05/2018,54301,Residential Provision,Adult Services,MH Residential External Provision,"3,250.00"
1779291,5335429,GHS BROOKDALE,08/05/2018,54301,Residential Provision,Adult Services,OA  External Provision Residential,"2,950.20"
3583,5335595,Gillibrand Hall Nursing Home,08/05/2018,54301,Residential Provision,Adult Services,LD Purchaser Residential Care,"2,448.80"
6336,5374643,GLASDON UK LTD,21/05/2018,40601,General Materials,Environmental Services,Activities and Operations,911.04
6336,5374728,GLASDON UK LTD,21/05/2018,40601,General Materials,Environmental Services,Activities and Operations,911.04
6338,5335544,GLENBANK CARE HOME LTD,08/05/2018,54301,Residential Provision,Adult Services,OA  External Provision Residential,"19,027.50"
6338,5335544,GLENBANK CARE HOME LTD,08/05/2018,54301,Residential Provision,Adult Services,MH Residential External Provision,"11,575.72"
6338,5335544,GLENBANK CARE HOME LTD,08/05/2018,54301,Residential Provision,Adult Services,PD Purchaser Residential Care,"2,450.00"
194355,5386465,GLENDALE GUEST HOUSE,29/05/2018,44061,Clients Temporary Accommodation,Housing GRF,Benjamin Court Accommodation,600.00
194355,5386468,GLENDALE GUEST HOUSE,29/05/2018,44061,Clients Temporary Accommodation,Housing GRF,Benjamin Court Accommodation,520.00
2906299,5335496,Glenhomes Care Home,08/05/2018,54301,Residential Provision,Adult Services,OA  External Provision Residential,"12,250.00"
2906299,5335496,Glenhomes Care Home,08/05/2018,54301,Residential Provision,Adult Services,PD Purchaser Residential Care,"6,410.00"
2906299,5335496,Glenhomes Care Home,08/05/2018,54301,Residential Provision,Adult Services,MH Residential External Provision,"2,450.00"
186916,5393731,GMS SERVICES LIMITED,31/05/2018,Z6008,Expense AP Accrual,Bolton MBC Balance Sheet,Bolton MBC Balance Sheet,534.40
6341,5371464,GOOD & TILLOTSON LIMITED#G&T ARCHITECTS,17/05/2018,Z1051,Work in Progress Additions,Adult Services,Adult Services Balance Sheet,"3,175.00"
6342,5335545,GORSEY CLOUGH NURSING HOME LTD,08/05/2018,54302,Nursing Provision,Adult Services,OA  External Provision Residential,"9,200.80"
6342,5335545,GORSEY CLOUGH NURSING HOME LTD,08/05/2018,54302,Nursing Provision,Adult Services,MH Residential External Provision,"4,600.40"
6342,5335547,GORSEY CLOUGH NURSING HOME LTD,08/05/2018,54301,Residential Provision,Adult Services,OA  External Provision Residential,"2,300.20"
6342,5335545,GORSEY CLOUGH NURSING HOME LTD,08/05/2018,54302,Nursing Provision,Adult Services,PD Purchaser Residential Care,"2,300.20"
6342,5335547,GORSEY CLOUGH NURSING HOME LTD,08/05/2018,54301,Residential Provision,Adult Services,PD Purchaser Residential Care,"2,300.20"
2287325,5362650,GRAHAM ASSET MANAGEMENT LTD,17/05/2018,Z6008,Expense AP Accrual,Bolton MBC Balance Sheet,Bolton MBC Balance Sheet,"3,440.56"
2287325,5362806,GRAHAM ASSET MANAGEMENT LTD,17/05/2018,Z6008,Expense AP Accrual,Bolton MBC Balance Sheet,Bolton MBC Balance Sheet,"1,248.50"
2287325,5358698,GRAHAM ASSET MANAGEMENT LTD,17/05/2018,Z6008,Expense AP Accrual,Bolton MBC Balance Sheet,Bolton MBC Balance Sheet,"1,100.00"
2287325,5360655,GRAHAM ASSET MANAGEMENT LTD,14/05/2018,Z6008,Expense AP Accrual,Bolton MBC Balance Sheet,Bolton MBC Balance Sheet,"1,017.50"
2287325,5360663,GRAHAM ASSET MANAGEMENT LTD,14/05/2018,Z6008,Expense AP Accrual,Bolton MBC Balance Sheet,Bolton MBC Balance Sheet,528.00
189721,5345740,GRAHAM MAWHOOD#GM MOUNTAIN BIKING,10/05/2018,52200,Contracted Services,Childrens Services,Crime Concern,764.00
6344,5335548,GRANGE LEA RESIDENTIAL CARE HOME LTD,08/05/2018,54301,Residential Provision,Adult Services,OA  External Provision Residential,"35,088.57"
6344,5335548,GRANGE LEA RESIDENTIAL CARE HOME LTD,08/05/2018,54301,Residential Provision,Adult Services,PD Purchaser Residential Care,"5,150.00"
6344,5335548,GRANGE LEA RESIDENTIAL CARE HOME LTD,08/05/2018,54301,Residential Provision,Adult Services,MH Residential External Provision,"2,490.00"
6344,5335383,GRANGE LEA RESIDENTIAL CARE HOME LTD,08/05/2018,54301,Residential Provision,Adult Services,OA  External Provision Residential,"1,478.57"
4684994,5371133,Graphics And Window Films Ltd,29/05/2018,20105,Painting & Decorating,Adult Services,Wilfred Geere (2),687.00
3398627,5386183,Greengrape Solutions,29/05/2018,53102,Agency Staff  Other,Development & Regeneration,The Work Programme,"1,387.50"
3398627,5353777,Greengrape Solutions,10/05/2018,53102,Agency Staff  Other,Development & Regeneration,The Work Programme,693.75
3398627,5379728,Greengrape Solutions,24/05/2018,53102,Agency Staff  Other,Development & Regeneration,The Work Programme,693.75
3398627,5353777,Greengrape Solutions,10/05/2018,53102,Agency Staff  Other,Development & Regeneration,Skills For Employment,693.75
3398627,5352676,Greengrape Solutions,10/05/2018,53102,Agency Staff  Other,Development & Regeneration,The Work Programme,562.50
3398627,5362861,Greengrape Solutions,17/05/2018,53102,Agency Staff  Other,Development & Regeneration,The Work Programme,562.50
3398627,5352676,Greengrape Solutions,10/05/2018,53102,Agency Staff  Other,Development & Regeneration,Skills For Employment,562.50
3398627,5362861,Greengrape Solutions,17/05/2018,53102,Agency Staff  Other,Development & Regeneration,Skills For Employment,562.50
3398627,5379728,Greengrape Solutions,24/05/2018,53102,Agency Staff  Other,Development & Regeneration,Skills For Employment,562.50
1854290,5333028,GREENHALGH KERR SOLICITORS LTD,03/05/2018,Z5171,Z5171 - Council Tax Arrears,Financial Services,Collection Fund Balance Sheet,"1,107.00"
1854290,5333348,GREENHALGH KERR SOLICITORS LTD,03/05/2018,Z5181,Z5181 - Business Rates Arrears,Financial Services,Collection Fund Balance Sheet,897.00
2194290,5335624,GREENLANDS RESIDENTIAL HOME LTD,08/05/2018,54301,Residential Provision,Adult Services,OA  External Provision Residential,"28,962.86"
2194290,5335624,GREENLANDS RESIDENTIAL HOME LTD,08/05/2018,54301,Residential Provision,Adult Services,PD Purchaser Residential Care,"12,450.00"
2194290,5335395,GREENLANDS RESIDENTIAL HOME LTD,08/05/2018,54301,Residential Provision,Adult Services,OA  External Provision Residential,"3,162.86"
2194290,5335624,GREENLANDS RESIDENTIAL HOME LTD,08/05/2018,54301,Residential Provision,Adult Services,MH Residential External Provision,"2,490.00"
3974954,5384605,Greenwood Tree Services Ltd,24/05/2018,52200,Contracted Services,Environmental Services,Assets,"1,450.00"
3974954,5387400,Greenwood Tree Services Ltd,29/05/2018,52200,Contracted Services,Environmental Services,Assets,850.00
3974954,5384600,Greenwood Tree Services Ltd,24/05/2018,52200,Contracted Services,Environmental Services,Assets,500.00
15577,5371438,GROUNDWORK LANDSCAPES LIMITED,17/05/2018,Z6008,Expense AP Accrual,Bolton MBC Balance Sheet,Bolton MBC Balance Sheet,"3,905.00"
15577,5400729,GROUNDWORK LANDSCAPES LIMITED,31/05/2018,Z6008,Expense AP Accrual,Bolton MBC Balance Sheet,Bolton MBC Balance Sheet,"1,500.00"
15577,5371433,GROUNDWORK LANDSCAPES LIMITED,17/05/2018,Z6008,Expense AP Accrual,Bolton MBC Balance Sheet,Bolton MBC Balance Sheet,760.00
15577,5370958,GROUNDWORK LANDSCAPES LIMITED,17/05/2018,Z6008,Expense AP Accrual,Bolton MBC Balance Sheet,Bolton MBC Balance Sheet,740.00
15577,5370822,GROUNDWORK LANDSCAPES LIMITED,17/05/2018,52200,Contracted Services,Environmental Services,Assets,"4,271.00"
2345384,5335627,GROVE HOUSE,08/05/2018,54301,Residential Provision,Adult Services,OA  External Provision Residential,"2,199.40"
1839290,5384118,GT CLEANING MACHINES LTD,24/05/2018,40100,Operational Equipment Purchase,Environmental Services,Markets  Rent Account,"18,023.00"
3674,5386626,H & C (Plant Hire) Ltd,29/05/2018,40610,Direct Materials,Environmental Services,Highways Maintenance Billable Costs,"1,463.00"
3674,5371132,H & C (Plant Hire) Ltd,17/05/2018,20501,Engineering Work,Environmental Services,Highways Maintenance Billable Costs,971.25
3674,5386381,H & C (Plant Hire) Ltd,29/05/2018,40610,Direct Materials,Environmental Services,Highways Maintenance Billable Costs,894.00
3674,5386206,H & C (Plant Hire) Ltd,29/05/2018,40610,Direct Materials,Environmental Services,Highways Maintenance Billable Costs,851.00
3674,5386637,H & C (Plant Hire) Ltd,29/05/2018,40610,Direct Materials,Environmental Services,Lighting / Stores Billable Costs,814.00
3674,5386192,H & C (Plant Hire) Ltd,29/05/2018,40610,Direct Materials,Environmental Services,Highways Maintenance Billable Costs,814.00
3674,5386191,H & C (Plant Hire) Ltd,29/05/2018,40610,Direct Materials,Environmental Services,Highways Maintenance Billable Costs,814.00
3674,5386631,H & C (Plant Hire) Ltd,29/05/2018,40610,Direct Materials,Environmental Services,Highways Maintenance Billable Costs,814.00
3674,5405643,H & C (Plant Hire) Ltd,31/05/2018,40610,Direct Materials,Environmental Services,Highways Maintenance Billable Costs,814.00
3674,5386376,H & C (Plant Hire) Ltd,29/05/2018,33201,Transport Hire,Environmental Services,Business Support,814.00
3674,5353872,H & C (Plant Hire) Ltd,10/05/2018,40610,Direct Materials,Environmental Services,Highways Maintenance Billable Costs,660.00
3674,5343649,H & C (Plant Hire) Ltd,10/05/2018,33202,Plant Hire,Environmental Services,Depots,660.00
3674,5386427,H & C (Plant Hire) Ltd,29/05/2018,40610,Direct Materials,Environmental Services,Highway Services,649.00
3674,5386373,H & C (Plant Hire) Ltd,29/05/2018,33201,Transport Hire,Environmental Services,Business Support,649.00
3674,5353874,H & C (Plant Hire) Ltd,10/05/2018,33202,Plant Hire,Environmental Services,Highways Managers,528.00
3674,5386663,H & C (Plant Hire) Ltd,29/05/2018,33202,Plant Hire,Environmental Services,Highways Managers,504.00
38584,5335603,HALF ACRE CARE HOME,08/05/2018,54301,Residential Provision,Adult Services,PD Purchaser Residential Care,"3,622.08"
38584,5335603,HALF ACRE CARE HOME,08/05/2018,54301,Residential Provision,Adult Services,MH Residential External Provision,"1,840.16"
3751689,5335377,Harley Avenue,08/05/2018,54301,Residential Provision,Adult Services,LD Purchaser Residential Care,"12,889.60"
2156,5393715,HARMONY YOUTH PROJECT,31/05/2018,52200,Contracted Services,Childrens Services,Admin Commissioning,"10,000.00"
178960,5335611,Hartington House,08/05/2018,54301,Residential Provision,Adult Services,MH Residential External Provision,"16,532.75"
3507651,5385729,Harvest Healthcare Ltd,24/05/2018,44051,Clients Aids & Adaptations,Adult Services,ICES,"1,450.00"
3507651,5371671,Harvest Healthcare Ltd,21/05/2018,44051,Clients Aids & Adaptations,Adult Services,ICES,720.00
3149580,5335510,Haslingden Hall and Lodge,08/05/2018,54301,Residential Provision,Adult Services,PD Purchaser Residential Care,"2,170.50"
3095477,5335508,Hatfield Residential And Nursing Home,08/05/2018,54301,Residential Provision,Adult Services,OA  External Provision Residential,"2,834.10"
6367,5335576,HAZELBROOK CHRISTIAN NURSING HOME,08/05/2018,54301,Residential Provision,Adult Services,PD Purchaser Residential Care,"9,960.00"
6367,5335578,HAZELBROOK CHRISTIAN NURSING HOME,08/05/2018,54302,Nursing Provision,Adult Services,OA  External Provision Residential,"5,130.00"
6367,5335390,HAZELBROOK CHRISTIAN NURSING HOME,08/05/2018,54301,Residential Provision,Adult Services,OA  External Provision Residential,"4,980.00"
6367,5335578,HAZELBROOK CHRISTIAN NURSING HOME,08/05/2018,54302,Nursing Provision,Adult Services,PD Purchaser Residential Care,"2,490.00"
6367,5335576,HAZELBROOK CHRISTIAN NURSING HOME,08/05/2018,54301,Residential Provision,Adult Services,MH Residential External Provision,"2,490.00"
6367,5335576,HAZELBROOK CHRISTIAN NURSING HOME,08/05/2018,54301,Residential Provision,Adult Services,OA  External Provision Residential,977.14
2957307,5335500,Hazelwell Lodge,08/05/2018,54301,Residential Provision,Adult Services,MH Residential External Provision,"2,358.75"
3206623,5354655,Health Management Ltd,10/05/2018,55711,Medical Referees Fees,Chief Executives,Occ Health Holding Code,"21,913.07"
3206623,5399746,Health Management Ltd,31/05/2018,48509,Other Fees,Chief Executives,Health and Safety,"7,020.00"
146379,5377803,HEARTLIFT,24/05/2018,52300,Client Support Costs,Childrens Services,Early Intervention Team,600.00
3776,5353870,HEATON MEDICAL CENTRE,10/05/2018,52200,Contracted Services,Public Health,PH Commissioning,"1,982.00"
3776,5333014,HEATON MEDICAL CENTRE,03/05/2018,52200,Contracted Services,Public Health,PH Commissioning,"1,982.00"
3741693,5335528,Heaton Vale,08/05/2018,54301,Residential Provision,Adult Services,LD Purchaser Residential Care,"20,870.00"
2772301,5384078,Heightsafe Systems Limited,24/05/2018,20100,Day To Day Maintenance,Environmental Services,Civil Contingencies,"3,950.00"
3786,5385814,HELPING HAND CO (LEDBURY) LTD,29/05/2018,44051,Clients Aids & Adaptations,Adult Services,ICES,510.00
3250620,5371335,Henry Riley LLP,17/05/2018,Z1051,Work in Progress Additions,Chief Executives,Chief Execs Balance Sheet,"1,000.00"
6369,5335549,HENSHAWS SOCIETY FOR THE BLIND,08/05/2018,54301,Residential Provision,Adult Services,OA  External Provision Residential,"3,793.90"
2729316,5384191,Hexagon Care Services Ltd,24/05/2018,52000,Vol Assoc Grants  General,Childrens Services,Res Serv Agency Placements,"13,263.57"
2729316,5384184,Hexagon Care Services Ltd,24/05/2018,52000,Vol Assoc Grants  General,Childrens Services,Res Serv Agency Placements,"12,621.43"
2278335,5387149,HIBU (UK) LIMITED,29/05/2018,48200,Advertising General,Environmental Services,Security Services,"1,121.52"
258947,5335614,HIGHCLIFFE RESIDENTIAL HOME#TEAMCARE LTD,08/05/2018,54301,Residential Provision,Adult Services,PD Purchaser Residential Care,"2,448.80"
3152601,5335511,Highfield Hall,08/05/2018,54301,Residential Provision,Adult Services,PD Purchaser Residential Care,"2,731.90"
3193606,5335512,Hillcrest - Vernon,08/05/2018,54301,Residential Provision,Adult Services,LD Purchaser Residential Care,"6,088.40"
3490654,5335521,Hilltop Hall Nursing Home,08/05/2018,54302,Nursing Provision,Adult Services,OA  External Provision Residential,"2,450.00"
51146,5387283,HM Revenue & Customs Only#Was Inland Revenue#2,25/05/2018,19410,19410 - Apprenticeship Levy,Financial Services,Miscellaneous Transactions,"72,023.00"
2976300,5399648,Holistic Approach Ltd,31/05/2018,52000,Vol Assoc Grants  General,Childrens Services,Res Serv Agency Placements,"13,430.00"
2976300,5399637,Holistic Approach Ltd,31/05/2018,52000,Vol Assoc Grants  General,Childrens Services,Res Serv Agency Placements,"11,935.00"
2976300,5399639,Holistic Approach Ltd,31/05/2018,52000,Vol Assoc Grants  General,Childrens Services,Res Serv Agency Placements,"11,935.00"
2976300,5399641,Holistic Approach Ltd,31/05/2018,52000,Vol Assoc Grants  General,Childrens Services,Res Serv Agency Placements,"11,935.00"
2976300,5399645,Holistic Approach Ltd,31/05/2018,52000,Vol Assoc Grants  General,Childrens Services,Res Serv Agency Placements,"11,935.00"
2976300,5399649,Holistic Approach Ltd,31/05/2018,52000,Vol Assoc Grants  General,Childrens Services,Res Serv Agency Placements,"11,935.00"
2976300,5371107,Holistic Approach Ltd,17/05/2018,52000,Vol Assoc Grants  General,Childrens Services,Res Serv Agency Placements,"11,550.00"
6454,5335552,HOLLANDS NURSING HOME,08/05/2018,54301,Residential Provision,Adult Services,OA  External Provision Residential,"13,850.00"
6454,5335551,HOLLANDS NURSING HOME,08/05/2018,54302,Nursing Provision,Adult Services,MH Residential External Provision,"13,850.00"
6454,5335552,HOLLANDS NURSING HOME,08/05/2018,54301,Residential Provision,Adult Services,MH Residential External Provision,"13,850.00"
6454,5335551,HOLLANDS NURSING HOME,08/05/2018,54302,Nursing Provision,Adult Services,PD Purchaser Residential Care,"11,047.00"
6454,5335552,HOLLANDS NURSING HOME,08/05/2018,54301,Residential Provision,Adult Services,LD Purchaser Residential Care,"8,310.00"
6454,5335551,HOLLANDS NURSING HOME,08/05/2018,54302,Nursing Provision,Adult Services,OA  External Provision Residential,"5,540.00"
6454,5335552,HOLLANDS NURSING HOME,08/05/2018,54301,Residential Provision,Adult Services,PD Purchaser Residential Care,"4,986.00"
6454,5335385,HOLLANDS NURSING HOME,08/05/2018,54301,Residential Provision,Adult Services,MH Residential External Provision,"2,180.00"
1617292,5372656,HOMECARE SUPPORT,21/05/2018,52200,Contracted Services,Adult Services,MH Homecare,"61,303.92"
1617292,5372654,HOMECARE SUPPORT,21/05/2018,52200,Contracted Services,Adult Services,OA  Home Care Services external provision,"13,758.99"
1617292,5372654,HOMECARE SUPPORT,21/05/2018,52200,Contracted Services,Adult Services,PD Purcahser Domiciliary Care,"8,022.61"
1617292,5372654,HOMECARE SUPPORT,21/05/2018,52200,Contracted Services,Adult Services,MH Homecare,"6,341.04"
1617292,5372655,HOMECARE SUPPORT,21/05/2018,52200,Contracted Services,Adult Services,MH Homecare,"2,019.91"
1617292,5372656,HOMECARE SUPPORT,21/05/2018,52200,Contracted Services,Adult Services,PD Purcahser Domiciliary Care,"1,935.17"
1617292,5372656,HOMECARE SUPPORT,21/05/2018,52200,Contracted Services,Adult Services,LD Purchaser Domiciliary Care,"1,678.72"
1617292,5372654,HOMECARE SUPPORT,21/05/2018,52200,Contracted Services,Adult Services,LD Purchaser Domiciliary Care,"1,473.52"
1617292,5372655,HOMECARE SUPPORT,21/05/2018,52200,Contracted Services,Adult Services,OA  Home Care Services external provision,"1,363.28"
1617292,5372656,HOMECARE SUPPORT,21/05/2018,52200,Contracted Services,Adult Services,OA  Home Care Services external provision,"1,268.50"
1617292,5372654,HOMECARE SUPPORT,21/05/2018,52200,Contracted Services,Adult Services,OA  External Provision Residential,"1,138.09"
1617292,5372655,HOMECARE SUPPORT,21/05/2018,52200,Contracted Services,Adult Services,LD Purchaser Domiciliary Care,564.69
1617292,5372655,HOMECARE SUPPORT,21/05/2018,52200,Contracted Services,Adult Services,PD Purcahser Domiciliary Care,540.08
3814734,5384189,Horizon Care & Education,24/05/2018,52000,Vol Assoc Grants  General,Childrens Services,Res Serv Agency Placements,"14,835.67"
3814734,5355089,Horizon Care & Education,14/05/2018,52000,Vol Assoc Grants  General,Childrens Services,Res Serv Agency Placements,"14,357.10"
6138,5335540,HYDE  LEA,08/05/2018,54301,Residential Provision,Adult Services,OA  External Provision Residential,"22,014.29"
6138,5335540,HYDE  LEA,08/05/2018,54301,Residential Provision,Adult Services,MH Residential External Provision,"8,342.92"
6138,5335540,HYDE  LEA,08/05/2018,54301,Residential Provision,Adult Services,PD Purchaser Residential Care,"2,730.00"
3271615,5390708,ICRIT Healthcare,29/05/2018,52200,Contracted Services,Adult Services,PD Purcahser Domiciliary Care,814.53
3271615,5383639,ICRIT Healthcare,24/05/2018,52200,Contracted Services,Adult Services,PD Purcahser Domiciliary Care,753.15
3271615,5390697,ICRIT Healthcare,29/05/2018,52200,Contracted Services,Adult Services,PD Purcahser Domiciliary Care,753.15
3271615,5390722,ICRIT Healthcare,29/05/2018,52200,Contracted Services,Adult Services,PD Purcahser Domiciliary Care,753.15
3271615,5393774,ICRIT Healthcare,31/05/2018,52200,Contracted Services,Adult Services,PD Purcahser Domiciliary Care,753.15
3271615,5393754,ICRIT Healthcare,31/05/2018,52200,Contracted Services,Adult Services,PD Purcahser Domiciliary Care,753.15
3271615,5393780,ICRIT Healthcare,31/05/2018,52200,Contracted Services,Adult Services,PD Purcahser Domiciliary Care,753.15
3271615,5390694,ICRIT Healthcare,29/05/2018,52200,Contracted Services,Adult Services,OA  Home Care Services external provision,731.25
3271615,5383655,ICRIT Healthcare,24/05/2018,52200,Contracted Services,Adult Services,OA  Home Care Services external provision,682.50
3271615,5390693,ICRIT Healthcare,29/05/2018,52200,Contracted Services,Adult Services,OA  Home Care Services external provision,682.50
3271615,5393768,ICRIT Healthcare,31/05/2018,52200,Contracted Services,Adult Services,OA  Home Care Services external provision,682.50
3271615,5393744,ICRIT Healthcare,31/05/2018,52200,Contracted Services,Adult Services,OA  Home Care Services external provision,682.50
3271615,5393756,ICRIT Healthcare,31/05/2018,52200,Contracted Services,Adult Services,OA  Home Care Services external provision,682.50
3271615,5393763,ICRIT Healthcare,31/05/2018,52200,Contracted Services,Adult Services,OA  Home Care Services external provision,682.50
3271615,5393786,ICRIT Healthcare,31/05/2018,52200,Contracted Services,Adult Services,OA  Home Care Services external provision,682.50
3271615,5390713,ICRIT Healthcare,29/05/2018,52200,Contracted Services,Adult Services,OA  Home Care Services external provision,562.50
3271615,5383654,ICRIT Healthcare,24/05/2018,52200,Contracted Services,Adult Services,OA  Home Care Services external provision,525.00
3271615,5390698,ICRIT Healthcare,29/05/2018,52200,Contracted Services,Adult Services,OA  Home Care Services external provision,525.00
3271615,5393741,ICRIT Healthcare,31/05/2018,52200,Contracted Services,Adult Services,OA  Home Care Services external provision,525.00
3271615,5393747,ICRIT Healthcare,31/05/2018,52200,Contracted Services,Adult Services,OA  Home Care Services external provision,525.00
3271615,5393758,ICRIT Healthcare,31/05/2018,52200,Contracted Services,Adult Services,OA  Home Care Services external provision,525.00
3271615,5393767,ICRIT Healthcare,31/05/2018,52200,Contracted Services,Adult Services,OA  Home Care Services external provision,525.00
3271615,5390709,ICRIT Healthcare,29/05/2018,52200,Contracted Services,Adult Services,OA  Home Care Services external provision,506.25
302829,5399691,IDOX SOFTWARE LTD,31/05/2018,45401,Computer Maintenance,Development & Regeneration,Spatial Data  from GIS,"27,842.94"
1582048,5365674,IDS LAND SURVEY,17/05/2018,40601,General Materials,Environmental Services,Highway Management,"1,800.00"
22994,5371140,IKEN BUSINESS LTD,17/05/2018,45431,Computer Software Licences,Chief Executives,Legal Services Trading Account,"11,674.56"
1194842,5384662,IMPRESSION (BOLTON) LIMITED#1,24/05/2018,48203,Marketing,Chief Executives,Marketing - Holding Code,"1,134.00"
1194842,5384668,IMPRESSION (BOLTON) LIMITED#1,24/05/2018,48203,Marketing,Chief Executives,Marketing - Holding Code,500.00
1194842,5384659,IMPRESSION (BOLTON) LIMITED#1,24/05/2018,48205,Promoting Bolton,Development & Regeneration,LMA Promotions,525.00
3909,5383942,INFORMATION & DATA NETWORK SUPPLIES LTD#IDN,24/05/2018,45400,Computer Purchase,Childrens Services,Admin IT (Schools),"7,863.50"
3909,5384519,INFORMATION & DATA NETWORK SUPPLIES LTD#IDN,24/05/2018,45400,Computer Purchase,Childrens Services,Admin IT (Schools),"2,500.47"
3909,5371985,INFORMATION & DATA NETWORK SUPPLIES LTD#IDN,21/05/2018,45400,Computer Purchase,Childrens Services,Admin IT (Schools),908.32
3909,5371986,INFORMATION & DATA NETWORK SUPPLIES LTD#IDN,21/05/2018,45400,Computer Purchase,Childrens Services,Admin IT (Schools),873.00
2822310,5370992,Inspire Community Services Ltd,17/05/2018,52000,Vol Assoc Grants  General,Childrens Services,Res Serv Agency Placements,"5,404.20"
2822310,5354912,Inspire Community Services Ltd,14/05/2018,52000,Vol Assoc Grants  General,Childrens Services,Res Serv Agency Placements,"5,350.65"
2822310,5384551,Inspire Community Services Ltd,24/05/2018,52000,Vol Assoc Grants  General,Childrens Services,Unaccompanied Asylum Seeking Children,"2,485.50"
2822310,5385721,Inspire Community Services Ltd,24/05/2018,52000,Vol Assoc Grants  General,Childrens Services,Unaccompanied Asylum Seeking Children,"1,255.20"
2822310,5385719,Inspire Community Services Ltd,24/05/2018,52000,Vol Assoc Grants  General,Childrens Services,Unaccompanied Asylum Seeking Children,"1,242.75"
6391,5392660,INSTARMAC GROUP PLC,31/05/2018,Z6007,Z6007 - Inventory AP Accrual,Highways,Stores,"1,309.28"
63617,5371043,INSTITUTE OF LICENSING,17/05/2018,19104,Training Exp  Ext Seminars,Environmental Services,Regulatory Services Licensing,"2,495.00"
63440,5358693,Interpreting & Translating Services,14/05/2018,48509,Other Fees,Adult Services,Community Learning Disability Team,"2,880.00"
2703315,5354220,IRONMAN Ltd,10/05/2018,48203,Marketing,Chief Executives,Marketing - Holding Code,"41,000.00"
88701,5372809,Islington Council,21/05/2018,52000,Vol Assoc Grants  General,Childrens Services,Unaccompanied Asylum Seeking Children,"7,777.41"
3460669,5384440,ITW Limited,24/05/2018,48629,Miscellaneous Expenses,Environmental Services,Highway Services,"1,210.00"
267154,5402648,J A TYRE SERVICE LTD,31/05/2018,31303,Tyres,Environmental Services,Transport Support Service,"1,073.95"
267154,5385682,J A TYRE SERVICE LTD,24/05/2018,31303,Tyres,Environmental Services,Transport Support Service,746.15
267154,5385690,J A TYRE SERVICE LTD,24/05/2018,31303,Tyres,Environmental Services,Transport Support Service,641.90
267154,5385688,J A TYRE SERVICE LTD,24/05/2018,31303,Tyres,Environmental Services,Transport Support Service,591.85
267154,5402658,J A TYRE SERVICE LTD,31/05/2018,31303,Tyres,Environmental Services,Transport Support Service,504.75
6399,5405652,J DICKINSON & SONS (HORWICH) LTD#2,31/05/2018,40610,Direct Materials,Environmental Services,Highway Services,911.73
6399,5385726,J DICKINSON & SONS (HORWICH) LTD#2,24/05/2018,20101,Programmed Maint. Work,Environmental Services,Highways Managers,870.40
6399,5376791,J DICKINSON & SONS (HORWICH) LTD#2,24/05/2018,20101,Programmed Maint. Work,Environmental Services,Highways Managers,796.20
6399,5383855,J DICKINSON & SONS (HORWICH) LTD#2,24/05/2018,40610,Direct Materials,Environmental Services,Highway Services,702.25
6399,5383862,J DICKINSON & SONS (HORWICH) LTD#2,24/05/2018,40610,Direct Materials,Environmental Services,Highway Services,630.14
6399,5385882,J DICKINSON & SONS (HORWICH) LTD#2,29/05/2018,26106,Refuse Collection,Environmental Services,Bereavement Services,576.43
2396351,5399688,J FREELEY LIMITED,31/05/2018,20100,Day To Day Maintenance,Chief Executives,Land and Property Portfolios,"62,333.30"
6401,5399702,J HOPKINS (CONTRACTORS) LTD,31/05/2018,Z6011,Z6011 - CR Bal Hold A/c Exp,Environmental Services,Environmental Services Balance sheet,"16,696.16"
6401,5354645,J HOPKINS (CONTRACTORS) LTD,10/05/2018,40601,General Materials,Environmental Services,Highway Services,"7,560.00"
6401,5354647,J HOPKINS (CONTRACTORS) LTD,10/05/2018,40610,Direct Materials,Environmental Services,Highway Services,"7,240.00"
6401,5370773,J HOPKINS (CONTRACTORS) LTD,17/05/2018,40610,Direct Materials,Environmental Services,Highway Services,"7,240.00"
6401,5354643,J HOPKINS (CONTRACTORS) LTD,10/05/2018,40610,Direct Materials,Environmental Services,Highway Services,"6,048.00"
6401,5354646,J HOPKINS (CONTRACTORS) LTD,10/05/2018,40610,Direct Materials,Environmental Services,Highway Services,"6,048.00"
6401,5399672,J HOPKINS (CONTRACTORS) LTD,31/05/2018,40610,Direct Materials,Environmental Services,Highway Services,"6,048.00"
6401,5385741,J HOPKINS (CONTRACTORS) LTD,24/05/2018,40610,Direct Materials,Environmental Services,Highways Maintenance Billable Costs,"2,932.00"
6401,5377647,J HOPKINS (CONTRACTORS) LTD,24/05/2018,40601,General Materials,Environmental Services,Highways Maintenance Billable Costs,"2,520.00"
6401,5362871,J HOPKINS (CONTRACTORS) LTD,17/05/2018,40610,Direct Materials,Environmental Services,Highways Maintenance Billable Costs,"2,360.00"
6401,5362869,J HOPKINS (CONTRACTORS) LTD,17/05/2018,40610,Direct Materials,Environmental Services,Highways Maintenance Billable Costs,"2,016.00"
6401,5362860,J HOPKINS (CONTRACTORS) LTD,17/05/2018,40610,Direct Materials,Environmental Services,Highways Maintenance Billable Costs,"2,016.00"
6401,5372823,J HOPKINS (CONTRACTORS) LTD,21/05/2018,Z1051,Work in Progress Additions,Highways,Stores,"3,048.04"
6401,5372813,J HOPKINS (CONTRACTORS) LTD,21/05/2018,Z1051,Work in Progress Additions,Highways,Stores,"2,205.44"
6401,5372824,J HOPKINS (CONTRACTORS) LTD,21/05/2018,Z1051,Work in Progress Additions,Highways,Stores,"1,124.22"
2677300,5385842,J Rawson & Sons,29/05/2018,40610,Direct Materials,Environmental Services,Bereavement Services,576.00
4036,5362708,J W WHITTLE LIMITED#STORE-AWAY ARCHIVE FACILITIES,17/05/2018,22006,Rent of Storage Facilities,Development & Regeneration,Museum Premises,552.00
16022,5370670,JACOBS CERTIFICATED BAILIFFS#4,17/05/2018,48509,Other Fees,Chief Executives,Council Tax,"8,422.81"
16022,5394679,JACOBS CERTIFICATED BAILIFFS#4,31/05/2018,48509,Other Fees,Chief Executives,Council Tax,"7,957.07"
16022,5353637,JACOBS CERTIFICATED BAILIFFS#4,10/05/2018,48509,Other Fees,Environmental Services,Parking Services  On Street,"1,370.00"
16022,5374638,JACOBS CERTIFICATED BAILIFFS#4,21/05/2018,48509,Other Fees,Environmental Services,Parking Services  On Street,"1,155.00"
3879046,5400681,James Andrews Recruitment Solutions Ltd,31/05/2018,53102,Agency Staff  Other,Environmental Services,Regulatory Services Licensing,"7,030.78"
3879046,5385723,James Andrews Recruitment Solutions Ltd,24/05/2018,53102,Agency Staff  Other,Environmental Services,Regulatory Services Licensing,"1,484.61"
3879046,5385720,James Andrews Recruitment Solutions Ltd,24/05/2018,53102,Agency Staff  Other,Environmental Services,Regulatory Services Licensing,"1,484.61"
3879046,5333187,James Andrews Recruitment Solutions Ltd,14/05/2018,53102,Agency Staff  Other,Environmental Services,Regulatory Services Licensing,"1,122.51"
4070,5385702,JAMES LECKEY DESIGN LTD,24/05/2018,44051,Clients Aids & Adaptations,Adult Services,ICES,"2,942.00"
4070,5385701,JAMES LECKEY DESIGN LTD,24/05/2018,44051,Clients Aids & Adaptations,Adult Services,ICES,"2,910.00"
4070,5371817,JAMES LECKEY DESIGN LTD,21/05/2018,44051,Clients Aids & Adaptations,Adult Services,ICES,"2,795.00"
4070,5365732,JAMES LECKEY DESIGN LTD,17/05/2018,44051,Clients Aids & Adaptations,Adult Services,ICES,"2,733.00"
3425636,5351638,JBL Education Ltd,10/05/2018,48629,Miscellaneous Expenses,Childrens Services,Bolton Learning Alliance,"2,500.00"
2732391,5385782,JCS Online Resources Limited,24/05/2018,40753,Book Fund Expenditure,Development & Regeneration,Libraries Info. Services,862.50
14831,5371472,JENX LIMITED,17/05/2018,44051,Clients Aids & Adaptations,Adult Services,ICES,"2,877.00"
3121532,5393735,Jewel Home Support Ltd,31/05/2018,52200,Contracted Services,Adult Services,OA  Home Care Services external provision,"61,568.40"
3121532,5333994,Jewel Home Support Ltd,08/05/2018,52200,Contracted Services,Adult Services,OA  Home Care Services external provision,"55,644.82"
3121532,5393735,Jewel Home Support Ltd,31/05/2018,52200,Contracted Services,Adult Services,PD Purcahser Domiciliary Care,"36,381.88"
3121532,5333994,Jewel Home Support Ltd,08/05/2018,52200,Contracted Services,Adult Services,PD Purcahser Domiciliary Care,"35,787.44"
3121532,5333992,Jewel Home Support Ltd,08/05/2018,52200,Contracted Services,Adult Services,OA  Home Care Services external provision,"6,722.89"
3121532,5383635,Jewel Home Support Ltd,24/05/2018,52200,Contracted Services,Adult Services,OA  Home Care Services external provision,"1,967.55"
3121532,5333994,Jewel Home Support Ltd,08/05/2018,52200,Contracted Services,Adult Services,LD Purchaser Domiciliary Care,"1,846.80"
3121532,5393735,Jewel Home Support Ltd,31/05/2018,52200,Contracted Services,Adult Services,OA  External Provision Residential,"1,790.37"
3121532,5393736,Jewel Home Support Ltd,31/05/2018,52200,Contracted Services,Adult Services,OA  Home Care Services external provision,"1,576.02"
3121532,5333994,Jewel Home Support Ltd,08/05/2018,52200,Contracted Services,Adult Services,OA  External Provision Residential,"1,545.91"
3121532,5393735,Jewel Home Support Ltd,31/05/2018,52200,Contracted Services,Adult Services,LD Purchaser Domiciliary Care,"1,365.44"
3121532,5393735,Jewel Home Support Ltd,31/05/2018,52200,Contracted Services,Adult Services,MH Homecare,991.57
3121532,5333994,Jewel Home Support Ltd,08/05/2018,52200,Contracted Services,Adult Services,MH Homecare,967.95
1573292,5354221,JLA TOTAL CARE LTD,10/05/2018,40101,Operational Equipment Maint,Adult Services,Wilfred Geere (2),"4,296.00"
54678,5370790,JOE EGAN SOLICITORS,17/05/2018,48509,Other Fees,Childrens Services,Management Team,570.00
117675,5355094,JOHN WADE GROUNDWORKS LTD,14/05/2018,Z1051,Work in Progress Additions,Environmental Services,Environmental Services Balance sheet,"49,900.00"
1122809,5378643,JONES LIGHTING LTD,24/05/2018,Z1051,Work in Progress Additions,Adult Services,Adult Services Balance Sheet,539.83
1122809,5371987,JONES LIGHTING LTD,21/05/2018,Z1051,Work in Progress Additions,Development & Regeneration,Development & Regeneration Capital,539.83
1122809,5378641,JONES LIGHTING LTD,24/05/2018,48509,Other Fees,Environmental Services,Engineering Projects,"3,757.62"
1122809,5378642,JONES LIGHTING LTD,24/05/2018,40610,Direct Materials,Environmental Services,Engineering Projects,884.96
1122809,5378640,JONES LIGHTING LTD,24/05/2018,47103,Miscellaneous Grants,Environmental Services,Neighbourhood Management Programme,680.64
1122809,5371950,JONES LIGHTING LTD,21/05/2018,20501,Engineering Work,Environmental Services,Highway Services,539.83
1122809,5378638,JONES LIGHTING LTD,24/05/2018,Z6011,Z6011 - CR Bal Hold A/c Exp,Environmental Services,Environmental Services Balance sheet,539.83
1122809,5403656,JONES LIGHTING LTD,31/05/2018,25105,Other Security,Environmental Services,NCP CCTV,508.45
1122809,5377805,JONES LIGHTING LTD,24/05/2018,Z1051,Work in Progress Additions,Highways,Stores,"3,325.58"
1122809,5378635,JONES LIGHTING LTD,24/05/2018,Z1051,Work in Progress Additions,Highways,Stores,"2,699.15"
1122809,5377812,JONES LIGHTING LTD,24/05/2018,Z1051,Work in Progress Additions,Highways,Stores,"1,079.66"
1122809,5377797,JONES LIGHTING LTD,24/05/2018,Z1051,Work in Progress Additions,Highways,Stores,"1,079.66"
1122809,5377669,JONES LIGHTING LTD,24/05/2018,Z1051,Work in Progress Additions,Highways,Stores,"1,079.66"
1122809,5377660,JONES LIGHTING LTD,24/05/2018,Z1051,Work in Progress Additions,Highways,Stores,"1,079.66"
1122809,5374722,JONES LIGHTING LTD,21/05/2018,Z1051,Work in Progress Additions,Highways,Stores,"1,079.66"
1122809,5384607,JONES LIGHTING LTD,24/05/2018,Z1051,Work in Progress Additions,Highways,Stores,"1,079.66"
1122809,5378637,JONES LIGHTING LTD,24/05/2018,Z1051,Work in Progress Additions,Highways,Stores,539.83
1122809,5378636,JONES LIGHTING LTD,24/05/2018,Z1051,Work in Progress Additions,Highways,Stores,539.83
1122809,5377799,JONES LIGHTING LTD,24/05/2018,Z1051,Work in Progress Additions,Highways,Stores,539.83
1122809,5377666,JONES LIGHTING LTD,24/05/2018,Z1051,Work in Progress Additions,Highways,Stores,539.83
1122809,5372001,JONES LIGHTING LTD,21/05/2018,Z1051,Work in Progress Additions,Highways,Stores,539.83
115484,5370744,KAYS TRAFFIC MANAGEMENT SYSTEMS LTD,17/05/2018,52200,Contracted Services,Environmental Services,Activities and Operations,"4,423.00"
115484,5384057,KAYS TRAFFIC MANAGEMENT SYSTEMS LTD,29/05/2018,40610,Direct Materials,Environmental Services,Highway Services,"1,808.00"
115484,5385658,KAYS TRAFFIC MANAGEMENT SYSTEMS LTD,24/05/2018,52200,Contracted Services,Environmental Services,Activities and Operations,"1,732.00"
115484,5385652,KAYS TRAFFIC MANAGEMENT SYSTEMS LTD,24/05/2018,52200,Contracted Services,Environmental Services,Activities and Operations,"1,328.00"
115484,5385643,KAYS TRAFFIC MANAGEMENT SYSTEMS LTD,24/05/2018,52200,Contracted Services,Environmental Services,Activities and Operations,"1,130.00"
115484,5385645,KAYS TRAFFIC MANAGEMENT SYSTEMS LTD,24/05/2018,52200,Contracted Services,Environmental Services,Activities and Operations,"1,091.10"
115484,5385647,KAYS TRAFFIC MANAGEMENT SYSTEMS LTD,24/05/2018,52200,Contracted Services,Environmental Services,Activities and Operations,"1,091.10"
115484,5383868,KAYS TRAFFIC MANAGEMENT SYSTEMS LTD,24/05/2018,52200,Contracted Services,Environmental Services,Activities and Operations,650.00
120894,5371147,Kearsley Mount Methodist Church,29/05/2018,22004,Room Hire,Childrens Services,Music ServMusic Service general,550.00
101173,5343670,KEYMEN ASSOCIATES LTD#MAYDAY,10/05/2018,52200,Contracted Services,Adult Services,OA  Home Care Services external provision,"91,953.74"
101173,5343670,KEYMEN ASSOCIATES LTD#MAYDAY,10/05/2018,52200,Contracted Services,Adult Services,PD Purcahser Domiciliary Care,"39,807.54"
101173,5343671,KEYMEN ASSOCIATES LTD#MAYDAY,10/05/2018,52200,Contracted Services,Adult Services,OA  Home Care Services external provision,"7,926.86"
101173,5343670,KEYMEN ASSOCIATES LTD#MAYDAY,10/05/2018,52200,Contracted Services,Adult Services,MH Homecare,"5,910.07"
101173,5343672,KEYMEN ASSOCIATES LTD#MAYDAY,10/05/2018,52200,Contracted Services,Adult Services,OA  Home Care Services external provision,"4,568.75"
101173,5343672,KEYMEN ASSOCIATES LTD#MAYDAY,10/05/2018,52200,Contracted Services,Adult Services,PD Purcahser Domiciliary Care,"3,706.83"
101173,5343670,KEYMEN ASSOCIATES LTD#MAYDAY,10/05/2018,52200,Contracted Services,Adult Services,LD Purchaser Domiciliary Care,"2,318.18"
101173,5343672,KEYMEN ASSOCIATES LTD#MAYDAY,10/05/2018,52200,Contracted Services,Adult Services,MH Homecare,"1,373.41"
101173,5343669,KEYMEN ASSOCIATES LTD#MAYDAY,10/05/2018,52200,Contracted Services,Adult Services,OA  Home Care Services external provision,"1,043.57"
101173,5334003,KEYMEN ASSOCIATES LTD#MAYDAY,08/05/2018,52200,Contracted Services,Adult Services,OA  Home Care Services external provision,675.18
101173,5343670,KEYMEN ASSOCIATES LTD#MAYDAY,10/05/2018,52200,Contracted Services,Adult Services,OA  External Provision Residential,591.62
138629,5370977,KEYS CHILDCARE LTD,17/05/2018,52000,Vol Assoc Grants  General,Childrens Services,Res Serv Agency Placements,"15,214.20"
1989355,5335621,KINGARTH,08/05/2018,54301,Residential Provision,Adult Services,LD Purchaser Residential Care,"14,596.35"
3218639,5354182,Kings Chambers,10/05/2018,48502,Legal Fees,Chief Executives,Non-Domestic Rating,"1,250.00"
6434,5335579,KNIGHTSWOOD RESIDENTIAL HOME,08/05/2018,54301,Residential Provision,Adult Services,OA  External Provision Residential,"14,687.20"
6434,5335579,KNIGHTSWOOD RESIDENTIAL HOME,08/05/2018,54301,Residential Provision,Adult Services,MH Residential External Provision,"2,490.00"
3811724,5333117,L&Q Living Ltd,08/05/2018,52200,Contracted Services,Adult Services,OA Extra Care Housing External Provision,"1,242.36"
3811724,5358666,L&Q Living Ltd,14/05/2018,52200,Contracted Services,Adult Services,OA Extra Care Housing External Provision,617.28
3811724,5372644,L&Q Living Ltd,21/05/2018,52200,Contracted Services,Adult Services,OA Extra Care Housing External Provision,617.28
3470643,5386162,Labmed#Maxxima Ltd,29/05/2018,50002,Other Agency/Contracted Services,Adult Services,CLDT & DOLs - HoS,"1,245.75"
3470643,5386178,Labmed#Maxxima Ltd,29/05/2018,50002,Other Agency/Contracted Services,Adult Services,CLDT & DOLs - HoS,"1,245.75"
3470643,5386181,Labmed#Maxxima Ltd,29/05/2018,50002,Other Agency/Contracted Services,Adult Services,CLDT & DOLs - HoS,"1,245.75"
3470643,5358691,Labmed#Maxxima Ltd,14/05/2018,53102,Agency Staff  Other,Adult Services,Community Learning Disability Team,"1,245.75"
3470643,5358690,Labmed#Maxxima Ltd,14/05/2018,53102,Agency Staff  Other,Adult Services,Community Learning Disability Team,"1,245.75"
3470643,5386168,Labmed#Maxxima Ltd,29/05/2018,50002,Other Agency/Contracted Services,Adult Services,CLDT & DOLs - HoS,996.60
3470643,5406672,Labmed#Maxxima Ltd,31/05/2018,53102,Agency Staff  Other,Adult Services,Community Learning Disability Team,747.45
4554955,5374639,Landmark Chambers,21/05/2018,48502,Legal Fees,Development & Regeneration,Development Management,750.00
36518,5372004,LANGHAM,21/05/2018,44051,Clients Aids & Adaptations,Adult Services,ICES,769.20
3229615,5335513,Larkhall Springs,08/05/2018,54302,Nursing Provision,Adult Services,PD Purchaser Residential Care,"2,260.00"
2207295,5365685,LARSEN MANUFACTURING LTD T/A LARSEN BUILDING PRODUCTS,17/05/2018,40601,General Materials,Environmental Services,Highways Maintenance Billable Costs,"3,680.00"
3391631,5372082,Lead-IT,21/05/2018,45433,ECDL Courseware Hosting,Childrens Services,Admin IT (Schools),"5,040.00"
3536653,5406646,Leaving Care Services Ltd T/A Pathway to Prospects Ltd,31/05/2018,52000,Vol Assoc Grants  General,Childrens Services,Res Serv Agency Placements,"3,750.00"
3536653,5406654,Leaving Care Services Ltd T/A Pathway to Prospects Ltd,31/05/2018,52000,Vol Assoc Grants  General,Childrens Services,Unaccompanied Asylum Seeking Children,"3,750.00"
3536653,5406648,Leaving Care Services Ltd T/A Pathway to Prospects Ltd,31/05/2018,52000,Vol Assoc Grants  General,Childrens Services,Res Serv Agency Placements,"2,000.00"
3536653,5333678,Leaving Care Services Ltd T/A Pathway to Prospects Ltd,08/05/2018,52000,Vol Assoc Grants  General,Childrens Services,Res Serv Agency Placements,875.00
1919290,5387191,LEEDS COMMERCIAL LIMITED,29/05/2018,33201,Transport Hire,Environmental Services,Transport Support Service,"2,730.00"
1919290,5387188,LEEDS COMMERCIAL LIMITED,29/05/2018,33201,Transport Hire,Environmental Services,Transport Support Service,"2,310.00"
257679,5371007,Leigh Dogs and Cats Home Ltd,29/05/2018,52200,Contracted Services,Environmental Services,Activities and Operations,"20,773.00"
257679,5384603,Leigh Dogs and Cats Home Ltd,24/05/2018,52200,Contracted Services,Environmental Services,Activities and Operations,"1,066.00"
257679,5371014,Leigh Dogs and Cats Home Ltd,29/05/2018,52200,Contracted Services,Environmental Services,Activities and Operations,534.00
1015735,5335616,LEVER EDGE CARE HOME,08/05/2018,54301,Residential Provision,Adult Services,OA  External Provision Residential,"103,383.57"
1015735,5335616,LEVER EDGE CARE HOME,08/05/2018,54301,Residential Provision,Adult Services,MH Residential External Provision,"22,654.60"
1015735,5335616,LEVER EDGE CARE HOME,08/05/2018,54301,Residential Provision,Adult Services,PD Purchaser Residential Care,"21,540.00"
1015735,5335394,LEVER EDGE CARE HOME,08/05/2018,54301,Residential Provision,Adult Services,MH Residential External Provision,"1,868.57"
1015735,5335394,LEVER EDGE CARE HOME,08/05/2018,54301,Residential Provision,Adult Services,OA  External Provision Residential,"1,602.14"
4547,5386945,LEXISNEXIS UK,29/05/2018,40751,Library Books,Chief Executives,Elections,"1,219.00"
1104799,5371124,LIAM TRIPPIER SCHOOL IMPROVEMENT LTD,17/05/2018,53000,Private Contracted Services,Childrens Services,SIPs,"3,531.08"
1104799,5371124,LIAM TRIPPIER SCHOOL IMPROVEMENT LTD,17/05/2018,52200,Contracted Services,Childrens Services,SIPs,"1,200.00"
3950954,5353869,Liberty Living Limited,10/05/2018,44054,Other Clients Services,Childrens Services,Child Prot Leaving Care Team,"1,031.00"
3172633,5390673,Lifeways Independent Living Alliance Limited,29/05/2018,52200,Contracted Services,Adult Services,LD Provider  Supported Housing,"1,623.67"
2841300,5350716,Link 61 Ltd#Lamb & Swift Commercial,10/05/2018,93120,Refunds,Environmental Services,Trade Waste,"2,800.00"
1573321,5370875,LIQUIDLOGIC LIMITED,17/05/2018,45401,Computer Maintenance,Childrens Services,Regional Adoption Agency (RAA),"8,328.00"
479528,5371029,LK CONSULT LIMITED,17/05/2018,48509,Other Fees,Chief Executives,Land and Property Portfolios,"2,195.00"
3333633,5335516,Lotus Care (Ellerslie Court) Limited T/A Ellerslie Court,08/05/2018,54301,Residential Provision,Adult Services,PD Purchaser Residential Care,"3,402.90"
4644100,5371339,LPM Events,17/05/2018,48501,Artistes Fees,Environmental Services,Albert Halls  Operations,"9,094.77"
6188,5371142,LUCY ZODION LIMITED,17/05/2018,Z1051,Work in Progress Additions,Highways,Stores,"5,276.62"
6188,5384652,LUCY ZODION LIMITED,24/05/2018,Z6007,Z6007 - Inventory AP Accrual,Highways,Stores,"1,140.00"
6449,5335550,LYNGATE RESIDENTIAL HOME,08/05/2018,54301,Residential Provision,Adult Services,OA  External Provision Residential,"35,727.15"
6449,5335574,LYNGATE RESIDENTIAL HOME,08/05/2018,54301,Residential Provision,Adult Services,OA  External Provision Residential,"7,790.01"
6449,5335574,LYNGATE RESIDENTIAL HOME,08/05/2018,54301,Residential Provision,Adult Services,PD Purchaser Residential Care,"4,980.00"
6449,5335550,LYNGATE RESIDENTIAL HOME,08/05/2018,54301,Residential Provision,Adult Services,PD Purchaser Residential Care,"4,980.00"
6449,5335550,LYNGATE RESIDENTIAL HOME,08/05/2018,54301,Residential Provision,Adult Services,MH Residential External Provision,"4,980.00"
3584712,5400635,Mace Cost Consultancy Finance,31/05/2018,Z1051,Work in Progress Additions,Development & Regeneration,Development & Regeneration Capital,"7,200.00"
3584712,5371026,Mace Cost Consultancy Finance,29/05/2018,Z1051,Work in Progress Additions,Development & Regeneration,Development & Regeneration Capital,"2,840.00"
4724,5372584,MACHINE MART LTD,21/05/2018,40610,Direct Materials,Environmental Services,Lighting / Stores Works Budget,613.77
10490,5383939,MAGNA LARGE PRINT BOOKS,29/05/2018,40753,Book Fund Expenditure,Development & Regeneration,Libraries Info. Services,"7,000.00"
6465,5354651,MALLATITE LTD,10/05/2018,40610,Direct Materials,Environmental Services,Lighting / Stores Works Budget,"9,900.00"
6465,5371645,MALLATITE LTD,21/05/2018,40610,Direct Materials,Environmental Services,Lighting / Stores Works Budget,557.25
6465,5384333,MALLATITE LTD,24/05/2018,Z6007,Z6007 - Inventory AP Accrual,Highways,Stores,"5,303.40"
6465,5400676,MALLATITE LTD,31/05/2018,Z6007,Z6007 - Inventory AP Accrual,Highways,Stores,"2,754.60"
6461,5362642,Manchester Metropolitan University,17/05/2018,19100,Training Exps Tuition Fees,Childrens Services,WPD Project Link,850.00
6461,5362645,Manchester Metropolitan University,17/05/2018,19100,Training Exps Tuition Fees,Childrens Services,WPD Project Link,850.00
6461,5362643,Manchester Metropolitan University,17/05/2018,19100,Training Exps Tuition Fees,Childrens Services,WPD Project Link,850.00
6461,5362644,Manchester Metropolitan University,17/05/2018,19100,Training Exps Tuition Fees,Childrens Services,WPD Project Link,850.00
6461,5385755,Manchester Metropolitan University,24/05/2018,19100,Training Exps Tuition Fees,Childrens Services,WPD Project Link,850.00
17968,5371346,MANGAR INTERNATIONAL,17/05/2018,44051,Clients Aids & Adaptations,Adult Services,ICES,700.00
4751,5371575,MANTANK ENV SERVICES LTD,17/05/2018,52200,Contracted Services,Environmental Services,Activities and Operations,583.75
4784,5384457,MARKETING MANCHESTER,24/05/2018,48203,Marketing,Chief Executives,Marketing - Holding Code,"2,615.91"
4784,5353877,MARKETING MANCHESTER,10/05/2018,48203,Marketing,Chief Executives,Marketing - Holding Code,"2,498.74"
6470,5335580,MARLEY COURT  NURSING & RESIDENTAIL HOME,08/05/2018,54301,Residential Provision,Adult Services,OA  External Provision Residential,"2,170.50"
6472,5399669,MARWOOD ELECTRICAL COMPANY LTD,31/05/2018,40610,Direct Materials,Environmental Services,Highway Management,"7,409.81"
6472,5402659,MARWOOD ELECTRICAL COMPANY LTD,31/05/2018,40610,Direct Materials,Environmental Services,Engineering Projects,506.70
6472,5370636,MARWOOD ELECTRICAL COMPANY LTD,17/05/2018,Z1051,Work in Progress Additions,Highways,Stores,"22,057.00"
6472,5370639,MARWOOD ELECTRICAL COMPANY LTD,17/05/2018,Z1051,Work in Progress Additions,Highways,Stores,"22,057.00"
6472,5370797,MARWOOD ELECTRICAL COMPANY LTD,17/05/2018,Z1051,Work in Progress Additions,Highways,Stores,"22,057.00"
6472,5370799,MARWOOD ELECTRICAL COMPANY LTD,17/05/2018,Z1051,Work in Progress Additions,Highways,Stores,"22,057.00"
6472,5399664,MARWOOD ELECTRICAL COMPANY LTD,31/05/2018,Z1051,Work in Progress Additions,Highways,Stores,"22,057.00"
6472,5399668,MARWOOD ELECTRICAL COMPANY LTD,31/05/2018,Z1051,Work in Progress Additions,Highways,Stores,"22,057.00"
6472,5385860,MARWOOD ELECTRICAL COMPANY LTD,29/05/2018,Z1051,Work in Progress Additions,Highways,Stores,"3,009.38"
4808,5335571,MARY & JOSEPH HOUSE,08/05/2018,54301,Residential Provision,Adult Services,OA  External Provision Residential,"3,130.95"
4808,5335571,MARY & JOSEPH HOUSE,08/05/2018,54301,Residential Provision,Adult Services,MH Residential External Provision,"3,130.95"
4349954,5334001,Mary Seacole House,08/05/2018,52200,Contracted Services,Adult Services,LD Provider  Supported Housing,"7,509.74"
2497291,5335396,MAX POTENTIAL UK LTD,08/05/2018,54301,Residential Provision,Adult Services,LD Purchaser Residential Care,"9,500.00"
2497291,5335633,MAX POTENTIAL UK LTD,08/05/2018,54301,Residential Provision,Adult Services,MH Residential External Provision,"8,750.00"
3942953,5335534,McAuley Mount Care Home,08/05/2018,54301,Residential Provision,Adult Services,OA  External Provision Residential,"2,170.50"
325897,5362880,MCGRATH MEDIA,17/05/2018,48200,Advertising General,Environmental Services,Markets  Rent Account,895.00
325897,5376643,MCGRATH MEDIA,24/05/2018,48200,Advertising General,Environmental Services,Markets  Rent Account,740.00
325897,5384419,MCGRATH MEDIA,24/05/2018,48200,Advertising General,Environmental Services,Markets  Rent Account,559.16
325897,5384423,MCGRATH MEDIA,24/05/2018,48200,Advertising General,Environmental Services,Markets  Rent Account,559.16
38107,5335602,MEADOW BANK NURSING HOME,29/05/2018,54302,Nursing Provision,Adult Services,OA  External Provision Residential,"8,905.45"
3536658,5335523,Meadow Park Care Home,08/05/2018,54301,Residential Provision,Adult Services,PD Purchaser Residential Care,"2,397.00"
4856,5335588,MEADOWBANK HOUSE,08/05/2018,54302,Nursing Provision,Adult Services,PD Purchaser Residential Care,"30,741.43"
4856,5335587,MEADOWBANK HOUSE,08/05/2018,54301,Residential Provision,Adult Services,OA  External Provision Residential,"24,900.00"
4856,5335588,MEADOWBANK HOUSE,08/05/2018,54302,Nursing Provision,Adult Services,OA  External Provision Residential,"17,430.00"
4856,5335587,MEADOWBANK HOUSE,08/05/2018,54301,Residential Provision,Adult Services,MH Residential External Provision,"4,980.00"
4856,5335588,MEADOWBANK HOUSE,08/05/2018,54302,Nursing Provision,Adult Services,MH Residential External Provision,"2,490.00"
6479,5357648,MEDWAY HEATING (BOLTON)  LTD,14/05/2018,Z6008,Expense AP Accrual,Bolton MBC Balance Sheet,Bolton MBC Balance Sheet,"2,670.00"
6479,5357642,MEDWAY HEATING (BOLTON)  LTD,14/05/2018,Z6008,Expense AP Accrual,Bolton MBC Balance Sheet,Bolton MBC Balance Sheet,"2,145.19"
6479,5357651,MEDWAY HEATING (BOLTON)  LTD,14/05/2018,Z6008,Expense AP Accrual,Bolton MBC Balance Sheet,Bolton MBC Balance Sheet,"1,866.88"
6479,5384396,MEDWAY HEATING (BOLTON)  LTD,24/05/2018,Z6008,Expense AP Accrual,Bolton MBC Balance Sheet,Bolton MBC Balance Sheet,"1,733.00"
6479,5371908,MEDWAY HEATING (BOLTON)  LTD,21/05/2018,Z6008,Expense AP Accrual,Bolton MBC Balance Sheet,Bolton MBC Balance Sheet,"1,676.40"
6479,5372017,MEDWAY HEATING (BOLTON)  LTD,21/05/2018,Z6008,Expense AP Accrual,Bolton MBC Balance Sheet,Bolton MBC Balance Sheet,992.25
6479,5372696,MEDWAY HEATING (BOLTON)  LTD,21/05/2018,Z6008,Expense AP Accrual,Bolton MBC Balance Sheet,Bolton MBC Balance Sheet,975.58
6479,5371644,MEDWAY HEATING (BOLTON)  LTD,21/05/2018,Z6008,Expense AP Accrual,Bolton MBC Balance Sheet,Bolton MBC Balance Sheet,691.50
6479,5403657,MEDWAY HEATING (BOLTON)  LTD,31/05/2018,Z6008,Expense AP Accrual,Bolton MBC Balance Sheet,Bolton MBC Balance Sheet,580.00
6479,5384654,MEDWAY HEATING (BOLTON)  LTD,24/05/2018,Z6008,Expense AP Accrual,Bolton MBC Balance Sheet,Bolton MBC Balance Sheet,564.43
6479,5357650,MEDWAY HEATING (BOLTON)  LTD,14/05/2018,Z6008,Expense AP Accrual,Bolton MBC Balance Sheet,Bolton MBC Balance Sheet,560.00
6479,5372768,MEDWAY HEATING (BOLTON)  LTD,21/05/2018,Z6008,Expense AP Accrual,Bolton MBC Balance Sheet,Bolton MBC Balance Sheet,515.00
6479,5361635,MEDWAY HEATING (BOLTON)  LTD,29/05/2018,Z5608,Inv Invoice Price Variance,Property Services,EAM Holding,540.75
4591992,5355092,Meltemi Limited,14/05/2018,42000,Clothing,Childrens Services,Business Support - Provider Services,"5,449.32"
2109299,5335622,Mencap,08/05/2018,54301,Residential Provision,Adult Services,LD Purchaser Residential Care,"14,470.80"
267311,5384620,MERITEC LIMITED,24/05/2018,52200,Contracted Services,Chief Executives,Housing Benefits,"2,707.92"
267311,5384618,MERITEC LIMITED,24/05/2018,52200,Contracted Services,Chief Executives,Anti Poverty Measures,"2,508.00"
267311,5384623,MERITEC LIMITED,24/05/2018,52200,Contracted Services,Chief Executives,Housing Benefits,"1,536.93"
4889,5335589,Merrymeet Residential Care Home,08/05/2018,54301,Residential Provision,Adult Services,OA  External Provision Residential,"3,525.00"
3274635,5335514,Mewsbrook House,08/05/2018,54302,Nursing Provision,Adult Services,MH Residential External Provision,"2,731.55"
4896,5370908,MHIST,17/05/2018,52001,Vol Sect Grants  Misc,Adult Services,Prevention Services,"5,500.00"
3568680,5370825,Michelmores LLP,24/05/2018,48509,Other Fees,Chief Executives,Land and Property Portfolios,"1,188.00"
218800,5384113,MICROFORM IMAGING LIMITED,24/05/2018,40751,Library Books,Development & Regeneration,Museum Archives,863.43
3597706,5383683,Midshires Care Limited#t/a Helping Hands Home Care,24/05/2018,52200,Contracted Services,Adult Services,OA  Home Care Services external provision,"1,784.70"
3962953,5335407,Millbrook Way - Heathwaite,08/05/2018,54301,Residential Provision,Adult Services,LD Purchaser Residential Care,"17,283.30"
10133,5335599,MILLVIEW NURSING HOME,08/05/2018,54301,Residential Provision,Adult Services,OA  External Provision Residential,"93,377.15"
10133,5335598,MILLVIEW NURSING HOME,08/05/2018,54302,Nursing Provision,Adult Services,OA  External Provision Residential,"82,295.71"
10133,5335599,MILLVIEW NURSING HOME,08/05/2018,54301,Residential Provision,Adult Services,MH Residential External Provision,"26,740.00"
10133,5335599,MILLVIEW NURSING HOME,08/05/2018,54301,Residential Provision,Adult Services,PD Purchaser Residential Care,"25,967.14"
10133,5335598,MILLVIEW NURSING HOME,08/05/2018,54302,Nursing Provision,Adult Services,MH Residential External Provision,"24,498.57"
10133,5335598,MILLVIEW NURSING HOME,08/05/2018,54302,Nursing Provision,Adult Services,PD Purchaser Residential Care,"12,768.57"
3473644,5352668,Mindography,10/05/2018,48509,Other Fees,Development & Regeneration,LMA External Funded Projects,705.36
4634992,5374687,Moorgarth Property Management Limited,21/05/2018,Z5259,AR Unapplied Receipts Refunds,Chief Executives, Chief Execs Balance Sheet,"20,672.00"
2938324,5335498,Morden Grange,08/05/2018,54301,Residential Provision,Adult Services,MH Residential External Provision,"13,500.00"
2938324,5335499,Morden Grange,08/05/2018,54302,Nursing Provision,Adult Services,MH Residential External Provision,"6,475.00"
2626324,5335399,Morgan Care Ltd,08/05/2018,54301,Residential Provision,Adult Services,OA  External Provision Residential,"16,932.00"
3456673,5384702,Morgan Heating and Plumbing Solutions Limited,24/05/2018,22002,Management Fee,Housing GRF,HMO Licence Fees,"2,291.67"
2147302,5335623,MOSTON GRANGE NURSING HOME,08/05/2018,54302,Nursing Provision,Adult Services,OA  External Provision Residential,"10,025.00"
16216,5350723,NABMA,10/05/2018,47200,General Subscriptions,Environmental Services,Markets  Rent Account,636.00
9982,5384180,NATIONAL CAR PARKS LTD#NCP,24/05/2018,37100,Car Parking,Development & Regeneration,D&R Departmental Account,"22,795.08"
9982,5384209,NATIONAL CAR PARKS LTD#NCP,24/05/2018,25105,Other Security,Environmental Services,Markets  Rent Account,500.00
6013,5377804,NATIONAL SECURITY INSPECTORATE,24/05/2018,47200,General Subscriptions,Environmental Services,Security Services,"2,864.00"
2246441,5368640,NB COLOUR PRINT LIMITED,17/05/2018,48203,Marketing,Chief Executives,Marketing - Holding Code,643.00
2246441,5370763,NB COLOUR PRINT LIMITED,17/05/2018,48203,Marketing,Chief Executives,Marketing - Holding Code,618.00
6026,5383962,NCC SERVICES LTD,24/05/2018,48509,Other Fees,Chief Executives,Estates & Property Management,"1,750.00"
2992364,5405660,Net View Systems Limited,31/05/2018,48509,Other Fees,Adult Services,Laburnum Lodge,"1,240.00"
2809490,5371949,NewsBank Inc,21/05/2018,40750,Text Books,Development & Regeneration,Libraries Info. Services,"3,270.00"
2613325,5384675,Newsquest Media Group,24/05/2018,48203,Marketing,Chief Executives,Marketing - Holding Code,"1,342.00"
2613325,5384686,Newsquest Media Group,24/05/2018,48203,Marketing,Chief Executives,Marketing - Holding Code,"1,342.00"
2613325,5371301,Newsquest Media Group,17/05/2018,48502,Legal Fees,Environmental Services,Engineering Drainage,961.09
2613325,5384190,Newsquest Media Group,24/05/2018,48200,Advertising General,Environmental Services,Highway Management,500.53
3057458,5384128,"Next Stage ""A Way Forward"" Youth Development Limited",24/05/2018,52000,Vol Assoc Grants  General,Childrens Services,Res Serv Agency Placements,"5,591.32"
3057458,5372609,"Next Stage ""A Way Forward"" Youth Development Limited",21/05/2018,52000,Vol Assoc Grants  General,Childrens Services,Res Serv Agency Placements,"4,414.20"
3057458,5372598,"Next Stage ""A Way Forward"" Youth Development Limited",21/05/2018,52000,Vol Assoc Grants  General,Childrens Services,Res Serv Agency Placements,"4,414.20"
3057458,5372597,"Next Stage ""A Way Forward"" Youth Development Limited",21/05/2018,52000,Vol Assoc Grants  General,Childrens Services,Res Serv Agency Placements,"4,414.20"
2535411,5384186,Next Stage 4 Life,24/05/2018,52000,Vol Assoc Grants  General,Childrens Services,Res Serv Agency Placements,"33,214.33"
2535411,5384187,Next Stage 4 Life,24/05/2018,52000,Vol Assoc Grants  General,Childrens Services,Res Serv Agency Placements,"32,107.01"
4299954,5335409,Next Steps The Elms,08/05/2018,54301,Residential Provision,Adult Services,MH Residential External Provision,"8,145.00"
192870,5374641,NH ON-SITE LTD,21/05/2018,31305,Vehicle Servicing,Environmental Services,Transport Support Service,900.00
3220615,5387181,NOMS Agency,29/05/2018,52000,Vol Assoc Grants  General,Childrens Services,Res Serv Agency Placements,"7,504.00"
3220615,5387182,NOMS Agency,29/05/2018,52000,Vol Assoc Grants  General,Childrens Services,Res Serv Agency Placements,"6,968.00"
203434,5403635,NORTHERN EDUCATION,31/05/2018,53102,Agency Staff  Other,Childrens Services,Educational Improvement - Sec,"1,830.00"
2908299,5387303,Northgate Public Services (UK) Ltd,29/05/2018,43032,Office Stationery,Chief Executives,C.R.M. Operations,"16,776.20"
2908299,5370909,Northgate Public Services (UK) Ltd,29/05/2018,43032,Office Stationery,Chief Executives,C.R.M. Operations,"2,267.80"
2908299,5370909,Northgate Public Services (UK) Ltd,29/05/2018,43031,Blue Badge Stationery,Chief Executives,C.R.M. Operations,"2,116.00"
1838318,5383886,NORTHGATE VEHICLE HIRE LTD,24/05/2018,33201,Transport Hire,Environmental Services,Transport Support Service,"6,904.42"
1838318,5385911,NORTHGATE VEHICLE HIRE LTD,29/05/2018,36200,Uninsured Losses  Vehicles,Environmental Services,Transport Support Service,"1,076.32"
266933,5383946,NSL LIMITED#NSL SERVICES GROUP,24/05/2018,44202,Contract UnitNonLEA,Environmental Services,Parking Services  On Street,"45,148.37"
266933,5383950,NSL LIMITED#NSL SERVICES GROUP,24/05/2018,44202,Contract UnitNonLEA,Environmental Services,Parking Services  On Street,"42,132.19"
3106488,5356647,Nu-Phalt Limited,14/05/2018,33201,Transport Hire,Environmental Services,Transport Support Service,"1,950.00"
4685012,5383775,Oakley Stone Northern Limited,24/05/2018,40609,Horticultural Materials,Environmental Services,Heaton Fold,504.00
116387,5385781,OCLC (UK) LTD,24/05/2018,40750,Text Books,Development & Regeneration,Libraries Info. Services,"2,630.00"
116387,5377659,OCLC (UK) LTD,24/05/2018,40753,Book Fund Expenditure,Development & Regeneration,Libraries Info. Services,546.00
303,5333366,OCTAGON FLOWERS,03/05/2018,48626,Floral Decorations,Environmental Services,Bereavement Services,"1,527.00"
303,5385915,OCTAGON FLOWERS,29/05/2018,48626,Floral Decorations,Environmental Services,Bereavement Services,"1,237.50"
42754,5385997,OFSTED,29/05/2018,48509,Other Fees,Childrens Services,Disability Serv Avondale Street,"3,046.00"
42754,5357641,OFSTED,14/05/2018,48509,Other Fees,Childrens Services,Disability Serv Trackside Approach,"2,812.00"
42754,5385912,OFSTED,29/05/2018,48509,Other Fees,Childrens Services,Adolescent Support Unit,873.00
3129579,5385843,Oil Trader Ltd,29/05/2018,41101,Catering ProvisionsFood,Environmental Services,Catering,"1,433.33"
1564046,5360644,OJT COMMUNICATIONS LTD,14/05/2018,20103,Day To Day Maintenance Structural,Chief Executives,Admin Buildings Portfolio,"1,460.00"
132953,5335608,OLD GATES NURSING HOME,29/05/2018,54302,Nursing Provision,Adult Services,OA  External Provision Residential,"2,536.25"
3480643,5371116,Oliver New House Farm Priory,17/05/2018,33201,Transport Hire,Childrens Services,Transport Service General,"6,570.00"
372616,5354169,ONESTAGE LTD,10/05/2018,44050,Clients Holidays,Childrens Services,Music Serv  Events and External Funding,"12,225.00"
22676,5370912,ORACLE CORPORATION UK LIMITED,17/05/2018,45431,Computer Software Licences,Chief Executives,FM Contract,"332,573.39"
3371648,5385858,Orange Grove Foster Care Ltd,29/05/2018,52000,Vol Assoc Grants  General,Childrens Services,Res Serv Agency Placements,"3,587.01"
3371648,5372695,Orange Grove Foster Care Ltd,21/05/2018,52000,Vol Assoc Grants  General,Childrens Services,Res Serv Agency Placements,"3,471.30"
3371648,5372666,Orange Grove Foster Care Ltd,21/05/2018,52000,Vol Assoc Grants  General,Childrens Services,Res Serv Agency Placements,"3,436.80"
2397427,5335632,ORCHARD COURT,08/05/2018,54301,Residential Provision,Adult Services,OA  External Provision Residential,"2,532.95"
4336954,5393818,Orchid Home Care Support,31/05/2018,52200,Contracted Services,Adult Services,OA  Home Care Services external provision,"3,674.16"
4336954,5393824,Orchid Home Care Support,31/05/2018,52200,Contracted Services,Adult Services,OA  Home Care Services external provision,"1,511.14"
4336954,5393827,Orchid Home Care Support,31/05/2018,52200,Contracted Services,Adult Services,OA  Home Care Services external provision,"1,046.08"
4336954,5393825,Orchid Home Care Support,31/05/2018,52200,Contracted Services,Adult Services,PD Purcahser Domiciliary Care,"1,020.60"
4336954,5393821,Orchid Home Care Support,31/05/2018,52200,Contracted Services,Adult Services,OA  Home Care Services external provision,901.33
4336954,5393816,Orchid Home Care Support,31/05/2018,52200,Contracted Services,Adult Services,OA  Home Care Services external provision,684.04
4336954,5393817,Orchid Home Care Support,31/05/2018,52200,Contracted Services,Adult Services,OA  Home Care Services external provision,555.24
2441353,5353769,OSMIS EDUCATION LIMITED,10/05/2018,53000,Private Contracted Services,Childrens Services,Admin IT (Schools),"5,735.00"
6538,5354668,P J CARNEY & CO LTD,10/05/2018,52200,Contracted Services,Environmental Services,Activities and Operations,"11,450.00"
363,5400693,P J SERVICES (BOLTON) LTD,31/05/2018,20105,Painting & Decorating,Childrens Services,Tonge CC,"1,595.50"
376,5377663,PAKAWASTE ENGINEERING SERVICES LTD,24/05/2018,40101,Operational Equipment Maint,Environmental Services,Markets  Rent Account,504.82
378,5403647,PALATINE CLEANING CONTRACTORS,31/05/2018,20103,Day To Day Maintenance Structural,Environmental Services,Assets,996.00
388,5345660,PARALLEL PARENTS,10/05/2018,52000,Vol Assoc Grants  General,Childrens Services,Res Serv Agency Placements,"5,513.66"
388,5372800,PARALLEL PARENTS,21/05/2018,52000,Vol Assoc Grants  General,Childrens Services,Res Serv Agency Placements,"5,243.24"
388,5345680,PARALLEL PARENTS,10/05/2018,52000,Vol Assoc Grants  General,Childrens Services,Res Serv Agency Placements,"3,454.33"
2600347,5355583,Parasol Ltd,14/05/2018,53000,Private Contracted Services,Childrens Services,Admin IT (Schools),700.00
2600347,5355582,Parasol Ltd,14/05/2018,53000,Private Contracted Services,Childrens Services,Admin IT (Schools),560.00
2600347,5372914,Parasol Ltd,24/05/2018,53000,Private Contracted Services,Childrens Services,Admin IT (Schools),560.00
2600347,5387471,Parasol Ltd,31/05/2018,53000,Private Contracted Services,Childrens Services,Admin IT (Schools),560.00
394,5385891,PARK LANE PLANTS LTD,29/05/2018,40609,Horticultural Materials,Environmental Services,Heaton Fold,"1,054.90"
394,5371099,PARK LANE PLANTS LTD,17/05/2018,40609,Horticultural Materials,Environmental Services,Heaton Fold,925.00
394,5370942,PARK LANE PLANTS LTD,17/05/2018,40609,Horticultural Materials,Environmental Services,Heaton Fold,566.50
7907,5335554,PARKVIEW NURSING & RESIDENTIAL HOME,08/05/2018,54301,Residential Provision,Adult Services,OA  External Provision Residential,"32,448.58"
7907,5335554,PARKVIEW NURSING & RESIDENTIAL HOME,08/05/2018,54301,Residential Provision,Adult Services,PD Purchaser Residential Care,"15,775.71"
7907,5335554,PARKVIEW NURSING & RESIDENTIAL HOME,08/05/2018,54301,Residential Provision,Adult Services,MH Residential External Provision,"12,450.00"
7907,5335386,PARKVIEW NURSING & RESIDENTIAL HOME,08/05/2018,54301,Residential Provision,Adult Services,PD Purchaser Residential Care,"2,957.14"
4518963,5400718,Parr FM Limited,31/05/2018,Z6008,Expense AP Accrual,Bolton MBC Balance Sheet,Bolton MBC Balance Sheet,"2,739.15"
268398,5333420,PATROL#Parking and Traffic Regulations Outside London,14/05/2018,47200,General Subscriptions,Environmental Services,Parking Services  On Street,"2,436.70"
40476,5384309,PAWS FOR KIDS,24/05/2018,55700,Grant Funded Expenditure,Environmental Services,Community Safety,"68,000.00"
6547,5387234,PEAK FABRICATIONS (BOLTON) LTD,29/05/2018,Z6008,Expense AP Accrual,Bolton MBC Balance Sheet,Bolton MBC Balance Sheet,"2,900.00"
6547,5384339,PEAK FABRICATIONS (BOLTON) LTD,24/05/2018,52200,Contracted Services,Environmental Services,Activities and Operations,"5,100.00"
451,5384132,PEARSON EDUCATION LIMITED,24/05/2018,40101,Operational Equipment Maint,Childrens Services,Education Psychology Service,670.75
2993464,5353857,Pelican Road Services Ltd,10/05/2018,40610,Direct Materials,Environmental Services,Highway Services,"3,692.00"
4270955,5384316,Peppermint Soda Ltd,24/05/2018,48203,Marketing,Chief Executives,Marketing - Holding Code,"4,875.00"
111260,5372671,PERPETUAL FOSTERING LTD,21/05/2018,52000,Vol Assoc Grants  General,Childrens Services,Res Serv Agency Placements,"4,542.90"
111260,5372669,PERPETUAL FOSTERING LTD,21/05/2018,52000,Vol Assoc Grants  General,Childrens Services,Res Serv Agency Placements,"3,424.20"
111260,5372668,PERPETUAL FOSTERING LTD,21/05/2018,52000,Vol Assoc Grants  General,Childrens Services,Res Serv Agency Placements,"3,169.50"
22610,5372874,PETER DOUGLASS PLATFORMS,21/05/2018,33201,Transport Hire,Environmental Services,Transport Support Service,"2,205.00"
6553,5362884,PETERS LTD,17/05/2018,40753,Book Fund Expenditure,Development & Regeneration,Libraries Info. Services,"2,295.45"
6553,5362883,PETERS LTD,17/05/2018,40753,Book Fund Expenditure,Development & Regeneration,Libraries Info. Services,"2,229.26"
93470,5370736,Phoenix Commercial Collections#2,17/05/2018,48509,Other Fees,Chief Executives,Council Tax,848.99
93470,5371660,Phoenix Commercial Collections#2,21/05/2018,48509,Other Fees,Chief Executives,Council Tax,651.69
93470,5371507,Phoenix Commercial Collections#2,17/05/2018,48509,Other Fees,Chief Executives,Council Tax,623.30
93470,5364651,Phoenix Commercial Collections#2,17/05/2018,48509,Other Fees,Environmental Services,Parking Services  On Street,868.86
6558,5384397,PHS GROUP PLC,24/05/2018,20100,Day To Day Maintenance,Chief Executives,Other Buildings Portfolio,694.84
6558,5333362,PHS GROUP PLC,03/05/2018,26001,Hygiene Requisite,Chief Executives,Admin Buildings Portfolio,620.10
6558,5333709,PHS GROUP PLC,14/05/2018,26001,Hygiene Requisite,Childrens Services,Oxford Grove CC,"1,580.90"
4519956,5395659,Pickering Psychology Services Ltd,31/05/2018,48509,Other Fees,Childrens Services,Management Team,834.85
2757312,5376722,Pinnacle Health Partnership LLP,24/05/2018,45431,Computer Software Licences,Public Health,Public Health - Centralised Budgets,"7,007.32"
2610303,5353709,Pitney Bowes Finance Limited,10/05/2018,45001,Franking Machine,Environmental Services,Couriers,934.30
6568,5354661,Postage By Phone-Pitney Bowes Ltd,10/05/2018,45002,Postage Charge,Environmental Services,Franking,"36,000.00"
6568,5406651,Postage By Phone-Pitney Bowes Ltd,31/05/2018,45002,Postage Charge,Environmental Services,Franking,"36,000.00"
3095468,5372152,PPSS Ltd,21/05/2018,42001,Uniforms,Environmental Services,Activities and Operations,"1,227.00"
6572,5371662,PREMIER PAPER GROUP LIMITED,21/05/2018,43032,Office Stationery,Chief Executives,Text & Reprographics,585.00
6572,5401666,PREMIER PAPER GROUP LIMITED,31/05/2018,43032,Office Stationery,Chief Executives,Text & Reprographics,540.00
6572,5384673,PREMIER PAPER GROUP LIMITED,24/05/2018,43032,Office Stationery,Chief Executives,Text & Reprographics,519.00
288626,5352654,Premier Pest Services,10/05/2018,20102,Health & Safety,Environmental Services,Markets  Rent Account,530.00
2284336,5385932,Premier Tail Lifts Ltd,29/05/2018,52200,Contracted Services,Environmental Services,Transport Support Service,942.84
739608,5385736,PRISM MEDICAL UK,24/05/2018,44051,Clients Aids & Adaptations,Adult Services,ICES,"5,000.00"
739608,5367635,PRISM MEDICAL UK,17/05/2018,44051,Clients Aids & Adaptations,Adult Services,ICES,"3,412.50"
739608,5384707,PRISM MEDICAL UK,24/05/2018,44051,Clients Aids & Adaptations,Adult Services,ICES,"2,253.31"
739608,5372546,PRISM MEDICAL UK,29/05/2018,44051,Clients Aids & Adaptations,Adult Services,ICES,"2,184.13"
739608,5385636,PRISM MEDICAL UK,24/05/2018,44051,Clients Aids & Adaptations,Adult Services,ICES,"2,000.00"
739608,5384632,PRISM MEDICAL UK,24/05/2018,44051,Clients Aids & Adaptations,Adult Services,ICES,"1,999.74"
739608,5352682,PRISM MEDICAL UK,10/05/2018,44051,Clients Aids & Adaptations,Adult Services,ICES,"1,850.70"
739608,5371474,PRISM MEDICAL UK,31/05/2018,44051,Clients Aids & Adaptations,Adult Services,ICES,"1,704.25"
739608,5393682,PRISM MEDICAL UK,31/05/2018,44051,Clients Aids & Adaptations,Adult Services,ICES,"1,637.74"
739608,5371478,PRISM MEDICAL UK,17/05/2018,44051,Clients Aids & Adaptations,Adult Services,ICES,"1,551.92"
739608,5393680,PRISM MEDICAL UK,31/05/2018,44051,Clients Aids & Adaptations,Adult Services,ICES,"1,410.01"
739608,5371384,PRISM MEDICAL UK,29/05/2018,44051,Clients Aids & Adaptations,Adult Services,ICES,"1,043.61"
739608,5384635,PRISM MEDICAL UK,24/05/2018,44051,Clients Aids & Adaptations,Adult Services,ICES,869.86
739608,5364650,PRISM MEDICAL UK,17/05/2018,44051,Clients Aids & Adaptations,Adult Services,ICES,840.17
739608,5384622,PRISM MEDICAL UK,24/05/2018,44051,Clients Aids & Adaptations,Adult Services,ICES,798.77
739608,5384629,PRISM MEDICAL UK,24/05/2018,44051,Clients Aids & Adaptations,Adult Services,ICES,648.98
739608,5393889,PRISM MEDICAL UK,31/05/2018,44051,Clients Aids & Adaptations,Adult Services,ICES,504.77
2729460,5390932,Proactive Personnel Ltd,29/05/2018,53102,Agency Staff  Other,Environmental Services,Transport Support Service,"2,730.05"
2729460,5385926,Proactive Personnel Ltd,29/05/2018,53102,Agency Staff  Other,Environmental Services,Transport Support Service,"2,618.75"
2729460,5370745,Proactive Personnel Ltd,17/05/2018,53102,Agency Staff  Other,Environmental Services,Transport Support Service,"1,669.11"
2729460,5373647,Proactive Personnel Ltd,21/05/2018,53102,Agency Staff  Other,Environmental Services,Transport Support Service,"1,581.84"
3071459,5333578,Profile Security Services Ltd,03/05/2018,44401,Other Security Expenses,Environmental Services,Security Services,"1,952.27"
3071459,5333576,Profile Security Services Ltd,08/05/2018,53102,Agency Staff  Other,Environmental Services,Security Services,"1,764.72"
3071459,5333593,Profile Security Services Ltd,03/05/2018,53102,Agency Staff  Other,Environmental Services,Security Services,"1,421.20"
3071459,5333579,Profile Security Services Ltd,03/05/2018,53102,Agency Staff  Other,Environmental Services,Security Services,"1,288.30"
3071459,5333574,Profile Security Services Ltd,03/05/2018,53102,Agency Staff  Other,Environmental Services,Security Services,960.30
3071459,5333586,Profile Security Services Ltd,03/05/2018,53102,Agency Staff  Other,Environmental Services,Security Services,866.88
3071459,5333533,Profile Security Services Ltd,03/05/2018,53102,Agency Staff  Other,Environmental Services,Security Services,743.04
3071459,5333580,Profile Security Services Ltd,03/05/2018,53102,Agency Staff  Other,Environmental Services,Security Services,654.06
3071459,5333660,Profile Security Services Ltd,08/05/2018,53102,Agency Staff  Other,Environmental Services,Security Services,619.20
596,5390921,PSI (RESOURCES) LTD,29/05/2018,Z6008,Expense AP Accrual,Bolton MBC Balance Sheet,Bolton MBC Balance Sheet,542.50
4578955,5385818,Psychology People,29/05/2018,48509,Other Fees,Childrens Services,Education Psychology Service,"1,560.00"
4578955,5385820,Psychology People,29/05/2018,48509,Other Fees,Childrens Services,Education Psychology Service,"1,560.00"
4578955,5371056,Psychology People,17/05/2018,48509,Other Fees,Childrens Services,Education Psychology Service,"1,560.00"
2935539,5372639,Putting You First Ltd#Your Life Your Way,21/05/2018,52200,Contracted Services,Adult Services,LD Purchaser Supported Housing,"7,285.80"
2935539,5372638,Putting You First Ltd#Your Life Your Way,21/05/2018,52200,Contracted Services,Adult Services,LD Purchaser Supported Housing,"1,864.80"
390858,5384239,QUANTIL LIMITED,24/05/2018,40609,Horticultural Materials,Environmental Services,Heaton Fold,801.96
168404,5335610,QUEENS PARK VIEW#INTELLIGENT CARE,08/05/2018,54301,Residential Provision,Adult Services,MH Residential External Provision,"11,197.15"
631,5377790,R D LOCKETT LTD#2,24/05/2018,20300,Heating & Electrical Work,Environmental Services,Activities and Operations,777.40
644,5383874,R S TYRER LTD,24/05/2018,34405,Clients  Swimming Fares,Environmental Services,Vulnerable Persons Transport,"2,160.00"
653,5393677,R82 UK LTD,31/05/2018,44051,Clients Aids & Adaptations,Adult Services,ICES,"2,358.00"
2845300,5335494,Radcliffe Meadows Nursing Home,08/05/2018,54302,Nursing Provision,Adult Services,LD Purchaser Residential Care,"7,646.00"
2845300,5335493,Radcliffe Meadows Nursing Home,08/05/2018,54301,Residential Provision,Adult Services,LD Purchaser Residential Care,"6,250.00"
6595,5335555,RANDOMLIGHT LTD#HEIGHTSIDE HOUSE,08/05/2018,54302,Nursing Provision,Adult Services,MH Residential External Provision,"11,521.85"
6595,5335556,RANDOMLIGHT LTD#HEIGHTSIDE HOUSE,08/05/2018,54301,Residential Provision,Adult Services,MH Residential External Provision,"2,956.00"
221980,5370934,Reactec Ltd,17/05/2018,40100,Operational Equipment Purchase,Environmental Services,Activities and Operations,"35,215.68"
221980,5370927,Reactec Ltd,17/05/2018,40601,General Materials,Environmental Services,Activities and Operations,"3,877.87"
3616770,5354675,REDACTED - Personal Data,14/05/2018,48203,Marketing,Chief Executives,Marketing - Holding Code,"4,500.00"
3886956,5395663,REDACTED - Personal Data,31/05/2018,48509,Other Fees,Chief Executives,Members,"1,412.36"
4519971,5355527,REDACTED - Personal Data,14/05/2018,48203,Marketing,Chief Executives,Marketing - Holding Code,862.50
814640,5370739,REDACTED - Personal Data,17/05/2018,48203,Marketing,Chief Executives,Marketing - Holding Code,500.00
4604007,5387179,REDACTED - Personal Data,29/05/2018,19100,Training Exps Tuition Fees,Childrens Services,WPD Project Link,"6,595.80"
952693,5402669,REDACTED - Personal Data,31/05/2018,19100,Training Exps Tuition Fees,Childrens Services,WPD Project Link,"3,750.00"
322879,5371036,REDACTED - Personal Data,17/05/2018,19100,Training Exps Tuition Fees,Childrens Services,WPD Project Link,"2,490.60"
3514655,5386049,REDACTED - Personal Data,29/05/2018,48509,Other Fees,Childrens Services,Education Psychology Service,"2,200.00"
4685170,5384010,REDACTED - Personal Data,24/05/2018,52200,Contracted Services,Childrens Services,Music Serv - BwD,"2,100.00"
191653,5372567,REDACTED - Personal Data,21/05/2018,53000,Private Contracted Services,Childrens Services,SIPs,"1,800.00"
1457062,5385788,REDACTED - Personal Data,24/05/2018,53000,Private Contracted Services,Childrens Services,SIPs,"1,800.00"
4192954,5345722,REDACTED - Personal Data,10/05/2018,52200,Contracted Services,Childrens Services,In School Coaching,"1,657.50"
2797300,5345723,REDACTED - Personal Data,10/05/2018,52200,Contracted Services,Childrens Services,In School Coaching,"1,462.50"
3540651,5384144,REDACTED - Personal Data,24/05/2018,52200,Contracted Services,Childrens Services,Music ServInstru & Vocal Teach,"1,420.83"
2653319,5345715,REDACTED - Personal Data,10/05/2018,52200,Contracted Services,Childrens Services,In School Coaching,"1,372.50"
2722325,5345718,REDACTED - Personal Data,10/05/2018,52200,Contracted Services,Childrens Services,In School Coaching,"1,282.50"
191653,5372567,REDACTED - Personal Data,21/05/2018,52300,Client Support Costs,Childrens Services,SIPs,"1,200.00"
1457062,5385788,REDACTED - Personal Data,24/05/2018,52200,Contracted Services,Childrens Services,SIPs,"1,200.00"
3326632,5345719,REDACTED - Personal Data,10/05/2018,52200,Contracted Services,Childrens Services,Bikeability,"1,125.00"
3581681,5345720,REDACTED - Personal Data,10/05/2018,52200,Contracted Services,Childrens Services,Bikeability,"1,125.00"
2246368,5345732,REDACTED - Personal Data,10/05/2018,52200,Contracted Services,Childrens Services,In School Coaching,"1,047.50"
3644685,5345717,REDACTED - Personal Data,10/05/2018,52200,Contracted Services,Childrens Services,In School Coaching,922.50
3438638,5384145,REDACTED - Personal Data,24/05/2018,52200,Contracted Services,Childrens Services,Music ServInstru & Vocal Teach,887.50
3037367,5345724,REDACTED - Personal Data,10/05/2018,52200,Contracted Services,Childrens Services,In School Coaching,866.25
4685166,5383767,REDACTED - Personal Data,24/05/2018,52200,Contracted Services,Childrens Services,Music Serv - BwD,859.50
167010,5372569,REDACTED - Personal Data,21/05/2018,48630,NonStaff Training,Childrens Services,Disability Serv Bolton Shared Care,850.00
3695707,5387349,REDACTED - Personal Data,29/05/2018,48509,Other Fees,Childrens Services,Music ServInstru & Vocal Teach,850.00
3071465,5352661,REDACTED - Personal Data,10/05/2018,48509,Other Fees,Childrens Services,Education Psychology Service,800.00
4664992,5370820,REDACTED - Personal Data,17/05/2018,52200,Contracted Services,Childrens Services,Music Serv - BwD,711.00
3424662,5345752,REDACTED - Personal Data,10/05/2018,52200,Contracted Services,Childrens Services,Bikeability,675.00
4584992,5371521,REDACTED - Personal Data,17/05/2018,48509,Other Fees,Childrens Services,Music ServMusic Service general,525.00
2813354,5387164,REDACTED - Personal Data,29/05/2018,48509,Other Fees,Childrens Services,Gtr Manchester Music Education Hub,511.00
1538113,5355469,REDACTED - Personal Data,14/05/2018,20100,Day To Day Maintenance,Development & Regeneration,Dilapidations Revenue Spend,"1,500.00"
83131,5399651,REDACTED - Personal Data,31/05/2018,48509,Other Fees,Development & Regeneration,Collections Access MUS,665.00
6360,5352639,REDACTED - Personal Data,10/05/2018,20100,Day To Day Maintenance,Environmental Services,Markets  Rent Account,775.00
6360,5351637,REDACTED - Personal Data,10/05/2018,20100,Day To Day Maintenance,Environmental Services,Markets  Rent Account,524.25
2813362,5333636,REDACTED - Personal Data/Music Education Consultant,03/05/2018,53000,Private Contracted Services,Childrens Services,Gtr Manchester Music Education Hub,648.40
42398,5335605,REDBANK CARE HOME#PAYEE VOYAGE NORTH,08/05/2018,54301,Residential Provision,Adult Services,LD Purchaser Residential Care,"6,285.40"
2678357,5335491,Redbricks Care Home,08/05/2018,54301,Residential Provision,Adult Services,OA  External Provision Residential,"2,684.50"
3490653,5372550,Reed Specialist Recruitment Ltd,21/05/2018,53102,Agency Staff  Other,Adult Services,Darley Court,"7,079.25"
3490653,5387335,Reed Specialist Recruitment Ltd,29/05/2018,53102,Agency Staff  Other,Adult Services,Safeguarding,"3,106.31"
3490653,5335462,Reed Specialist Recruitment Ltd,08/05/2018,53102,Agency Staff  Other,Adult Services,Safeguarding,"2,984.97"
3490653,5355602,Reed Specialist Recruitment Ltd,14/05/2018,53102,Agency Staff  Other,Adult Services,Safeguarding,"2,645.22"
3490653,5372550,Reed Specialist Recruitment Ltd,21/05/2018,53102,Agency Staff  Other,Adult Services,Safeguarding,"1,795.84"
3490653,5355602,Reed Specialist Recruitment Ltd,14/05/2018,53102,Agency Staff  Other,Adult Services,Admissions Avoidance,"1,625.96"
3490653,5355602,Reed Specialist Recruitment Ltd,14/05/2018,53102,Agency Staff  Other,Adult Services,CLDT & DOLs - HoS,"1,606.37"
3490653,5355602,Reed Specialist Recruitment Ltd,14/05/2018,53102,Agency Staff  Other,Adult Services,Integrated Discharge Team,"1,470.83"
3490653,5387335,Reed Specialist Recruitment Ltd,29/05/2018,53102,Agency Staff  Other,Adult Services,Admissions Avoidance,"1,456.08"
3490653,5372550,Reed Specialist Recruitment Ltd,21/05/2018,53102,Agency Staff  Other,Adult Services,Integrated Discharge Team,"1,454.18"
3490653,5372550,Reed Specialist Recruitment Ltd,21/05/2018,53102,Agency Staff  Other,Adult Services,Admissions Avoidance,"1,443.95"
3490653,5355602,Reed Specialist Recruitment Ltd,14/05/2018,53102,Agency Staff  Other,Adult Services,MH Early Intervention Team,"1,083.09"
3490653,5372550,Reed Specialist Recruitment Ltd,21/05/2018,53102,Agency Staff  Other,Adult Services,MH Dementia and Complex Care Fieldwork Team,"1,035.71"
3490653,5355602,Reed Specialist Recruitment Ltd,14/05/2018,53102,Agency Staff  Other,Adult Services,MH Dementia and Complex Care Fieldwork Team,"1,035.71"
3490653,5355602,Reed Specialist Recruitment Ltd,14/05/2018,53102,Agency Staff  Other,Adult Services,Adult ACM - North,"1,021.91"
3490653,5335462,Reed Specialist Recruitment Ltd,08/05/2018,53102,Agency Staff  Other,Adult Services,Adult ACM - North,"1,021.91"
3490653,5372550,Reed Specialist Recruitment Ltd,21/05/2018,53102,Agency Staff  Other,Adult Services,MH North Fieldwork Team,"1,018.54"
3490653,5355602,Reed Specialist Recruitment Ltd,14/05/2018,53102,Agency Staff  Other,Adult Services,MH North Fieldwork Team,"1,018.54"
3490653,5335462,Reed Specialist Recruitment Ltd,08/05/2018,53102,Agency Staff  Other,Adult Services,MH North Fieldwork Team,"1,018.54"
3490653,5372550,Reed Specialist Recruitment Ltd,21/05/2018,53102,Agency Staff  Other,Adult Services,MH Early Intervention Team,912.72
3490653,5387335,Reed Specialist Recruitment Ltd,29/05/2018,53102,Agency Staff  Other,Adult Services,MH Early Intervention Team,912.72
3490653,5335462,Reed Specialist Recruitment Ltd,08/05/2018,53102,Agency Staff  Other,Adult Services,MH Early Intervention Team,912.72
3490653,5335462,Reed Specialist Recruitment Ltd,08/05/2018,53102,Agency Staff  Other,Adult Services,Admissions Avoidance,897.92
3490653,5372550,Reed Specialist Recruitment Ltd,21/05/2018,53102,Agency Staff  Other,Adult Services,CLDT & DOLs - HoS,851.86
3490653,5335462,Reed Specialist Recruitment Ltd,08/05/2018,53102,Agency Staff  Other,Adult Services,Integrated Discharge Team,849.38
3490653,5335462,Reed Specialist Recruitment Ltd,08/05/2018,53102,Agency Staff  Other,Adult Services,MH Dementia and Complex Care Fieldwork Team,828.58
3490653,5387335,Reed Specialist Recruitment Ltd,29/05/2018,53102,Agency Staff  Other,Adult Services,MH North Fieldwork Team,825.84
3490653,5372550,Reed Specialist Recruitment Ltd,21/05/2018,53102,Agency Staff  Other,Adult Services,Adult ACM - North,804.18
3490653,5387335,Reed Specialist Recruitment Ltd,29/05/2018,53102,Agency Staff  Other,Adult Services,Wilfred Geere (2),771.09
3490653,5372550,Reed Specialist Recruitment Ltd,21/05/2018,53102,Agency Staff  Other,Adult Services,Adult ACM - South,728.04
3490653,5387335,Reed Specialist Recruitment Ltd,29/05/2018,53102,Agency Staff  Other,Adult Services,Adult ACM - South,728.04
3490653,5355602,Reed Specialist Recruitment Ltd,14/05/2018,53102,Agency Staff  Other,Adult Services,Adult ACM - South,728.04
3490653,5335462,Reed Specialist Recruitment Ltd,08/05/2018,53102,Agency Staff  Other,Adult Services,Adult ACM - South,728.04
3490653,5372550,Reed Specialist Recruitment Ltd,21/05/2018,53102,Agency Staff  Other,Adult Services,ICES,687.68
3490653,5335462,Reed Specialist Recruitment Ltd,08/05/2018,53102,Agency Staff  Other,Adult Services,Darley Court,646.49
3490653,5387335,Reed Specialist Recruitment Ltd,29/05/2018,53102,Agency Staff  Other,Adult Services,Adult ACM - North,627.41
3490653,5372550,Reed Specialist Recruitment Ltd,21/05/2018,53102,Agency Staff  Other,Adult Services,Wilfred Geere (2),591.11
3490653,5387335,Reed Specialist Recruitment Ltd,29/05/2018,53102,Agency Staff  Other,Adult Services,Community Learning Disability Team,535.45
3490653,5387335,Reed Specialist Recruitment Ltd,29/05/2018,53102,Agency Staff  Other,Adult Services,Laburnum Lodge,530.56
3490653,5355602,Reed Specialist Recruitment Ltd,14/05/2018,53102,Agency Staff  Other,Adult Services,Laburnum Lodge,530.56
3490653,5372550,Reed Specialist Recruitment Ltd,21/05/2018,53102,Agency Staff  Other,Chief Executives,C.R.M. Operations,"4,010.08"
3490653,5372550,Reed Specialist Recruitment Ltd,21/05/2018,53102,Agency Staff  Other,Chief Executives,Legal Services Trading Account,"3,124.13"
3490653,5387335,Reed Specialist Recruitment Ltd,29/05/2018,53102,Agency Staff  Other,Chief Executives,Legal Services Trading Account,"3,056.64"
3490653,5335462,Reed Specialist Recruitment Ltd,08/05/2018,53102,Agency Staff  Other,Chief Executives,C.R.M. Operations,"2,814.29"
3490653,5335462,Reed Specialist Recruitment Ltd,08/05/2018,53102,Agency Staff  Other,Chief Executives,Legal Services Trading Account,"2,730.86"
3490653,5355602,Reed Specialist Recruitment Ltd,14/05/2018,53102,Agency Staff  Other,Chief Executives,Legal Services Trading Account,"2,690.40"
3490653,5355602,Reed Specialist Recruitment Ltd,14/05/2018,53102,Agency Staff  Other,Chief Executives,C.R.M. Operations,"2,443.61"
3490653,5355602,Reed Specialist Recruitment Ltd,14/05/2018,53102,Agency Staff  Other,Chief Executives,Business Support,"1,863.38"
3490653,5372550,Reed Specialist Recruitment Ltd,21/05/2018,53102,Agency Staff  Other,Chief Executives,Estates & Property Management,"1,859.90"
3490653,5335462,Reed Specialist Recruitment Ltd,08/05/2018,53102,Agency Staff  Other,Chief Executives,Business Support,"1,834.95"
3490653,5355602,Reed Specialist Recruitment Ltd,14/05/2018,53102,Agency Staff  Other,Chief Executives,Estates & Property Management,"1,637.37"
3490653,5372550,Reed Specialist Recruitment Ltd,21/05/2018,53102,Agency Staff  Other,Chief Executives,Business Support,"1,635.88"
3490653,5387335,Reed Specialist Recruitment Ltd,29/05/2018,53102,Agency Staff  Other,Chief Executives,Business Support,"1,496.68"
3490653,5387335,Reed Specialist Recruitment Ltd,29/05/2018,53102,Agency Staff  Other,Chief Executives,Estates & Property Management,"1,417.33"
3490653,5355602,Reed Specialist Recruitment Ltd,14/05/2018,53102,Agency Staff  Other,Chief Executives,HR - Corporate,"1,387.80"
3490653,5335462,Reed Specialist Recruitment Ltd,08/05/2018,53102,Agency Staff  Other,Chief Executives,HR - Corporate,"1,387.80"
3490653,5372550,Reed Specialist Recruitment Ltd,21/05/2018,53102,Agency Staff  Other,Chief Executives,HR - Corporate,"1,125.24"
3490653,5335462,Reed Specialist Recruitment Ltd,08/05/2018,53102,Agency Staff  Other,Chief Executives,Estates & Property Management,948.65
3490653,5387335,Reed Specialist Recruitment Ltd,29/05/2018,53102,Agency Staff  Other,Chief Executives,HR - Corporate,937.70
3490653,5335462,Reed Specialist Recruitment Ltd,08/05/2018,53102,Agency Staff  Other,Chief Executives,Projects,722.74
3490653,5372550,Reed Specialist Recruitment Ltd,21/05/2018,53102,Agency Staff  Other,Chief Executives,Projects,711.62
3490653,5355602,Reed Specialist Recruitment Ltd,14/05/2018,53102,Agency Staff  Other,Chief Executives,Projects,711.62
3490653,5355602,Reed Specialist Recruitment Ltd,14/05/2018,53102,Agency Staff  Other,Chief Executives,Operational Facilities Management,705.08
3490653,5335462,Reed Specialist Recruitment Ltd,08/05/2018,53102,Agency Staff  Other,Chief Executives,Operational Facilities Management,697.19
3490653,5387335,Reed Specialist Recruitment Ltd,29/05/2018,53102,Agency Staff  Other,Chief Executives,C.R.M. Operations,689.92
3490653,5355602,Reed Specialist Recruitment Ltd,14/05/2018,53102,Agency Staff  Other,Chief Executives,Health and Safety,677.56
3490653,5335462,Reed Specialist Recruitment Ltd,08/05/2018,53102,Agency Staff  Other,Chief Executives,Marketing Agency,658.07
3490653,5372550,Reed Specialist Recruitment Ltd,21/05/2018,53102,Agency Staff  Other,Chief Executives,Operational Facilities Management,643.55
3490653,5372550,Reed Specialist Recruitment Ltd,21/05/2018,53102,Agency Staff  Other,Chief Executives,HR - Adults and Community Services,583.70
3490653,5355602,Reed Specialist Recruitment Ltd,14/05/2018,53102,Agency Staff  Other,Chief Executives,HR - Adults and Community Services,583.70
3490653,5335462,Reed Specialist Recruitment Ltd,08/05/2018,53102,Agency Staff  Other,Chief Executives,HR - Adults and Community Services,583.70
3490653,5335462,Reed Specialist Recruitment Ltd,08/05/2018,53102,Agency Staff  Other,Chief Executives,Corporate Information Team,581.19
3490653,5387335,Reed Specialist Recruitment Ltd,29/05/2018,53102,Agency Staff  Other,Chief Executives,Operational Facilities Management,577.31
3490653,5387335,Reed Specialist Recruitment Ltd,29/05/2018,53102,Agency Staff  Other,Chief Executives,Marketing Agency,565.95
3490653,5355602,Reed Specialist Recruitment Ltd,14/05/2018,53102,Agency Staff  Other,Chief Executives,Marketing Agency,565.95
3490653,5372550,Reed Specialist Recruitment Ltd,21/05/2018,53102,Agency Staff  Other,Chief Executives,Health and Safety,549.36
3490653,5387335,Reed Specialist Recruitment Ltd,29/05/2018,53102,Agency Staff  Other,Chief Executives,Health and Safety,549.36
3490653,5335462,Reed Specialist Recruitment Ltd,08/05/2018,53102,Agency Staff  Other,Chief Executives,Health and Safety,549.36
3490653,5387335,Reed Specialist Recruitment Ltd,29/05/2018,53102,Agency Staff  Other,Chief Executives,Business Support,537.99
3490653,5355602,Reed Specialist Recruitment Ltd,14/05/2018,53102,Agency Staff  Other,Chief Executives,Organisational Development,504.94
3490653,5335462,Reed Specialist Recruitment Ltd,08/05/2018,53102,Agency Staff  Other,Childrens Services,LAC Team,"3,055.62"
3490653,5372550,Reed Specialist Recruitment Ltd,21/05/2018,53102,Agency Staff  Other,Childrens Services,Safeguarding Team,"2,814.38"
3490653,5355602,Reed Specialist Recruitment Ltd,14/05/2018,53102,Agency Staff  Other,Childrens Services,Safeguarding Team,"2,814.38"
3490653,5335462,Reed Specialist Recruitment Ltd,08/05/2018,53102,Agency Staff  Other,Childrens Services,Safeguarding Team,"2,814.38"
3490653,5387335,Reed Specialist Recruitment Ltd,29/05/2018,53102,Agency Staff  Other,Childrens Services,LAC Team,"2,312.35"
3490653,5372550,Reed Specialist Recruitment Ltd,21/05/2018,53102,Agency Staff  Other,Childrens Services,LAC Team,"1,844.38"
3490653,5355602,Reed Specialist Recruitment Ltd,14/05/2018,53102,Agency Staff  Other,Childrens Services,LAC Team,"1,844.38"
3490653,5387335,Reed Specialist Recruitment Ltd,29/05/2018,53102,Agency Staff  Other,Childrens Services,Safeguarding Team,"1,778.82"
3490653,5372550,Reed Specialist Recruitment Ltd,21/05/2018,53102,Agency Staff  Other,Childrens Services,Referral & Assessment Team,"1,708.36"
3490653,5387335,Reed Specialist Recruitment Ltd,29/05/2018,53102,Agency Staff  Other,Childrens Services,Referral & Assessment Team,"1,388.71"
3490653,5372550,Reed Specialist Recruitment Ltd,21/05/2018,53102,Agency Staff  Other,Childrens Services,Integrated Commissioning,"1,202.80"
3490653,5355602,Reed Specialist Recruitment Ltd,14/05/2018,53102,Agency Staff  Other,Childrens Services,Integrated Commissioning,"1,202.80"
3490653,5335462,Reed Specialist Recruitment Ltd,08/05/2018,53102,Agency Staff  Other,Childrens Services,Integrated Commissioning,"1,202.80"
3490653,5372550,Reed Specialist Recruitment Ltd,21/05/2018,53102,Agency Staff  Other,Childrens Services,Quality & inclusion,"1,170.62"
3490653,5372550,Reed Specialist Recruitment Ltd,21/05/2018,53102,Agency Staff  Other,Childrens Services,Business Support  Children Social Care,"1,006.48"
3490653,5355602,Reed Specialist Recruitment Ltd,14/05/2018,53102,Agency Staff  Other,Childrens Services,Business Support  Children Social Care,"1,006.48"
3490653,5335462,Reed Specialist Recruitment Ltd,08/05/2018,53102,Agency Staff  Other,Childrens Services,Business Support  Children Social Care,"1,006.48"
3490653,5387335,Reed Specialist Recruitment Ltd,29/05/2018,53102,Agency Staff  Other,Childrens Services,Integrated Commissioning,958.99
3490653,5355602,Reed Specialist Recruitment Ltd,14/05/2018,53102,Agency Staff  Other,Childrens Services,Referral & Assessment Team,910.05
3490653,5335462,Reed Specialist Recruitment Ltd,08/05/2018,53102,Agency Staff  Other,Childrens Services,Referral & Assessment Team,910.05
3490653,5372550,Reed Specialist Recruitment Ltd,21/05/2018,53102,Agency Staff  Other,Childrens Services,Targeted Youth Support,653.35
3490653,5335462,Reed Specialist Recruitment Ltd,08/05/2018,53102,Agency Staff  Other,Childrens Services,Targeted Youth Support,653.35
3490653,5355602,Reed Specialist Recruitment Ltd,14/05/2018,53102,Agency Staff  Other,Childrens Services,Quality & inclusion,604.14
3490653,5335462,Reed Specialist Recruitment Ltd,08/05/2018,53102,Agency Staff  Other,Childrens Services,Quality & inclusion,602.42
3490653,5355602,Reed Specialist Recruitment Ltd,14/05/2018,53102,Agency Staff  Other,Childrens Services,Children and Family Supp Svs West,586.90
3490653,5335462,Reed Specialist Recruitment Ltd,08/05/2018,53102,Agency Staff  Other,Childrens Services,Children and Family Supp Svs West,586.90
3490653,5335462,Reed Specialist Recruitment Ltd,08/05/2018,53102,Agency Staff  Other,Childrens Services,FIAT,547.17
3490653,5387335,Reed Specialist Recruitment Ltd,29/05/2018,53102,Agency Staff  Other,Childrens Services,Targeted Youth Support,520.92
3490653,5355602,Reed Specialist Recruitment Ltd,14/05/2018,53102,Agency Staff  Other,Childrens Services,Targeted Youth Support,503.26
3490653,5387335,Reed Specialist Recruitment Ltd,29/05/2018,53102,Agency Staff  Other,Childrens Services,Business Support  Children Social Care,503.24
3490653,5372550,Reed Specialist Recruitment Ltd,21/05/2018,53102,Agency Staff  Other,Childrens Services,FIAT,500.35
3490653,5372550,Reed Specialist Recruitment Ltd,21/05/2018,53102,Agency Staff  Other,Development & Regeneration,Divisional Development,510.27
3490653,5355602,Reed Specialist Recruitment Ltd,14/05/2018,53102,Agency Staff  Other,Development & Regeneration,Divisional Development,510.27
3490653,5387335,Reed Specialist Recruitment Ltd,29/05/2018,53102,Agency Staff  Other,Environmental Services,Activities and Operations,"8,916.41"
3490653,5387335,Reed Specialist Recruitment Ltd,29/05/2018,53102,Agency Staff  Other,Environmental Services,Waste,"7,050.14"
3490653,5372550,Reed Specialist Recruitment Ltd,21/05/2018,53102,Agency Staff  Other,Environmental Services,Activities and Operations,"3,610.32"
3490653,5355602,Reed Specialist Recruitment Ltd,14/05/2018,53102,Agency Staff  Other,Environmental Services,Bereavement Services,"3,560.13"
3490653,5387335,Reed Specialist Recruitment Ltd,29/05/2018,53102,Agency Staff  Other,Environmental Services,Bereavement Services,"2,506.20"
3490653,5355602,Reed Specialist Recruitment Ltd,14/05/2018,53102,Agency Staff  Other,Environmental Services,Activities and Operations,"1,923.84"
3490653,5335462,Reed Specialist Recruitment Ltd,08/05/2018,53102,Agency Staff  Other,Environmental Services,Activities and Operations,"1,919.80"
3490653,5355602,Reed Specialist Recruitment Ltd,14/05/2018,53102,Agency Staff  Other,Environmental Services,Waste,"1,559.88"
3490653,5372550,Reed Specialist Recruitment Ltd,21/05/2018,53102,Agency Staff  Other,Environmental Services,Waste,"1,514.94"
3490653,5335462,Reed Specialist Recruitment Ltd,08/05/2018,53102,Agency Staff  Other,Environmental Services,Regulatory Services,"1,478.43"
3490653,5372550,Reed Specialist Recruitment Ltd,21/05/2018,53102,Agency Staff  Other,Environmental Services,Civic Cleaning,"1,178.25"
3490653,5355602,Reed Specialist Recruitment Ltd,14/05/2018,53102,Agency Staff  Other,Environmental Services,Civic Cleaning,"1,060.93"
3490653,5335462,Reed Specialist Recruitment Ltd,08/05/2018,53102,Agency Staff  Other,Environmental Services,Waste,"1,012.07"
3490653,5372550,Reed Specialist Recruitment Ltd,21/05/2018,53102,Agency Staff  Other,Environmental Services,Regulatory Services,716.62
3490653,5387335,Reed Specialist Recruitment Ltd,29/05/2018,53102,Agency Staff  Other,Environmental Services,Regulatory Services,716.62
3490653,5355602,Reed Specialist Recruitment Ltd,14/05/2018,53102,Agency Staff  Other,Environmental Services,Regulatory Services,716.62
3490653,5372550,Reed Specialist Recruitment Ltd,21/05/2018,53102,Agency Staff  Other,Environmental Services,Couriers,704.64
3490653,5355602,Reed Specialist Recruitment Ltd,14/05/2018,53102,Agency Staff  Other,Environmental Services,Trade Waste,666.48
3490653,5335462,Reed Specialist Recruitment Ltd,08/05/2018,53102,Agency Staff  Other,Environmental Services,Trade Waste,664.99
3490653,5355602,Reed Specialist Recruitment Ltd,14/05/2018,53102,Agency Staff  Other,Environmental Services,Markets  Rent Account,630.99
3490653,5355602,Reed Specialist Recruitment Ltd,14/05/2018,53102,Agency Staff  Other,Environmental Services,Transport Support Service,630.55
3490653,5335462,Reed Specialist Recruitment Ltd,08/05/2018,53102,Agency Staff  Other,Environmental Services,Transport Support Service,630.55
3490653,5387335,Reed Specialist Recruitment Ltd,29/05/2018,53102,Agency Staff  Other,Environmental Services,Trade Waste,623.53
3490653,5372550,Reed Specialist Recruitment Ltd,21/05/2018,53102,Agency Staff  Other,Environmental Services,Strategy & Service Development,614.58
3490653,5387335,Reed Specialist Recruitment Ltd,29/05/2018,53102,Agency Staff  Other,Environmental Services,Strategy & Service Development,614.58
3490653,5355602,Reed Specialist Recruitment Ltd,14/05/2018,53102,Agency Staff  Other,Environmental Services,Strategy & Service Development,614.58
3490653,5387335,Reed Specialist Recruitment Ltd,29/05/2018,53102,Agency Staff  Other,Environmental Services,Civic Cleaning,558.72
3490653,5372550,Reed Specialist Recruitment Ltd,21/05/2018,53102,Agency Staff  Other,Environmental Services,Trade Waste,524.31
3490653,5372550,Reed Specialist Recruitment Ltd,21/05/2018,53102,Agency Staff  Other,Environmental Services,Transport Support Service,511.26
3490653,5387335,Reed Specialist Recruitment Ltd,29/05/2018,53102,Agency Staff  Other,Environmental Services,Transport Support Service,502.75
3490653,5355602,Reed Specialist Recruitment Ltd,14/05/2018,53102,Agency Staff  Other,Housing GRF,Quids In,"1,005.56"
3490653,5372550,Reed Specialist Recruitment Ltd,21/05/2018,53102,Agency Staff  Other,Housing GRF,Access & Advice Homelessness,645.21
3490653,5387335,Reed Specialist Recruitment Ltd,29/05/2018,53102,Agency Staff  Other,Housing GRF,Access & Advice Homelessness,645.21
3490653,5355602,Reed Specialist Recruitment Ltd,14/05/2018,53102,Agency Staff  Other,Housing GRF,Access & Advice Homelessness,645.21
3490653,5335462,Reed Specialist Recruitment Ltd,08/05/2018,53102,Agency Staff  Other,Housing GRF,Access & Advice Homelessness,645.21
3490653,5372550,Reed Specialist Recruitment Ltd,21/05/2018,53102,Agency Staff  Other,Housing GRF,Benjamin Court Accommodation,529.66
3490653,5355602,Reed Specialist Recruitment Ltd,14/05/2018,53102,Agency Staff  Other,Housing GRF,Benjamin Court Accommodation,529.66
3490653,5372550,Reed Specialist Recruitment Ltd,21/05/2018,53102,Agency Staff  Other,Housing GRF,Quids In,502.78
746,5393882,REHABILITATION MANUFACTURING SVS LTD,31/05/2018,44051,Clients Aids & Adaptations,Adult Services,ICES,"2,238.00"
7864,5333671,RELPHS FUNERAL SERVICE,08/05/2018,52300,Client Support Costs,Adult Services,OA  External Provision Residential,"1,400.00"
7864,5333673,RELPHS FUNERAL SERVICE,08/05/2018,52300,Client Support Costs,Adult Services,OA  External Provision Residential,"1,400.00"
7864,5386611,RELPHS FUNERAL SERVICE,29/05/2018,52300,Client Support Costs,Adult Services,OA  External Provision Residential,"1,400.00"
7864,5386612,RELPHS FUNERAL SERVICE,29/05/2018,52300,Client Support Costs,Adult Services,AD Overhead,"1,400.00"
7864,5333672,RELPHS FUNERAL SERVICE,08/05/2018,52300,Client Support Costs,Adult Services,AD Overhead,"1,400.00"
2646318,5362873,Richard Burton Haulage Ltd,17/05/2018,40610,Direct Materials,Environmental Services,Highway Services,"1,200.00"
2646318,5387145,Richard Burton Haulage Ltd,29/05/2018,40610,Direct Materials,Environmental Services,Highways Maintenance Billable Costs,960.00
2646318,5377650,Richard Burton Haulage Ltd,24/05/2018,40601,General Materials,Environmental Services,Highways Maintenance Billable Costs,720.00
2996362,5335501,Richmond Care,08/05/2018,54302,Nursing Provision,Adult Services,MH Residential External Provision,"4,738.00"
3106489,5335509,Richmond Care Home,08/05/2018,54301,Residential Provision,Adult Services,OA  External Provision Residential,"2,326.80"
10146,5384317,RICOH UK LIMITED,24/05/2018,45430,Computer Software,Chief Executives,Text & Reprographics,"30,215.45"
10146,5384319,RICOH UK LIMITED,24/05/2018,48510,Consultancy Fees,Chief Executives,Text & Reprographics,"18,050.00"
10146,5383843,RICOH UK LIMITED,24/05/2018,40141,Office Equipment Maintenance,Chief Executives,Text & Reprographics,"5,372.24"
10146,5383909,RICOH UK LIMITED,29/05/2018,40141,Office Equipment Maintenance,Chief Executives,Text & Reprographics,"2,754.43"
10146,5384322,RICOH UK LIMITED,24/05/2018,40141,Office Equipment Maintenance,Chief Executives,Text & Reprographics,"2,500.55"
3836954,5335531,Ridgeway Lodge,29/05/2018,54301,Residential Provision,Adult Services,MH Residential External Provision,"2,623.75"
6612,5372686,RIGBY TAYLOR LTD,21/05/2018,40601,General Materials,Environmental Services,Activities and Operations,960.00
4621992,5383688,Right Care (NW) Limited,24/05/2018,52200,Contracted Services,Adult Services,OA  Home Care Services external provision,"1,094.00"
4621992,5383689,Right Care (NW) Limited,24/05/2018,52200,Contracted Services,Adult Services,OA  Home Care Services external provision,"1,070.21"
4621992,5383696,Right Care (NW) Limited,24/05/2018,52200,Contracted Services,Adult Services,PD Purcahser Domiciliary Care,"1,061.45"
4621992,5383687,Right Care (NW) Limited,24/05/2018,52200,Contracted Services,Adult Services,OA  Home Care Services external provision,980.80
4621992,5393829,Right Care (NW) Limited,31/05/2018,52200,Contracted Services,Adult Services,PD Purcahser Domiciliary Care,833.30
4621992,5390764,Right Care (NW) Limited,29/05/2018,52200,Contracted Services,Adult Services,PD Purcahser Domiciliary Care,670.95
4621992,5383691,Right Care (NW) Limited,24/05/2018,52200,Contracted Services,Adult Services,OA  Home Care Services external provision,615.33
4621992,5390763,Right Care (NW) Limited,29/05/2018,52200,Contracted Services,Adult Services,PD Purcahser Domiciliary Care,592.85
6615,5371145,RIVERSIDE TRUCK RENTAL LTD,17/05/2018,33201,Transport Hire,Environmental Services,Transport Support Service,"4,620.00"
6615,5371149,RIVERSIDE TRUCK RENTAL LTD,17/05/2018,33201,Transport Hire,Environmental Services,Transport Support Service,"4,620.00"
6615,5386614,RIVERSIDE TRUCK RENTAL LTD,29/05/2018,33201,Transport Hire,Environmental Services,Transport Support Service,"3,759.00"
6615,5386613,RIVERSIDE TRUCK RENTAL LTD,29/05/2018,33201,Transport Hire,Environmental Services,Transport Support Service,"3,759.00"
2596318,5335490,Rivington Park Care Home,08/05/2018,54301,Residential Provision,Adult Services,OA  External Provision Residential,"2,546.30"
6617,5335558,RIVINGTON VIEW NURSING HOME,08/05/2018,54301,Residential Provision,Adult Services,OA  External Provision Residential,"13,619.57"
6617,5335557,RIVINGTON VIEW NURSING HOME,08/05/2018,54302,Nursing Provision,Adult Services,OA  External Provision Residential,"4,900.00"
6617,5335557,RIVINGTON VIEW NURSING HOME,08/05/2018,54302,Nursing Provision,Adult Services,PD Purchaser Residential Care,"2,450.00"
6617,5335557,RIVINGTON VIEW NURSING HOME,08/05/2018,54302,Nursing Provision,Adult Services,MH Residential External Provision,"2,450.00"
1509,5371331,ROBERT SCOTT & SONS LTD,29/05/2018,26000,Cleaning Materials,Environmental Services,Building Cleaning,552.00
34929,5383709,ROCK & RIVER OUTDOOR PURSUITS,24/05/2018,48629,Miscellaneous Expenses,Childrens Services,Contact & Direct Work,750.00
6623,5335560,ROSE COURT NURSING HOME,08/05/2018,54302,Nursing Provision,Adult Services,OA  External Provision Residential,"6,950.60"
6623,5335562,ROSE COURT NURSING HOME,08/05/2018,54301,Residential Provision,Adult Services,MH Residential External Provision,"6,900.60"
6623,5335562,ROSE COURT NURSING HOME,08/05/2018,54301,Residential Provision,Adult Services,OA  External Provision Residential,"2,300.20"
6623,5335560,ROSE COURT NURSING HOME,08/05/2018,54302,Nursing Provision,Adult Services,LD Purchaser Residential Care,"2,300.20"
6623,5335560,ROSE COURT NURSING HOME,08/05/2018,54302,Nursing Provision,Adult Services,MH Residential External Provision,"2,300.20"
35,5335575,ROSEBRIDGE COURT,08/05/2018,54302,Nursing Provision,Adult Services,MH Residential External Provision,"7,092.74"
35,5335575,ROSEBRIDGE COURT,08/05/2018,54302,Nursing Provision,Adult Services,PD Purchaser Residential Care,"4,775.00"
35,5335575,ROSEBRIDGE COURT,08/05/2018,54302,Nursing Provision,Adult Services,OA  External Provision Residential,"2,492.74"
6629,5373650,ROYAL MAIL GROUP LTD,21/05/2018,45000,Postages Direct Costs,Chief Executives,Council Tax,"1,645.24"
6629,5399742,ROYAL MAIL GROUP LTD,31/05/2018,45000,Postages Direct Costs,Chief Executives,Council Tax,"1,380.10"
6629,5381721,ROYAL MAIL GROUP LTD,24/05/2018,45000,Postages Direct Costs,Chief Executives,Council Tax,"1,321.88"
6629,5373650,ROYAL MAIL GROUP LTD,21/05/2018,45000,Postages Direct Costs,Chief Executives,Accounts Receivable (R & B),864.49
6629,5381721,ROYAL MAIL GROUP LTD,24/05/2018,45000,Postages Direct Costs,Chief Executives,Housing Benefits,752.34
6629,5399742,ROYAL MAIL GROUP LTD,31/05/2018,45000,Postages Direct Costs,Chief Executives,Housing Benefits,732.67
6629,5373650,ROYAL MAIL GROUP LTD,21/05/2018,45000,Postages Direct Costs,Chief Executives,Housing Benefits,627.02
1559,5370645,RTC SAFETY SURFACES LTD,17/05/2018,52200,Contracted Services,Environmental Services,Activities and Operations,"2,702.00"
2205290,5370857,SAFEHANDS CARE LTD#SAFEHANDS GROUP,17/05/2018,52200,Contracted Services,Adult Services,OA  Home Care Services external provision,"38,034.26"
2205290,5370857,SAFEHANDS CARE LTD#SAFEHANDS GROUP,17/05/2018,52200,Contracted Services,Adult Services,PD Purcahser Domiciliary Care,"28,302.00"
2205290,5370858,SAFEHANDS CARE LTD#SAFEHANDS GROUP,17/05/2018,52200,Contracted Services,Adult Services,OA  Home Care Services external provision,"3,498.82"
2205290,5370857,SAFEHANDS CARE LTD#SAFEHANDS GROUP,17/05/2018,52200,Contracted Services,Adult Services,MH Homecare,"3,276.67"
2205290,5370858,SAFEHANDS CARE LTD#SAFEHANDS GROUP,17/05/2018,52200,Contracted Services,Adult Services,PD Purcahser Domiciliary Care,"3,073.79"
2205290,5333162,SAFEHANDS CARE LTD#SAFEHANDS GROUP,03/05/2018,52200,Contracted Services,Adult Services,OA  Home Care Services external provision,"2,573.49"
2205290,5333163,SAFEHANDS CARE LTD#SAFEHANDS GROUP,03/05/2018,52200,Contracted Services,Adult Services,OA  Home Care Services external provision,"2,568.87"
2205290,5370858,SAFEHANDS CARE LTD#SAFEHANDS GROUP,17/05/2018,52200,Contracted Services,Adult Services,MH Homecare,"1,455.40"
2205290,5370857,SAFEHANDS CARE LTD#SAFEHANDS GROUP,17/05/2018,52200,Contracted Services,Adult Services,OA  External Provision Residential,"1,121.16"
2205290,5370858,SAFEHANDS CARE LTD#SAFEHANDS GROUP,17/05/2018,52200,Contracted Services,Adult Services,LD Purchaser Domiciliary Care,865.69
2205290,5370857,SAFEHANDS CARE LTD#SAFEHANDS GROUP,17/05/2018,52200,Contracted Services,Adult Services,LD Purchaser Domiciliary Care,504.05
1637,5362709,SAFETY KLEEN UK  LTD,17/05/2018,40101,Operational Equipment Maint,Environmental Services,Activities and Operations,515.44
3823770,5333120,Sakinas Healthcare Limited T/A SureCare Bolton,08/05/2018,52200,Contracted Services,Adult Services,OA  Home Care Services external provision,"33,727.79"
3823770,5333120,Sakinas Healthcare Limited T/A SureCare Bolton,08/05/2018,52200,Contracted Services,Adult Services,PD Purcahser Domiciliary Care,"26,829.41"
3823770,5333120,Sakinas Healthcare Limited T/A SureCare Bolton,08/05/2018,52200,Contracted Services,Adult Services,MH Homecare,"3,004.03"
3823770,5333120,Sakinas Healthcare Limited T/A SureCare Bolton,08/05/2018,52200,Contracted Services,Adult Services,LD Purchaser Domiciliary Care,"1,434.75"
3823770,5333120,Sakinas Healthcare Limited T/A SureCare Bolton,08/05/2018,52200,Contracted Services,Adult Services,OA  External Provision Residential,731.60
3823770,5333119,Sakinas Healthcare Limited T/A SureCare Bolton,08/05/2018,52200,Contracted Services,Adult Services,OA  Home Care Services external provision,618.41
10259,5354219,Salford City Council,10/05/2018,48509,Other Fees,Chief Executives,Marketing Agency,"17,227.00"
10259,5371443,Salford City Council,17/05/2018,48509,Other Fees,Development & Regeneration,D&R Building Control (Trading),"2,459.55"
10259,5396673,Salford City Council,31/05/2018,52200,Contracted Services,Public Health,Substance Misuse,"780,000.00"
2943312,5394681,Salvere Social Enterprise CIC,31/05/2018,52200,Contracted Services,Adult Services,Districts & Neighbourhoods - HoS,"10,353.37"
1569311,5358674,SANCTUARY CARR-GOMM#THE SANCTUARY GROUP,14/05/2018,52200,Contracted Services,Adult Services,MH Residential External Provision,663.84
1569311,5358675,SANCTUARY CARR-GOMM#THE SANCTUARY GROUP,14/05/2018,52200,Contracted Services,Adult Services,MH Residential External Provision,663.84
1569311,5358676,SANCTUARY CARR-GOMM#THE SANCTUARY GROUP,14/05/2018,52200,Contracted Services,Adult Services,MH Residential External Provision,663.84
1569311,5370853,SANCTUARY CARR-GOMM#THE SANCTUARY GROUP,17/05/2018,52200,Contracted Services,Adult Services,MH Residential External Provision,663.84
1569311,5370854,SANCTUARY CARR-GOMM#THE SANCTUARY GROUP,17/05/2018,52200,Contracted Services,Adult Services,MH Residential External Provision,663.84
1569311,5370855,SANCTUARY CARR-GOMM#THE SANCTUARY GROUP,17/05/2018,52200,Contracted Services,Adult Services,MH Residential External Provision,663.84
1569311,5390765,SANCTUARY CARR-GOMM#THE SANCTUARY GROUP,29/05/2018,52200,Contracted Services,Adult Services,MH Residential External Provision,663.84
1569311,5390766,SANCTUARY CARR-GOMM#THE SANCTUARY GROUP,29/05/2018,52200,Contracted Services,Adult Services,MH Residential External Provision,663.84
1569311,5390767,SANCTUARY CARR-GOMM#THE SANCTUARY GROUP,29/05/2018,52200,Contracted Services,Adult Services,MH Residential External Provision,663.84
1569311,5390776,SANCTUARY CARR-GOMM#THE SANCTUARY GROUP,29/05/2018,52200,Contracted Services,Adult Services,MH Residential External Provision,553.20
1569311,5390777,SANCTUARY CARR-GOMM#THE SANCTUARY GROUP,29/05/2018,52200,Contracted Services,Adult Services,MH Residential External Provision,553.20
4344954,5335537,Sandybrook House,08/05/2018,54301,Residential Provision,Adult Services,OA  External Provision Residential,"2,032.62"
4378954,5371476,Schuchmann LLP,17/05/2018,44051,Clients Aids & Adaptations,Adult Services,ICES,"1,474.70"
46513,5335470,SCOTTISH & SOUTHERN ENERGY PLC,08/05/2018,21100,Electricity  General,Chief Executives,Adult Social Care Portfolio,"8,089.54"
46513,5335470,SCOTTISH & SOUTHERN ENERGY PLC,08/05/2018,21100,Electricity  General,Chief Executives,Admin Buildings Portfolio,"6,459.60"
46513,5393692,SCOTTISH & SOUTHERN ENERGY PLC,31/05/2018,21100,Electricity  General,Chief Executives,Adult Social Care Portfolio,"2,544.74"
46513,5335470,SCOTTISH & SOUTHERN ENERGY PLC,08/05/2018,21100,Electricity  General,Chief Executives,Land and Property Portfolios,"2,478.70"
46513,5393692,SCOTTISH & SOUTHERN ENERGY PLC,31/05/2018,21100,Electricity  General,Childrens Services,Heywood YP Centre,"1,979.58"
46513,5335470,SCOTTISH & SOUTHERN ENERGY PLC,08/05/2018,21100,Electricity  General,Childrens Services,Harvey CC,"1,266.02"
46513,5393692,SCOTTISH & SOUTHERN ENERGY PLC,31/05/2018,21100,Electricity  General,Childrens Services,Harvey CC,"1,142.42"
46513,5393692,SCOTTISH & SOUTHERN ENERGY PLC,31/05/2018,21100,Electricity  General,Childrens Services,Kearsley CC,954.99
46513,5335470,SCOTTISH & SOUTHERN ENERGY PLC,08/05/2018,21100,Electricity  General,Childrens Services,Tonge CC,915.36
46513,5335470,SCOTTISH & SOUTHERN ENERGY PLC,08/05/2018,21100,Electricity  General,Childrens Services,Waggon Road YP Centre,910.09
46513,5335470,SCOTTISH & SOUTHERN ENERGY PLC,08/05/2018,21100,Electricity  General,Childrens Services,Harwood Youth Centre (Yth Srv),847.54
46513,5335470,SCOTTISH & SOUTHERN ENERGY PLC,08/05/2018,21100,Electricity  General,Childrens Services,Gt Lever CC,812.57
46513,5335470,SCOTTISH & SOUTHERN ENERGY PLC,08/05/2018,21100,Electricity  General,Childrens Services,Alexandra CC,742.78
46513,5335470,SCOTTISH & SOUTHERN ENERGY PLC,08/05/2018,21100,Electricity  General,Childrens Services,Blackrod Youth Centre (Yth Srv),663.40
46513,5393692,SCOTTISH & SOUTHERN ENERGY PLC,31/05/2018,21100,Electricity  General,Childrens Services,Harwood Youth Centre (Yth Srv),529.41
46513,5335470,SCOTTISH & SOUTHERN ENERGY PLC,08/05/2018,21100,Electricity  General,Development & Regeneration,The Leverhulme Centre,"1,796.92"
46513,5335470,SCOTTISH & SOUTHERN ENERGY PLC,08/05/2018,21100,Electricity  General,Development & Regeneration,Smithills Hall Museum,"1,186.24"
46513,5335470,SCOTTISH & SOUTHERN ENERGY PLC,08/05/2018,21100,Electricity  General,Development & Regeneration,Museum Premises,805.67
46513,5335470,SCOTTISH & SOUTHERN ENERGY PLC,08/05/2018,21100,Electricity  General,Development & Regeneration,Libraries - Horwich,576.57
46513,5393692,SCOTTISH & SOUTHERN ENERGY PLC,31/05/2018,21100,Electricity  General,Development & Regeneration,Libraries - Horwich,576.54
46513,5367779,SCOTTISH & SOUTHERN ENERGY PLC,17/05/2018,21100,Electricity  General,Environmental Services,Engineering Projects,"192,172.93"
46513,5393691,SCOTTISH & SOUTHERN ENERGY PLC,31/05/2018,21100,Electricity  General,Environmental Services,Engineering Projects,"107,785.47"
46513,5335470,SCOTTISH & SOUTHERN ENERGY PLC,08/05/2018,21100,Electricity  General,Environmental Services,Depots,"2,954.28"
46513,5393692,SCOTTISH & SOUTHERN ENERGY PLC,31/05/2018,21100,Electricity  General,Environmental Services,Assets,"1,822.21"
46513,5393692,SCOTTISH & SOUTHERN ENERGY PLC,31/05/2018,21100,Electricity  General,Environmental Services,Depots,919.96
46513,5335470,SCOTTISH & SOUTHERN ENERGY PLC,08/05/2018,21100,Electricity  General,Environmental Services,Assets,726.12
46513,5335470,SCOTTISH & SOUTHERN ENERGY PLC,08/05/2018,21100,Electricity  General,Environmental Services,Heaton Fold,544.94
46513,5335470,SCOTTISH & SOUTHERN ENERGY PLC,08/05/2018,21100,Electricity  General,Housing GRF,Access & Advice Caravan Sites,"1,336.70"
46513,5335470,SCOTTISH & SOUTHERN ENERGY PLC,08/05/2018,21100,Electricity  General,Housing GRF,Dispersed Properties,578.64
6649,5384424,SEAN JENNINGS BUILDING CONTRACTORS,24/05/2018,20101,Programmed Maint. Work,Chief Executives,Admin Buildings Portfolio,"15,500.55"
252791,5385885,SEASHELL TRUST,29/05/2018,52000,Vol Assoc Grants  General,Childrens Services,Disability Serv External Provision,"1,393.48"
3315669,5335515,Segal Gardens,08/05/2018,54301,Residential Provision,Adult Services,LD Purchaser Residential Care,"9,380.20"
3859956,5384595,Sentinel Environmental Consultancy Limited,24/05/2018,20100,Day To Day Maintenance,Environmental Services,Activities and Operations,850.00
2323,5383881,SERCO LEISURE OPERATING LTD#2,24/05/2018,52200,Contracted Services,Development & Regeneration,The Leisure Trust,"5,650.00"
6656,5358669,SEVA LINE,14/05/2018,52200,Contracted Services,Adult Services,OA  Home Care Services external provision,"11,021.30"
6656,5358669,SEVA LINE,14/05/2018,52200,Contracted Services,Adult Services,PD Purcahser Domiciliary Care,"1,921.74"
6656,5358670,SEVA LINE,14/05/2018,52200,Contracted Services,Adult Services,PD Purcahser Domiciliary Care,"1,023.83"
